{"text_format":"1","workbook":"xlsx","n_sheets":3,"sheets":["для табл.","Лист1","Лист2"],"not_rendered":{"charts":0,"images":0,"macros":1,"external_links":0,"defined_names":2,"comments":0,"pivot_tables":0},"unopened":[],"bounds":{"document_bytes":16777216,"sheet_cells":100000,"rows_first":2000,"rows_last":500,"rows_between":2000,"halvings":0,"cell_chars":16384,"cell_head_chars":4096},"cells_cut":0,"cells_raw":0,"read":"whole","date_system":"1900"}

{"sheet":"для табл.","index":0,"n_rows":936,"n_cols":6,"rows_kept":936,"cut":false,"hidden":false,"merged":[[8,0,9,5],[11,1,11,3]]}
[null,null,null,null,null,"«УТВЕРЖДАЮ»"]
[null,null,null,null,null,"Директор ДЭиБПД"]
[null,null,null,null,null,"АО «Коломенский Завод»"]
[null,null,null,null,null,"______________   Степанкевич В.С."]
[]
[]
[null,null,null,null,null,"от «___»   ________  2025_ г."]
[]
["Ведомость объемов работ \nОбъект: «Реконструкция М-14 Инв. 530000149 ( Устройство фасада. Усиление)»  \n"]
[]
["№","Вид работ","Ед. измер","Объем","Формула расчета","Примечание"]
[null,"Раздел АС \"Усиление основных конструкций АБК цеха М14\" на территории АО \"Коломенский завод\", расположенного по адресу:\nМосковская область, г. Коломна, ул. Партизан, 42 (066-04.24-М14-АС)"]
[1,"Усиление конструктивных элементов: стен кирпичных стальными обоймами","кг",481.64,null,"В том числе элементы обойм:\n- Сталь полосовая (100х8 мм), общий вес –  (45,97+16,08+15,83+26,75+25,62)*2=260,5 кг;\n- Сталь угловая равнополочная, марка стали: Ст3пс, шириной полок 100-100 мм, общий вес – 94,08*2=188,16 кг;\n- Шпилька резьбовая STARFIX М16х890 (Класс прочности 8.8), общий вес – 8,44*2=16,88 кг, 12 шт.;\n- Шпилька резьбовая STARFIX М16х820 (Класс прочности 8.8), общий вес – 7,77*2=15,54 кг, 12 шт.;\n- Гайка стальная оцинкованная сферическая для анкерного стержня, диаметр 16 мм, общий вес – 0,23*2= 0,46 кг, 12 шт.;\n- Шайбы оцинкованные, диаметр 16 мм, общий вес – 0,06*2=0,12 кг, 12 шт."]
[2,"Сверление отверстий в кирпичной стене Ø20 мм l=730 мм","шт.",24]
[3,"Очистка поверхности стен щетками","м2",18.62]
[4,"Обеспыливание поверхности стен","м2",18.62]
[5,"Обезжиривание поверхности стен","м2",18.62]
[6,"Огрунтовка металлических поверхностей в 2 слоя","м2",14.44]
[7,"Выравнивание поверхности стен цементно-песчаным раствором М50, толщиной 10 мм ","м3",0.19,null,"19м2"]
[8,"Зачеканка стен под уголками и полосами цементно-песчаным раствором М50, толщиной 10 мм","м3",0.08,null,"8м2"]
[9,"Зачеканка трещин между стеной и колонной цементно-песчаным раствором М200","м3",0.05,null,"5м2"]
[null,"Усиление стены УС-2"]
[10,"Усиление конструктивных элементов: стен кирпичных стальными обоймами","кг",212.14,null,"В том числе элементы обойм:\n- Сталь полосовая (100х8 мм), общий вес –  (42,96+23,36+21,85+48,23)=136,4 кг;\n- Сталь угловая равнополочная, марка стали: Ст3пс, шириной полок 100-100 мм, общий вес –62,72 кг;\n- Шпилька резьбовая STARFIX М16х620 (Класс прочности 8.8), общий вес – 5,88 кг, 6 шт.;\n- Шпилька резьбовая STARFIX М16х630 (Класс прочности 8.8), общий вес – 6,0 кг, 6 шт.;\n- Гайка стальная оцинкованная сферическая для анкерного стержня, диаметр 16 мм, общий вес – 0,90 кг, 24 шт.;\n- Шайбы оцинкованные, диаметр 16 мм, общий вес – 0,24 кг, 24 шт."]
[11,"Сверление отверстий в кирпичной стене Ø20 мм l=550 мм, l=530 мм","шт.",12]
[12,"Очистка поверхности стен щетками","м2",7.05]
[13,"Обеспыливание поверхности стен","м2",7.05]
[14,"Обезжиривание поверхности стен","м2",7.05]
[15,"Огрунтовка металлических поверхностей в 2 слоя","м2",6.39]
[16,"Частичный демонтаж кирпичной кладки","м3",0.31]
[17,"Выравнивание поверхности стен цементно-песчаным раствором М50, толщиной 10 мм","м3",7.0000000000000007E-2,{"$f":"0.07/0.01","v":7.0000000000000009},"7м2"]
[18,"Зачеканка стен под уголками и полосами цементно-песчаным раствором М50, толщиной 10 мм","м3",0.03,{"$f":"0.07/0.01","v":7.0000000000000009},{"$f":"F30","v":"7м2"}]
[19,"Зачеканка трещин между стеной и колонной цементно-песчаным раствором М200","м3",0.04]
[null,"Усиление стены УС-3"]
[20,"Усиление конструктивных элементов: стен кирпичных стальными обоймами","кг",183.49,null,"В том числе элементы обойм:\n- Сталь полосовая (100х8 мм), общий вес –  (105,5+64,31)=169,8 кг;\n- Шпилька резьбовая STARFIX М16х660 (Класс прочности 8.8), общий вес – 12,51 кг, 12 шт.;\n- Гайка стальная оцинкованная сферическая для анкерного стержня, диаметр 16 мм, общий вес – 0,90 кг, 24 шт.;\n- Шайбы оцинкованные, диаметр 16 мм, общий вес – 0,24 кг, 24 шт."]
[{"$f":"A34+1","v":21},"Сверление отверстий в кирпичной стене Ø20 мм l=570 мм","шт.",12]
[{"$f":"A35+1","v":22},"Очистка поверхности стен щетками","м2",7.45]
[23,"Обеспыливание поверхности стен","м2",7.45]
[24,"Обезжиривание поверхности стен","м2",7.45]
[25,"Огрунтовка металлических поверхностей в 2 слоя","м2",5.41]
[26,"Выравнивание поверхности стен цементно-песчаным раствором М50, толщиной 10 мм","м3",7.0000000000000007E-2]
[27,"Зачеканка стен под уголками и полосами цементно-песчаным раствором М50, толщиной 10 мм","м3",0.03]
[28,"Зачеканка трещин между стеной и колонной цементно-песчаным раствором М200","м3",0.05]
[null,"Усиление стены УС-4"]
[{"$f":"A42+1","v":29},"Усиление конструктивных элементов: стен кирпичных стальными обоймами","кг",899.04,null,"В том числе элементы обойм:\n- Сталь полосовая (100х8 мм), общий вес –  (16,2+10,55+32,91)*6=357,96 кг;\n- Сталь угловая равнополочная, марка стали: Ст3пс, шириной полок 100-100 мм, общий вес – 64,19*6=385,14 кг;\n- Шпилька резьбовая STARFIX М16х890 (Класс прочности 8.8), общий вес – 16,87*6=101,22 кг, 72 шт.;\n- Гайка стальная оцинкованная сферическая для анкерного стержня, диаметр 16 мм, общий вес – 0,45*6= 2,7 кг, 72 шт.;\n- Шайбы оцинкованные, диаметр 16 мм, общий вес – 0,12*6=0,72 кг, 72 шт;\n-  Сталь арматурная рифленая свариваемая, класс А500С, диаметр 12 мм, общий вес – 4,65*6=27,9 кг;\n-  Сталь арматурная рифленая свариваемая, класс А500С, диаметр 8 мм, общий вес – 3,87*6=23,22 кг"]
[{"$f":"A44+1","v":30},"Сверление отверстий в кирпичной стене Ø20 мм l=540 мм, l=270 мм","шт.",108]
[{"$f":"A45+1","v":31},"Очистка поверхности стен щетками","м2",34.49]
[32,"Обеспыливание поверхности стен","м2",34.49]
[33,"Обезжиривание поверхности стен","м2",34.49]
[34,"Огрунтовка металлических поверхностей в 2 слоя","м2",23.98]
[35,"Частичный демонтаж кирпичной кладки","м3",2.89]
[36,"Кладка перегородок из кирпича (КР-р-по250х120х65/1НФ/150/2.0/75)","м3",3.18]
[37,"Выравнивание поверхности стен цементно-песчаным раствором М50, толщиной 10 мм","м3",0.34]
[38,"Зачеканка стен под уголками и полосами цементно-песчаным раствором М50, толщиной 10 мм","м3",0.11]
[39,"Зачеканка трещин между стеной и колонной цементно-песчаным раствором М200","м3",0.08]
[null,"\t\nУсиление стены УС-5"]
[{"$f":"A54+1","v":40},"Усиление конструктивных элементов: стен кирпичных стальными обоймами","кг",214.68,null,"В том числе элементы обойм:\n- Сталь полосовая (100х8 мм), общий вес –  (43,71+23,36+24,12+48,23)=139,42 кг;\n- Сталь угловая равнополочная, марка стали: Ст3пс, шириной полок 100-100 мм, общий вес –62,72 кг;\n- Шпилька резьбовая STARFIX М16х620 (Класс прочности 8.8), общий вес –5,88 кг, 6 шт.;\n- Шпилька резьбовая STARFIX М16х580 (Класс прочности 8.8), общий вес –5,50 кг, 6 шт.;\n- Гайка стальная оцинкованная сферическая для анкерного стержня, диаметр 16 мм, общий вес – 0,90 кг, 24 шт.;\n- Шайбы оцинкованные, диаметр 16 мм, общий вес – 0,24 кг, 24 шт."]
[{"$f":"A56+1","v":41},"Сверление отверстий в кирпичной стене Ø20 мм l=530 мм, l=500 мм","шт.",12]
[{"$f":"A57+1","v":42},"Очистка поверхности стен щетками","м2",7.32]
[43,"Обеспыливание поверхности стен","м2",7.32]
[44,"Обезжиривание поверхности стен","м2",7.32]
[45,"Огрунтовка металлических поверхностей в 2 слоя","м2",6.48]
[46,"Выравнивание поверхности стен цементно-песчаным раствором М50, толщиной 10 мм","м3",7.0000000000000007E-2]
[47,"Зачеканка стен под уголками и полосами цементно-песчаным раствором М50, толщиной 10 мм","м3",0.03]
[48,"Зачеканка трещин между стеной и колонной цементно-песчаным раствором М200","м3",3.0000000000000001E-3]
[null,"Усиление стены УС-6"]
[{"$f":"A64+1","v":49},"Усиление конструктивных элементов: стен кирпичных стальными обоймами","кг",145.29]
[{"$f":"A66+1","v":50},"Сверление отверстий в кирпичной стене Ø20 мм l=850 мм","шт.",12]
[{"$f":"A67+1","v":51},"Очистка поверхности стен щетками","м2",3.16]
[52,"Обеспыливание поверхности стен","м2",3.16]
[53,"Обезжиривание поверхности стен","м2",3.16]
[54,"Огрунтовка металлических поверхностей в 2 слоя","м2",4]
[55,"Выравнивание поверхности стен цементно-песчаным раствором М50, толщиной 10 мм","м3",0.03]
[56,"Зачеканка стен под уголками и полосами цементно-песчаным раствором М50, толщиной 10 мм","м3",0.02]
[57,"Зачеканка трещин между стеной и колонной цементно-песчаным раствором М200","м3",1E-3]
[null,"Ремонт трещин 1 этажа"]
[null,"Усиление кирпичной кладки арматурными стержнями"]
[{"$f":"A74+1","v":58},"Устройство в кирпичных стенах борозд с использованием штробореза","м.п.",179.5]
[{"$f":"A77+1","v":59},"Усиление кирпичных стен арматурными стержнями  Ø8 А500С","кг",67.5]
[{"$f":"A78+1","v":60},"Заделка штроб в кирпичных стенах (шириной 30 мм, глубиной 30 мм)","м.п.",160.96]
[null,"Ремонт и инъектирование трещин"]
[{"$f":"A79+1","v":61},"Заделка штроб в кирпичных стенах (шириной 20 мм, глубиной 20 мм)","м.п.",18.55]
[{"$f":"A81+1","v":62},"Сверление отверстий в кирпичной стене Ø20 мм l=200 мм","шт.",770]
[{"$f":"A82+1","v":63},"Инъектирование трещин в кирпичных стенах","м2",0.37]
[null,"Защита металлических элементов"]
[{"$f":"A83+1","v":64},"Обеспыливание поверхности металлических элементов","м2",10.4]
[{"$f":"A85+1","v":65},"Очистка поверхности металлических элементов щетками","м2",10.4]
[{"$f":"A86+1","v":66},"Обезжиривание поверхности металлических элементов","м2",10.4]
[67,"Огрунтовка поверхности металлических элементов в 2 слоя","м2",10.4]
[null," Усиление примыкания колонн каркаса к кирпичным стенам 2-го этажа. Усиление стены УС-2.1"]
[{"$f":"A88+1","v":68},"Усиление конструктивных элементов: стен кирпичных стальными обоймами","кг",206.67,null,"В том числе элементы обойм:\n- Сталь полосовая (100х8 мм), общий вес –  (78,37+33,54+19,22)=131,13 кг;\n- Сталь угловая равнополочная, марка стали: Ст3пс, шириной полок 100-100 мм, общий вес –69,09 кг;\n- Шпилька резьбовая STARFIX М16х620 (Класс прочности 8.8), общий вес –5,88 кг, 6 шт.;\n- Гайка стальная оцинкованная сферическая для анкерного стержня, диаметр 16 мм, общий вес – 0,45 кг, 12 шт.;\n- Шайбы оцинкованные, диаметр 16 мм, общий вес – 0,12 кг, 12 шт."]
[{"$f":"A90+1","v":69},"Сверление отверстий в стене Ø20 мм l=530 мм","шт.",6]
[{"$f":"A91+1","v":70},"Очистка поверхности стен щетками","м2",7.43]
[71,"Обеспыливание поверхности стен","м2",7.43]
[72,"Обезжиривание поверхностей стен","м2",7.43]
[73,"Огрунтовка металлических поверхностей в 2 слоя","м2",4.18]
[74,"Частичный демонтаж кирпичной кладки","м3",0.09]
[75,"Выравнивание поверхности стен цементно-песчаным раствором М50, толщиной 10 мм","м3",7.0000000000000007E-2]
[76,"Зачеканка стен под уголками и полосами цементно-песчаным раствором М50, толщиной 10 мм","м3",0.03]
[77,"Устройство подливки цементно-песчаным раствором М200","м3",0.19]
[null,"Усиление стены УС-3.1"]
[{"$f":"A99+1","v":78},"Усиление конструктивных элементов: стен кирпичных стальными обоймами","кг",186.22,null,"В том числе элементы обойм:\n- Сталь полосовая (100х8 мм), общий вес –  (105,5+67,07)=172,57 кг;\n- Шпилька резьбовая STARFIX М16х660 (Класс прочности 8.8), общий вес –12,51 кг, 12 шт.;\n- Гайка стальная оцинкованная сферическая для анкерного стержня, диаметр 16 мм, общий вес – 0,90 кг, 24 шт.;\n- Шайбы оцинкованные, диаметр 16 мм, общий вес – 0,24 кг, 24 шт."]
[{"$f":"A101+1","v":79},"Сверление отверстий в стене Ø20 мм l=530 мм","шт.",12]
[{"$f":"A102+1","v":80},"Очистка поверхности стен щетками","м2",7.56]
[81,"Обеспыливание поверхности стен"]
[82,"Обезжиривание поверхностей стен","м2",7.56]
[83,"Огрунтовка металлических поверхностей в 2 слоя","м2",5.5]
[84,"Выравнивание поверхности стен цементно-песчаным раствором М50, толщиной 10 мм","м3",0.08]
[85,"Зачеканка стен под уголками и полосами цементно-песчаным раствором М50, толщиной 10 мм","м3",0.03]
[null,"Усиление стены УС-4.1/УС-4.3"]
[{"$f":"A108+1","v":86},"Усиление конструктивных элементов: стен кирпичных стальными обоймами","кг",1192.48,null,"В том числе элементы обойм:\n- Сталь полосовая (100х8 мм), общий вес –  (16,2+10,55+33,54)*8=482,32 кг;\n- Сталь угловая равнополочная, марка стали: Ст3пс, шириной полок 100-100 мм, общий вес – 65,42*8=523,36 кг;\n- Шпилька резьбовая STARFIX М16х890 (Класс прочности 8.8), общий вес – 16,87*8=134,96 кг, 96 шт.;\n- Гайка стальная оцинкованная сферическая для анкерного стержня, диаметр 16 мм, общий вес – 0,45*8= 3,6 кг, 96 шт.;\n- Шайбы оцинкованные, диаметр 16 мм, общий вес – 0,12*8=0,96 кг, 96 шт.;\n-  Сталь арматурная рифленая свариваемая, класс А500С, диаметр 12 мм, общий вес – 4,44*6=26,64 кг;\n-  Сталь арматурная рифленая свариваемая, класс А500С, диаметр 8 мм, общий вес – 3,44*6=20,64 кг"]
[{"$f":"A110+1","v":87},"Сверление отверстий в стене Ø20 мм l=530 мм, l=270 мм","шт.",128]
[{"$f":"A111+1","v":88},"Очистка поверхности стен щетками","м2",58.43]
[89,"Обеспыливание поверхности стен","м2",58.43]
[90,"Обезжиривание поверхностей стен","м2",58.43]
[91,"Огрунтовка металлических поверхностей в 2 слоя","м2",32.44]
[92,"Частичный демонтаж кирпичной кладки","м3",2.87]
[93,"Кладка перегородок из кирпича (КР-р-по250х120х65/1НФ/150/2.0/75)","м3",3.16]
[94,"Выравнивание поверхности стен цементно-песчаным раствором М50, толщиной 10 мм","м3",0.57999999999999996]
[95,"Зачеканка стен под уголками и полосами цементно-песчаным раствором М50, толщиной 10 мм","м3",0.14000000000000001]
[96,"Зачеканка трещин между стеной и колонной цементно-песчаным раствором М200","м3",0.1]
[null,"Примыкание колонны к стеновой панели"]
[{"$f":"A120+1","v":97},"Устройство уплотнителя (шнур Вилатерм 60) в примыкании колонны к стеновым панелям","м.п.",73]
[{"$f":"A122+1","v":98},"Заделка примыкания колонны к стеновым панелям цементно-песчаным раствором М200","м3",0.39]
[null," Усиление примыкания колонн каркаса к кирпичным стенам 3-го этажа"]
[null,"Усиление стены УС-2.1"]
[{"$f":"A123+1","v":99},"Усиление конструктивных элементов: стен кирпичных стальными обоймами","кг",206.67,null,"В том числе элементы обойм:\n- Сталь полосовая (100х8 мм), общий вес – (78,37+33,54+19,22)=131,13 кг;\n- Сталь угловая равнополочная, марка стали: Ст3пс, шириной полок 100-100 мм, общий вес – 69,09 кг;\n- Шпилька резьбовая STARFIX М16х620 (Класс прочности 8.8), общий вес –5,88 кг, 6 шт.;\n- Гайка стальная оцинкованная сферическая для анкерного стержня, диаметр 16 мм, общий вес – 0,45 кг, 12 шт.;\n- Шайбы оцинкованные, диаметр 16 мм, общий вес – 0,12 кг, 12 шт."]
[{"$f":"A126+1","v":100},"Сверление отверстий в стене Ø20 мм l=530 мм","шт.",6]
[{"$f":"A127+1","v":101},"Очистка поверхности стен щетками","м2",7.43]
[102,"Обеспыливание поверхности стен","м2",7.43]
[103,"Обезжиривание поверхностей стен","м2",7.43]
[104,"Огрунтовка металлических поверхностей в 2 слоя","м2",4.18]
[105,"Выравнивание поверхности стен цементно-песчаным раствором М50, толщиной 10 мм","м3",7.0000000000000007E-2]
[106,"Зачеканка стен под уголками и полосами цементно-песчаным раствором М50, толщиной 10 мм","м3",0.03]
[107,"Устройство подливки цементно-песчаным раствором М200","м3",0.19]
[null,"Усиление стены УС-3.1"]
[{"$f":"A134+1","v":108},"Усиление конструктивных элементов: стен кирпичных стальными обоймами","кг",186.22,null,"В том числе элементы обойм:\n- Сталь полосовая (100х8 мм), общий вес –  (105,5+67,07)=172,57 кг;\n- Шпилька резьбовая STARFIX М16х660 (Класс прочности 8.8), общий вес –12,51 кг, 12 шт.;\n- Гайка стальная оцинкованная сферическая для анкерного стержня, диаметр 16 мм, общий вес – 0,90 кг, 24 шт.;\n- Шайбы оцинкованные, диаметр 16 мм, общий вес – 0,24 кг, 24 шт."]
[{"$f":"A136+1","v":109},"Сверление отверстий в стене Ø20 мм l=530 мм","шт.",12]
[{"$f":"A137+1","v":110},"Очистка поверхности стен щетками","м2",7.56]
[111,"Обеспыливание поверхности стен","м2",7.56]
[112,"Обезжиривание поверхностей стен","м2",7.56]
[113,"Огрунтовка металлических поверхностей в 2 слоя","м2",5.5]
[114,"Выравнивание поверхности стен цементно-песчаным раствором М50, толщиной 10 мм","м3",0.08]
[115,"Зачеканка стен под уголками и полосами цементно-песчаным раствором М50, толщиной 10 мм","м3",0.03]
[null,"Усиление стены УС-4.1/УС-4.3"]
[{"$f":"A143+1","v":116},"Усиление конструктивных элементов: стен кирпичных стальными обоймами","кг",1192.48,null,"В том числе элементы обойм:\n- Сталь полосовая (100х8 мм), общий вес – (16,2+10,55+33,54)*8=482,32 кг;\n- Сталь угловая равнополочная, марка стали: Ст3пс, шириной полок 100-100 мм, общий вес – 65,42*8=521,6 кг;\n- Шпилька резьбовая STARFIX М16х890 (Класс прочности 8.8), общий вес – 16,87*8=134,96 кг, 96 шт.;\n- Гайка стальная оцинкованная сферическая для анкерного стержня, диаметр 16 мм, общий вес – 0,45*8= 3,6 кг, 96 шт.;\n- Шайбы оцинкованные, диаметр 16 мм, общий вес – 0,12*8=0,96 кг, 96 шт.;\n-  Сталь арматурная рифленая свариваемая, класс А500С, диаметр 12 мм, общий вес – 4,44*6=26,64 кг;\n-  Сталь арматурная рифленая свариваемая, класс А500С, диаметр 8 мм, общий вес – 3,44*6=20,64 кг"]
[{"$f":"A145+1","v":117},"Сверление отверстий в стене Ø20 мм l=530 мм, l=270 мм","шт.",128]
[{"$f":"A146+1","v":118},"Очистка поверхности стен щетками","м2",58.43]
[119,"Обеспыливание поверхности стен","м2",58.43]
[120,"Обезжиривание поверхностей стен","м2",58.43]
[121,"Огрунтовка металлических поверхностей в 2 слоя","м2",32.44]
[122,"Частичный демонтаж кирпичной кладки","м3",2.87]
[123,"Кладка перегородок из кирпича (КР-р-по250х120х65/1НФ/150/2.0/75)","м3",3.16]
[124,"Выравнивание поверхности стен цементно-песчаным раствором М50, толщиной 10 мм","м3",0.57999999999999996]
[125,"Зачеканка стен под уголками и полосами цементно-песчаным раствором М50, толщиной 10 мм","м3",0.14000000000000001]
[126,"Зачеканка трещин между стеной и колонной цементно-песчаным раствором М200","м3",0.1]
[null,"Примыкание колонны к стеновой панели"]
[{"$f":"A155+1","v":127},"Устройство уплотнителя в примыкании колонны к стеновым панелям","м.п.",73]
[{"$f":"A157+1","v":128},"Заделка примыкания колонны к стеновым панелям цементно-песчаным раствором М200","м3",0.39]
[null,"Усиление примыкания колонн каркаса к кирпичным стенам 4-го этажа"]
[null,"Усиление стены УС-2.2"]
[{"$f":"A158+1","v":129},"Усиление конструктивных элементов: стен кирпичных стальными обоймами","кг",498.5,null,"В том числе элементы обойм:\n- Сталь полосовая (100х8 мм), общий вес –  (91,44+43,33+22,42)*2=314,38;\n- Сталь угловая равнополочная, марка стали: Ст3пс, шириной полок 100-100 мм, общий вес – 84,53*2=169,06 кг;\n- Шпилька резьбовая STARFIX М16х620 (Класс прочности 8.8), общий вес –6,86*2= 13,72 кг, 14 шт.;\n- Гайка стальная оцинкованная сферическая для анкерного стержня, диаметр 16 мм, общий вес – 1,06 кг, 28 шт.;\n- Шайбы оцинкованные, диаметр 16 мм, общий вес – 0,28 кг, 28 шт."]
[{"$f":"A161+1","v":130},"Частичный демонтаж кирпичной кладки","м3",0.25]
[{"$f":"A162+1","v":131},"Сверление отверстий в стене Ø20 мм l=530 мм","шт.",12]
[132,"Очистка поверхности стен щетками","м2",18.55]
[133,"Обеспыливание поверхности стен","м2",18.55]
[134,"Обезжиривание поверхностей стен","м2",18.55]
[135,"Огрунтовка металлических поверхностей в 2 слоя","м2",10.01]
[136,"Выравнивание поверхности стен цементно-песчаным раствором М50, толщиной 10 мм","м3",0.19]
[137,"Зачеканка стен под уголками и полосами цементно-песчаным раствором М50, толщиной 10 мм","м3",7.0000000000000007E-2]
[138,"Устройство подливки цементно-песчаным раствором М200","м3",0.24]
[null,"Усиление стены УС-4.2/УС-4.4"]
[{"$f":"A170+1","v":139},"Усиление конструктивных элементов: стен кирпичных стальными обоймами","кг",1308.56,null,"В том числе элементы обойм:\n- Сталь полосовая (100х8 мм), общий вес –  (18,9+12,31+43,33)*7=521,78 кг;\n- Сталь угловая равнополочная, марка стали: Ст3пс, шириной полок 100-100 мм, общий вес – 84,53*7=591,71 кг;\n- Шпилька резьбовая STARFIX М16х890 (Класс прочности 8.8), общий вес – 19,69*7=137,83 кг, 98 шт.;\n- Гайка стальная оцинкованная сферическая для анкерного стержня, диаметр 16 мм, общий вес – 0,53*7= 3,71 кг, 98 шт.;\n- Шайбы оцинкованные, диаметр 16 мм, общий вес – 0,14*7=0,98 кг, 98 шт.;\n-  Сталь арматурная рифленая свариваемая, класс А500С, диаметр 12 мм, общий вес – 5,77*5=28,85 кг;\n-  Сталь арматурная рифленая свариваемая, класс А500С, диаметр 8 мм, общий вес – 4,74*5=23,7 кг"]
[{"$f":"A172+1","v":140},"Сверление отверстий в стене Ø20 мм l=530 мм, l=270 мм","шт.",128]
[{"$f":"A173+1","v":141},"Очистка поверхности стен щетками","м2",68.430000000000007]
[142,"Обеспыливание поверхности стен","м2",68.430000000000007]
[143,"Обезжиривание поверхностей стен","м2",68.430000000000007]
[144,"Огрунтовка металлических поверхностей в 2 слоя","м2",35.94]
[145,"Частичный демонтаж кирпичной кладки","м3",3.1]
[146,"Кладка перегородок из кирпича (КР-р-по250х120х65/1НФ/150/2.0/75)","м3",3.41]
[147,"Выравнивание поверхности стен цементно-песчаным раствором М50, толщиной 10 мм","м3",0.68]
[null,"Примыкание колонны к стеновой панели"]
[{"$f":"A180+1","v":148},"Устройство уплотнителя в примыкании колонны к стеновым панелям","м.п.",93.1]
[{"$f":"A182+1","v":149},"Заделка примыкания колонны к стеновым панелям цементно-песчаным раствором М200","м3",0.49]
[null,"Усиление примыкания колонн каркаса к кирпичным стенам кровли"]
[null,"Усиление стены УС-4"]
[{"$f":"A183+1","v":150},"Усиление конструктивных элементов: стен кирпичных стальными обоймами","кг",307.02,null,"В том числе элементы обойм:\n- Сталь полосовая (100х8 мм), общий вес –  (16,2+10,55+34,16)*2=121,82 кг;\n- Сталь угловая равнополочная, марка стали: Ст3пс, шириной полок 100-100 мм, общий вес – 66,64*2=133,28 кг;\n- Шпилька резьбовая STARFIX М16х890 (Класс прочности 8.8), общий вес – 16,87*2=33,74 кг, 24 шт.;\n- Гайка стальная оцинкованная сферическая для анкерного стержня, диаметр 16 мм, общий вес – 0,45*2= 0,90 кг, 24 шт.;\n- Шайбы оцинкованные, диаметр 16 мм, общий вес – 0,12*2=0,24 кг, 24 шт.;\n-  Сталь арматурная рифленая свариваемая, класс А500С, диаметр 12 мм, общий вес – 4,65*2=9,3 кг;\n-  Сталь арматурная рифленая свариваемая, класс А500С, диаметр 8 мм, общий вес – 3,87*2=7,74 кг"]
[{"$f":"A186+1","v":151},"Сверление отверстий в стене Ø20 мм l=540 мм, l=270 мм","шт.",60]
[{"$f":"A187+1","v":152},"Очистка поверхности стен щетками","м2",11.5]
[153,"Обеспыливание поверхности стен","м2",11.5]
[154,"Обезжиривание поверхностей стен","м2",11.5]
[155,"Огрунтовка металлических поверхностей в 2 слоя","м2",24.69]
[156,"Частичный демонтаж кирпичной кладки","м3",0.78]
[157,"Кладка перегородок из кирпича (КР-р-по250х120х65/1НФ/150/2.0/75)","м3",0.86]
[158,"Выравнивание поверхности стен цементно-песчаным раствором М50, толщиной 10 мм","м3",0.11]
[159,"Зачеканка стен под уголками и полосами цементно-песчаным раствором М50, толщиной 10 мм","м3",0.11]
[160,"Зачеканка трещин между стеной и колонной цементно-песчаным раствором М200","м3",0.11]
[null,"Устройство отмостки и крылец"]
[null,"Устройство отмостки"]
[{"$f":"A196+1","v":161},"Разработка грунта вручную, h=0,38 м","м3",30.4]
[{"$f":"A199+1","v":162},"Перевозка грузов I класса автомобилями-самосвалами грузоподъемностью 10 т работающих вне карьера на расстояние до 47 км","т",34.200000000000003]
[{"$f":"A200+1","v":163},"Погрузка при автомобильных перевозках мусора строительного с погрузкой вручную","т",34.200000000000003]
[164,"Обратная засыпка грунта вручную, h=0,38 м","м3",11.4]
[165,"Уплотнение грунта пневматическими трамбовками, группа грунтов: 1-2","м3",11.4]
[166,"Устройство щебеночного основания под фундамент из щебня М400 фр. 20-40","м3",2.8]
[167,"Установка бортовых камней бетонных БР 100.20.8","шт.",57]
[168,"Устройство гидроизоляции однокомпонентным высокомодульным полиуретановым герметиком","м2",0.42]
[169,"Устройство песчаного основания под отмостку","м3",11.35]
[170,"Устройство щебеночного основания под отмостку","м2",45.4]
[171,"Устройство асфальтобетонных покрытий из асфальтобетона песчаного, тип Д, марка III - 40 мм","м2",45.4]
[172,"Устройство асфальтобетонных покрытий из асфальтобетона крупнозернистого, марка I  - 40 мм ","м2",45.4]
[null,"Устройство основания крылец"]
[{"$f":"A210+1","v":173},"Разработка грунта вручную, h=0,35 м","м3",9.8000000000000007]
[{"$f":"A212+1","v":174},"Перевозка грузов I класса автомобилями-самосвалами грузоподъемностью 10 т работающих вне карьера на расстояние до 47 км","т",12.6]
[{"$f":"A213+1","v":175},"Погрузка при автомобильных перевозках мусора строительного с погрузкой вручную","т",12.6]
[176,"Утилизация строительного мусора",{"$f":"C214","v":"т"},{"$f":"D214","v":12.6}]
[177,"Обратная засыпка грунта вручную, h=0,35 м","м3",2.8]
[178,"Уплотнение грунта пневматическими трамбовками, группа грунтов: 1-2","м3",2.8]
[179,"Устройство изоляции экструзионным пенополистиролом 20х100 мм","м. п.",15]
[180,"Устройство песчаного основания под крыльцо","м3",5.94]
[181,"Устройство бетонного основания, армированного сеткой","м3",1.98]
[null,"Фасад"]
[null,"Ремонт вертикальных и горизонтальных стыков стеновых панелей"]
[{"$f":"A220+1","v":182},"Очистка поверхности стыков щетками","м2",4]
[{"$f":"A223+1","v":183},"Обеспыливание поверхности стыков","м2",4]
[{"$f":"A224+1","v":184},"Обезжиривание поверхностей стыков","м2",4]
[185,"Устройство полимерной самоклеящейся ленты","м. п.",79]
[186,"Заделка стыков монтажной пеной ТЕХНОНИКОЛЬ 65 MAXIMUM","м. п.",79]
[187,"Устройство уплотнителя (шнур Вилатерм 60)","м. п.",79]
[188,"Гидроизоляция стыков герметиком ТЕХНОНИКОЛЬ №45","м. п.",79]
[189,"Заделка стыков цементно-песчаным раствором М150","м3",0.16]
[null,"Защита металлических конструкций от коррозии"]
[{"$f":"A230+1","v":190},"Очистка металлических поверхностей щетками","м2",22.8]
[{"$f":"A232+1","v":191},"Обеспыливание металлических поверхностей","м2",22.8]
[{"$f":"A233+1","v":192},"Обезжиривание металлических поверхностей","м2",22.8]
[193,"Огрунтовка металлических поверхностей в 2 слоя","м2",22.8]
[null,"Восстановление кирпичной кладки Фасад 1-16, Фасад А-Д, Фасад Д-А"]
[{"$f":"A235+1","v":194},"Сверление отверстий в стене Ø10 мм l=250 мм","шт.",38]
[{"$f":"A237+1","v":195},"Армирование кладки стен арматурой Ø8 А240 l=250 мм","кг",3.76]
[{"$f":"A238+1","v":196},"Очистка поверхности стен щетками","м2",5.2]
[197,"Обеспыливание поверхности стен","м2",5.2]
[198,"Обезжиривание поверхностей стен","м2",5.2]
[199,"Устройство металлической сетки сварной 50х50х4 мм","м2",5.2]
[200,"Выравнивание кирпичных стен ремонтной смесью КСГ ПРО Барьер, толщиной 70 мм","м2",5.2]
[null,"Восстановление швов кирпичной кладки"]
[{"$f":"A243+1","v":201},"Очистка поверхности швов щетками","м2",2.7]
[{"$f":"A245+1","v":202},"Обеспыливание поверхности швов","м2",2.7]
[{"$f":"A246+1","v":203},"Расшивка швов кирпичной кладки","м. п.",84]
[null,"Восстановление кирпичной кладки Фасад 16-1"]
[{"$f":"A247+1","v":204},"Сверление отверстий в стене Ø10 мм l=250 мм","шт.",11]
[{"$f":"A249+1","v":205},"Армирование кладки стен и других конструкций","кг",1.08]
[{"$f":"A250+1","v":206},"Очистка поверхности стен щетками","м2",1.7]
[207,"Обеспыливание поверхности стен","м2",1.7]
[208,"Обезжиривание поверхностей стен","м2",1.7]
[209,"Устройство металлической сетки сварной 50х50х4 мм","м2",1.7]
[210,"Выравнивание кирпичных стен ремонтной смесью КСГ ПРО Барьер, толщиной 70 мм","м2",1.7]
[null,"Восстановление цементно-песчаного раствора кирпичной кладки Фасад 16-1"]
[{"$f":"A255+1","v":211},"Очистка поверхности стен щетками","м2",9.98]
[{"$f":"A257+1","v":212},"Обеспыливание поверхности стен","м2",9.98]
[{"$f":"A258+1","v":213},"Обезжиривание поверхностей стен","м2",9.98]
[214,"Восстановление цементно-песчаного раствора кирпичной кладки","м2",9.98]
[null,"Узел приварки закладной детали стеновой панели"]
[{"$f":"A260+1","v":215},"Приварка закладной детали","шт.",1]
[{"$f":"A262+1","v":216},"Очистка поверхности щетками","м2",0.1]
[{"$f":"A263+1","v":217},"Обеспыливание поверхности","м2",0.1]
[218,"Обезжиривание поверхностей","м2",0.1]
[219,"Огрунтовка металлических поверхностей в 2 слоя","м2",0.1]
[null,"Усиление отверстий в стенах"]
[null,"1 этаж"]
[null,"Усиление отверстия №1"]
[{"$f":"A266+1","v":220},"Усиление конструктивных элементов: стен кирпичных стальными обоймами","кг",161.28,null,"В том числе элементы обойм:\n- Сталь полосовая (100х8 мм), общий вес –  21,84*2=43,68 кг;\n- Сталь угловая равнополочная, марка стали: Ст3пс, шириной полок 100-100 мм, общий вес – 58,80*2=117,6 кг."]
[{"$f":"A270+1","v":221},"Очистка поверхности щетками","м2",3.52]
[{"$f":"A271+1","v":222},"Обеспыливание поверхности","м2",3.52]
[223,"Обезжиривание поверхностей","м2",3.52]
[224,"Огрунтовка металлических поверхностей в 2 слоя","м2",5.24]
[225,"Частичный демонтаж кирпичной кладки","м3",0.14000000000000001]
[226,"Выравнивание поверхности стен цементно-песчаным раствором М50, толщиной 10 мм","м3",0.04]
[227,"Зачеканка стен под уголками и полосами цементно-песчаным раствором М50, толщиной 10 мм","м3",0.02]
[null,"Усиление отверстия №2"]
[{"$f":"A277+1","v":228},"Усиление конструктивных элементов: стен кирпичных стальными обоймами","кг",90.48,null,"В том числе элементы обойм:\n- Сталь полосовая (100х8 мм), общий вес – 21,84 кг;\n- Сталь угловая равнополочная, марка стали: Ст3пс, шириной полок 100-100 мм, общий вес – 68,64 кг."]
[{"$f":"A279+1","v":229},"Очистка поверхности щетками","м2",2.1800000000000002]
[{"$f":"A280+1","v":230},"Обеспыливание поверхности","м2",2.1800000000000002]
[231,"Обезжиривание поверхностей","м2",2.1800000000000002]
[232,"Огрунтовка металлических поверхностей за один раз: грунтовкой АК-070 (2 раза)","м2",5.87]
[233,"Частичный демонтаж кирпичной кладки","м3",0.11]
[234,"Выравнивание поверхности стен цементно-песчаным раствором М50, толщиной 10 мм","м3",0.2]
[235,"Зачеканка стен под уголками и полосами цементно-песчаным раствором М50, толщиной 10 мм","м3",0.01]
[null,"2 этаж"]
[null,"Усиление отверстия №3"]
[{"$f":"A286+1","v":236},"Усиление конструктивных элементов: стен кирпичных стальными обоймами","кг",143.09,null,"В том числе элементы обойм:\n- Сталь полосовая (100х8 мм), общий вес –  40,19 кг;\n- Сталь угловая равнополочная, марка стали: Ст3пс, шириной полок 100-100 мм, общий вес – 34,30+68,60=102,9 кг."]
[{"$f":"A289+1","v":237},"Очистка поверхности щетками","м2",3.41]
[{"$f":"A290+1","v":238},"Обеспыливание поверхности","м2",3.41]
[239,"Обезжиривание поверхностей","м2",3.41]
[240,"Огрунтовка металлических поверхностей в 2 слоя","м2",2.4]
[241,"Частичный демонтаж кирпичной кладки","м3",0.23]
[242,"Выравнивание поверхности стен цементно-песчаным раствором М50, толщиной 10 мм","м3",0.03]
[243,"Зачеканка стен под уголками и полосами цементно-песчаным раствором М50, толщиной 10 мм","м3",0.02]
[null,"Ремонт (замена) лицевой кладки в осях 1/Б-В"]
[{"$f":"A296+1","v":244},"Частичный демонтаж кирпичной кладки","м3",0.9]
[{"$f":"A298+1","v":245},"Разработка грунта вручную, h=0,35 м","м3",0.65]
[{"$f":"A299+1","v":246},"Демонтаж монолитного участка (балка)","шт.",1]
[247,"Демонтаж бетонной подливки фундамента","м3",0.11]
[248,"Сверление отверстий в стене Ø10 мм l=200 мм;","шт.",45]
[249,"Сверление отверстий в балке и колоннах Ø10 мм l=60 мм","шт.",25]
[250,"Очистка поверхности щетками","м2",8.24]
[251,"Обеспыливание поверхности","м2",8.24]
[252,"Обезжиривание поверхностей","м2",8.24]
[253,"Укладка фундаментной балки 1БФ24","шт.",1]
[254,"Обратная засыпка грунта вручную, h=0,15 м","м3",0.4]
[255,"Перевозка грузов I класса автомобилями-самосвалами грузоподъемностью 10 т работающих вне карьера на расстояние до 47 км","т",0.45]
[256,"Погрузка при автомобильных перевозках мусора строительного с погрузкой вручную","т",0.45]
[257,"Утилизация строительного мусора",{"$f":"C310","v":"т"},{"$f":"D310","v":0.45}]
[258,"Устройство гидроизоляции фундаментов в 1 слой из рубероида РКП 350","м2",1.2]
[259,"Кладка стен кирпичных (КР-л-пу 250х120х65/1НФ/150/1,2/75)","м3",1]
[260,"Армирование кладки стен арматурой Ø8 А500С l=310 мм","кг",5.51]
[261,"Установка распорных анкеров М8х60","шт.",25]
[262,"Установка шурупов по кирпичу 7,5x92","шт.",25]
[263,"Установка гибких связей оцинкованных Bever MV 300/7","шт.",25]
[264,"Устройство изоляции из минеральной ваты p=34 кг/м³","м2",0.28999999999999998]
[265,"Устройство уплотнителя (шнур Вилатерм 30)","м.п.",2.4]
[null,"Отделочные работы фасада"]
[{"$f":"A319+1","v":266},"Установка и разборка наружных инвентарных лесов высотой до 16 м","м2",3064.16]
[{"$f":"A321+1","v":267},"Очистка поверхности фасадов","м2",220]
[{"$f":"A322+1","v":268},"Выравнивание поверхности цементной штукатуркой Церезит СТ 24 - 10 мм","м2",220]
[269,"Огрунтовка поверхности фасадов грунтовкой глубокого проникновения ТЕХНОНИКОЛЬ 020","м2",220]
[270,"Сверление отверстий в стене Ø10 мм l=120 мм, l=50 мм","шт.",2110]
[271,"Устройство утеплителя с помощью штукатурно-клеевой смеси ТЕХНОНИКОЛЬ 210","м2",232]
[272,"Выравнивание поверхности фасадов штукатурно-клеевой смесью в 2 слоя ТЕХНОНИКОЛЬ 210, армированной стеклосеткой и угловым ПВХ профилем","м2",232]
[273,"Огрунтовка поверхности фасадов грунтовкой универсальной ТЕХНОНИКОЛЬ 010","м2",232]
[274,"Выравнивание поверхности фасадов декоративной минеральной штукатуркой ТЕХНОНИКОЛЬ 301","м2",232]
[275,"Окрашивание фасадов краской фасадной силиконовой ТЕХНОНИКОЛЬ 901 в 2 слоя","м2",232]
[null,"Вывоз мусора"]
[{"$f":"A330+1","v":276},"Погрузо-разгрузочные работы при автомобильных перевозках: Погрузка мусора строительного с погрузкой вручную","т",27.321999999999999]
[{"$f":"A332+1","v":277},"Перевозка грузов I класса автомобилями-самосвалами грузоподъемностью 10 т работающих вне карьера на расстояние до 47 км","т",27.321999999999999]
[{"$f":"A333+1","v":278},"Утилизация строительного мусора",{"$f":"C333","v":"т"},27.321999999999999]
[null,"КЖ \"Усиление основных конструкций АБК цеха М14\" на территории АО \"Коломенский завод\", расположенного по адресу:\nМосковская область, г. Коломна, ул. Партизан, 42 (066-04.24-М14-КЖ)"]
[{"$f":"A334+1","v":279},"Демонтаж непрочных слоев бетона","м3",0.34]
[{"$f":"A336+1","v":280},"Очистка поверхности щетками","м2",31.7]
[{"$f":"A337+1","v":281},"Обеспыливание поверхности","м2",31.7]
[282,"Приготовление безусадочных, быстротвердеющих составов тиксотропного типа однокомпонентных: вручную","м3",5.7999999999999996E-3]
[283,"Нанесение антикоррозионной смеси Ceresit CD 30 толщ. 1 мм","м2",5.8]
[284,"Приготовление безусадочных, быстротвердеющих составов тиксотропного типа однокомпонентных: вручную","м3",0.67]
[285,"Выравнивание поверхности ремонтной смесью Ceresit CD 22 толщ. 50 мм","м2",6.7]
[286,"Приготовление безусадочных, быстротвердеющих составов тиксотропного типа однокомпонентных: вручную","м3",3.3500000000000002E-2]
[287,"Выравнивание поверхности шпатлевкой Ceresit CD 24 толщ. 5 мм","м2",6.7]
[null,"Участки без оголённой арматуры 1 этаж"]
[{"$f":"A344+1","v":288},"Демонтаж непрочных слоев бетона","м3",0.13]
[{"$f":"A346+1","v":289},"Очистка поверхности щетками","м2",58.2]
[{"$f":"A347+1","v":290},"Обеспыливание поверхности","м2",58.2]
[291,"Приготовление безусадочных, быстротвердеющих составов тиксотропного типа однокомпонентных: вручную","м3",5.3E-3]
[292,"Нанесение антикоррозионной смеси Ceresit CD 30 толщ. 1 мм","м2",5.3]
[293,"Приготовление безусадочных, быстротвердеющих составов тиксотропного типа однокомпонентных: вручную","м3",0.123]
[294,"Выравнивание поверхности ремонтной смесью Ceresit CD 22 толщ. 10 мм","м2",12.3]
[295,"Приготовление безусадочных, быстротвердеющих составов тиксотропного типа однокомпонентных: вручную","м3",6.1499999999999999E-2]
[296,"Выравнивание поверхности шпатлевкой Ceresit CD 24 толщ. 5 мм","м2",12.3]
[null,"Участки с оголённой арматурой 2 этаж"]
[{"$f":"A354+1","v":297},"Демонтаж непрочных слоев бетона","м3","0,08 м3"]
[{"$f":"A356+1","v":298},"Очистка поверхности щетками","м2",7]
[{"$f":"A357+1","v":299},"Обеспыливание поверхности","м2",7]
[300,"Приготовление безусадочных, быстротвердеющих составов тиксотропного типа однокомпонентных: вручную","м3",1.2999999999999999E-3]
[301,"Нанесение антикоррозионной смеси Ceresit CD 30 толщ. 1 мм","м2",1.3]
[302,"Приготовление безусадочных, быстротвердеющих составов тиксотропного типа однокомпонентных: вручную","м3",7.4999999999999997E-2]
[303,"Выравнивание поверхности ремонтной смесью Ceresit CD 22 толщ. 50 мм","м2",1.5]
[304,"Приготовление безусадочных, быстротвердеющих составов тиксотропного типа однокомпонентных: вручную","м3",7.4999999999999997E-3]
[305,"Выравнивание поверхности шпатлевкой Ceresit CD 24 толщ. 5 мм","м2",1.5]
[null,"Участки без оголённой арматуры 2 этаж"]
[{"$f":"A364+1","v":306},"Демонтаж непрочных слоев бетона","м3",0.14000000000000001]
[{"$f":"A366+1","v":307},"Очистка поверхности щетками","м2",64.900000000000006]
[{"$f":"A367+1","v":308},"Обеспыливание поверхности","м2",64.900000000000006]
[309,"Приготовление безусадочных, быстротвердеющих составов тиксотропного типа однокомпонентных: вручную","м3",5.8999999999999999E-3]
[310,"Нанесение антикоррозионной смеси Ceresit CD 30 толщ. 1 мм","м2",5.9]
[311,"Приготовление безусадочных, быстротвердеющих составов тиксотропного типа однокомпонентных: вручную","м3",0.13700000000000001]
[312,"Выравнивание поверхности ремонтной смесью Ceresit CD 22 толщ. 10 мм","м2",13.7]
[313,"Приготовление безусадочных, быстротвердеющих составов тиксотропного типа однокомпонентных: вручную","м3",6.8500000000000005E-2]
[314,"Выравнивание поверхности шпатлевкой Ceresit CD 24 толщ. 5 мм","м2",13.7]
[null,"Участки с оголённой арматурой 3 этаж"]
[{"$f":"A374+1","v":315},"Демонтаж непрочных слоев бетона","м3",0.11]
[{"$f":"A376+1","v":316},"Очистка поверхности щетками","м2",9.6]
[{"$f":"A377+1","v":317},"Обеспыливание поверхности","м2",9.6]
[318,"Приготовление безусадочных, быстротвердеющих составов тиксотропного типа однокомпонентных: вручную","м3",1.8E-3]
[319,"Нанесение антикоррозионной смеси Ceresit CD 30 толщ. 1 мм","м2",1.8]
[320,"Приготовление безусадочных, быстротвердеющих составов тиксотропного типа однокомпонентных: вручную","м3",0.105]
[321,"Выравнивание поверхности ремонтной смесью Ceresit CD 22 толщ. 50 мм","м2",2.1]
[322,"Приготовление безусадочных, быстротвердеющих составов тиксотропного типа однокомпонентных: вручную","м3",1.0500000000000001E-2]
[323,"Выравнивание поверхности шпатлевкой Ceresit CD 24 толщ. 5 мм","м2",2.1]
[null,"Участки без оголённой арматуры 3 этаж"]
[{"$f":"A384+1","v":324},"Демонтаж непрочных слоев бетона","м3",0.12]
[{"$f":"A386+1","v":325},"Очистка поверхности щетками","м2",56.6]
[{"$f":"A387+1","v":326},"Обеспыливание поверхности","м2",56.6]
[327,"Приготовление безусадочных, быстротвердеющих составов тиксотропного типа однокомпонентных: вручную","м3",5.1000000000000004E-3]
[328,"Нанесение антикоррозионной смеси Ceresit CD 30 толщ. 1 мм","м2",5.0999999999999996]
[329,"Приготовление безусадочных, быстротвердеющих составов тиксотропного типа однокомпонентных: вручную","м3",0.11899999999999999]
[330,"Выравнивание поверхности ремонтной смесью Ceresit CD 22 толщ. 10 мм","м2",11.9]
[331,"Приготовление безусадочных, быстротвердеющих составов тиксотропного типа однокомпонентных: вручную","м3",5.9499999999999997E-2]
[332,"Выравнивание поверхности шпатлевкой Ceresit CD 24 толщ. 5 мм","м2",11.9]
[null,"Участки с оголённой арматурой 4 этаж"]
[{"$f":"A394+1","v":333},"Демонтаж непрочных слоев бетона","м3",0.3]
[{"$f":"A396+1","v":334},"Очистка поверхности щетками","м2",28]
[{"$f":"A397+1","v":335},"Обеспыливание поверхности","м2",28]
[336,"Приготовление безусадочных, быстротвердеющих составов тиксотропного типа однокомпонентных: вручную","м3",5.1000000000000004E-3]
[337,"Нанесение антикоррозионной смеси Ceresit CD 30 толщ. 1 мм","м2",5.0999999999999996]
[338,"Приготовление безусадочных, быстротвердеющих составов тиксотропного типа однокомпонентных: вручную","м3",0.29499999999999998]
[339,"Выравнивание поверхности ремонтной смесью Ceresit CD 22 толщ. 50 мм","м2",5.9]
[340,"Приготовление безусадочных, быстротвердеющих составов тиксотропного типа однокомпонентных: вручную","м3",2.9499999999999998E-2]
[341,"Выравнивание поверхности шпатлевкой Ceresit CD 24 толщ. 5 мм","м2",5.9]
[null,"Участки без оголённой арматуры 4 этаж"]
[{"$f":"A404+1","v":342},"Демонтаж непрочных слоев бетона","м3",0.52]
[{"$f":"A406+1","v":343},"Очистка поверхности щетками","м2",243.1]
[{"$f":"A406+1","v":343},"Обеспыливание поверхности","м2",243.1]
[{"$f":"A408+1","v":344},"Приготовление безусадочных, быстротвердеющих составов тиксотропного типа однокомпонентных: вручную","м3",2.1899999999999999E-2]
[{"$f":"A408+1","v":344},"Нанесение антикоррозионной смеси Ceresit CD 30 толщ. 1 мм","м2",21.9]
[{"$f":"A410+1","v":345},"Приготовление безусадочных, быстротвердеющих составов тиксотропного типа однокомпонентных: вручную","м3",0.51100000000000001]
[{"$f":"A410+1","v":345},"Выравнивание поверхности ремонтной смесью Ceresit CD 22 толщ. 10 мм","м2",51.1]
[{"$f":"A412+1","v":346},"Приготовление безусадочных, быстротвердеющих составов тиксотропного типа однокомпонентных: вручную","м3",0.2555]
[{"$f":"A412+1","v":346},"Выравнивание поверхности шпатлевкой Ceresit CD 24 толщ. 5 мм","м2",51.1]
[null,"Ремонт ригелей, полок д/ж перекрытия"]
[null,"Участки с оголённой арматурой 1 этаж"]
[{"$f":"A414+1","v":347},"Демонтаж непрочных слоев бетона","м3",0.46]
[{"$f":"A417+1","v":348},"Очистка поверхности щетками","м2",23.8]
[{"$f":"A418+1","v":349},"Обеспыливание поверхности","м2",23.8]
[350,"Приготовление безусадочных, быстротвердеющих составов тиксотропного типа однокомпонентных: вручную","м3",3.5700000000000003E-2]
[351,"Нанесение антикоррозионной смеси Ceresit CD 30 толщ. 1 мм","м2",35.700000000000003]
[352,"Приготовление безусадочных, быстротвердеющих составов тиксотропного типа однокомпонентных: вручную","м3",0.46]
[353,"Выравнивание поверхности ремонтной смесью Ceresit CD 22 толщ. 100 мм","м2",4.5999999999999996]
[354,"Приготовление безусадочных, быстротвердеющих составов тиксотропного типа однокомпонентных: вручную","м3",4.5499999999999999E-2]
[355,"Выравнивание поверхности шпатлевкой Ceresit CD 24 толщ. 5 мм","м2",9.1]
[null,"Участки без оголённой арматуры 1 этаж"]
[{"$f":"A425+1","v":356},"Демонтаж непрочных слоев бетона","м3",7.0000000000000007E-2]
[{"$f":"A427+1","v":357},"Очистка поверхности щетками","м2",18]
[{"$f":"A428+1","v":358},"Обеспыливание поверхности","м2",18]
[359,"Приготовление безусадочных, быстротвердеющих составов тиксотропного типа однокомпонентных: вручную","м3",8.9999999999999993E-3]
[360,"Нанесение антикоррозионной смеси Ceresit CD 30 толщ. 1 мм","м2",9]
[361,"Приготовление безусадочных, быстротвердеющих составов тиксотропного типа однокомпонентных: вручную","м3",6.9000000000000006E-2]
[362,"Выравнивание поверхности ремонтной смесью Ceresit CD 22 толщ. 10 мм","м2",6.9]
[363,"Приготовление безусадочных, быстротвердеющих составов тиксотропного типа однокомпонентных: вручную","м3",3.4500000000000003E-2]
[364,"Выравнивание поверхности шпатлевкой Ceresit CD 24 толщ. 5 мм","м2",6.9]
[null,"Участки с оголённой арматурой 2 этаж"]
[{"$f":"A435+1","v":365},"Демонтаж непрочных слоев бетона","м3",7.0000000000000007E-2]
[{"$f":"A437+1","v":366},"Очистка поверхности щетками","м2",3.2]
[{"$f":"A438+1","v":367},"Обеспыливание поверхности","м2",3.2]
[368,"Приготовление безусадочных, быстротвердеющих составов тиксотропного типа однокомпонентных: вручную","м3",4.7999999999999996E-3]
[369,"Нанесение антикоррозионной смеси Ceresit CD 30 толщ. 1 мм","м2",4.8]
[370,"Приготовление безусадочных, быстротвердеющих составов тиксотропного типа однокомпонентных: вручную","м3",7.0000000000000007E-2]
[371,"Выравнивание поверхности ремонтной смесью Ceresit CD 22 толщ. 100 мм","м2",0.7]
[372,"Приготовление безусадочных, быстротвердеющих составов тиксотропного типа однокомпонентных: вручную","м3",6.4999999999999997E-3]
[373,"Выравнивание поверхности шпатлевкой Ceresit CD 24 толщ. 5 мм","м2",1.3]
[null,"Участки без оголённой арматуры 2 этаж"]
[{"$f":"A445+1","v":374},"Демонтаж непрочных слоев бетона","м3",0.18]
[{"$f":"A447+1","v":375},"Очистка поверхности щетками","м2",46]
[{"$f":"A448+1","v":376},"Обеспыливание поверхности","м2",46]
[377,"Приготовление безусадочных, быстротвердеющих составов тиксотропного типа однокомпонентных: вручную","м3",2.3E-2]
[378,"Нанесение антикоррозионной смеси Ceresit CD 30 толщ. 1 мм","м2",23]
[379,"Приготовление безусадочных, быстротвердеющих составов тиксотропного типа однокомпонентных: вручную","м3",0.17499999999999999]
[380,"Выравнивание поверхности ремонтной смесью Ceresit CD 22 толщ. 10 мм","м2",17.5]
[381,"Приготовление безусадочных, быстротвердеющих составов тиксотропного типа однокомпонентных: вручную","м3",8.7499999999999994E-2]
[382,"Выравнивание поверхности шпатлевкой Ceresit CD 24 толщ. 5 мм","м2",17.5]
[null,"Участки с оголённой арматурой 3 этаж"]
[{"$f":"A455+1","v":383},"Демонтаж непрочных слоев бетона","м3",0.12]
[{"$f":"A457+1","v":384},"Очистка поверхности щетками","м2",5.8]
[{"$f":"A458+1","v":385},"Обеспыливание поверхности","м2",5.8]
[386,"Приготовление безусадочных, быстротвердеющих составов тиксотропного типа однокомпонентных: вручную","м3",8.6999999999999994E-3]
[387,"Нанесение антикоррозионной смеси Ceresit CD 30 толщ. 1 мм","м2",8.6999999999999993]
[388,"Приготовление безусадочных, быстротвердеющих составов тиксотропного типа однокомпонентных: вручную","м3",0.12]
[389,"Выравнивание поверхности ремонтной смесью Ceresit CD 22 толщ. 100 мм","м2",1.2]
[390,"Приготовление безусадочных, быстротвердеющих составов тиксотропного типа однокомпонентных: вручную","м3",1.15E-2]
[391,"Выравнивание поверхности шпатлевкой Ceresit CD 24 толщ. 5 мм","м2",2.2999999999999998]
[null,"Участки без оголённой арматуры 3 этаж"]
[{"$f":"A465+1","v":392},"Демонтаж непрочных слоев бетона","м3",0.05]
[{"$f":"A467+1","v":393},"Очистка поверхности щетками","м2",12]
[{"$f":"A468+1","v":394},"Обеспыливание поверхности","м2",12]
[395,"Приготовление безусадочных, быстротвердеющих составов тиксотропного типа однокомпонентных: вручную","м3",6.0000000000000001E-3]
[396,"Нанесение антикоррозионной смеси Ceresit CD 30 толщ. 1 мм","м2",6]
[397,"Приготовление безусадочных, быстротвердеющих составов тиксотропного типа однокомпонентных: вручную","м3",4.5999999999999999E-2]
[398,"Выравнивание поверхности ремонтной смесью Ceresit CD 22 толщ. 10 мм","м2",4.5999999999999996]
[399,"Приготовление безусадочных, быстротвердеющих составов тиксотропного типа однокомпонентных: вручную","м3",2.3E-2]
[400,"Выравнивание поверхности шпатлевкой Ceresit CD 24 толщ. 5 мм","м2",4.5999999999999996]
[null,"Участки с оголённой арматурой 4 этаж"]
[{"$f":"A475+1","v":401},"Демонтаж непрочных слоев бетона","м3",0.25]
[{"$f":"A477+1","v":402},"Очистка поверхности щетками","м2",13]
[{"$f":"A478+1","v":403},"Обеспыливание поверхности","м2",13]
[404,"Приготовление безусадочных, быстротвердеющих составов тиксотропного типа однокомпонентных: вручную","м3",1.95E-2]
[405,"Нанесение антикоррозионной смеси Ceresit CD 30 толщ. 1 мм","м2",19.5]
[406,"Приготовление безусадочных, быстротвердеющих составов тиксотропного типа однокомпонентных: вручную","м3",0.25]
[407,"Выравнивание поверхности ремонтной смесью Ceresit CD 22 толщ. 100 мм","м2",2.5]
[408,"Приготовление безусадочных, быстротвердеющих составов тиксотропного типа однокомпонентных: вручную","м3",2.5000000000000001E-2]
[409,"Выравнивание поверхности шпатлевкой Ceresit CD 24 толщ. 5 мм","м2",5]
[null,"Участки без оголённой арматуры 4 этаж"]
[{"$f":"A485+1","v":410},"Демонтаж непрочных слоев бетона","м3",0.22]
[{"$f":"A487+1","v":411},"Очистка поверхности щетками","м2",56.4]
[{"$f":"A488+1","v":412},"Обеспыливание поверхности","м2",56.4]
[413,"Приготовление безусадочных, быстротвердеющих составов тиксотропного типа однокомпонентных: вручную","м3",2.8199999999999999E-2]
[414,"Нанесение антикоррозионной смеси Ceresit CD 30 толщ. 1 мм","м2",28.2]
[415,"Приготовление безусадочных, быстротвердеющих составов тиксотропного типа однокомпонентных: вручную","м3",0.215]
[416,"Выравнивание поверхности ремонтной смесью Ceresit CD 22 толщ. 10 мм","м2",21.5]
[417,"Приготовление безусадочных, быстротвердеющих составов тиксотропного типа однокомпонентных: вручную","м3",0.1075]
[418,"Выравнивание поверхности шпатлевкой Ceresit CD 24 толщ. 5 мм","м2",21.5]
[null,"Ремонт колонн, д/ж"]
[null,"Участки колонн с оголённой арматурой 1 этаж"]
[{"$f":"A495+1","v":419},"Демонтаж непрочных слоев бетона","м3",0.06]
[{"$f":"A498+1","v":420},"Очистка поверхности щетками","м2",3.4]
[{"$f":"A499+1","v":421},"Обеспыливание поверхности","м2",3.4]
[422,"Приготовление безусадочных, быстротвердеющих составов тиксотропного типа однокомпонентных: вручную","м3",1.6999999999999999E-3]
[423,"Нанесение антикоррозионной смеси Ceresit CD 30 толщ. 1 мм","м2",1.7]
[424,"Приготовление безусадочных, быстротвердеющих составов тиксотропного типа однокомпонентных: вручную","м3",5.6000000000000001E-2]
[425,"Выравнивание поверхности ремонтной смесью Ceresit CD 22 толщ. 80 мм","м2",0.7]
[426,"Приготовление безусадочных, быстротвердеющих составов тиксотропного типа однокомпонентных: вручную","м3",7.0000000000000001E-3]
[427,"Выравнивание поверхности шпатлевкой Ceresit CD 24 толщ. 5 мм","м2",1.4]
[null,"Участки диафрагм с оголённой арматурой 1 этаж"]
[{"$f":"A506+1","v":428},"Демонтаж непрочных слоев бетона","м3",0.31]
[{"$f":"A508+1","v":429},"Очистка поверхности щетками","м2",29.4]
[{"$f":"A509+1","v":430},"Обеспыливание поверхности","м2",29.4]
[431,"Приготовление безусадочных, быстротвердеющих составов тиксотропного типа однокомпонентных: вручную","м3",5.3E-3]
[432,"Нанесение антикоррозионной смеси Ceresit CD 30 толщ. 1 мм","м2",5.3]
[433,"Приготовление безусадочных, быстротвердеющих составов тиксотропного типа однокомпонентных: вручную","м3",0.31]
[434,"Выравнивание поверхности ремонтной смесью Ceresit CD 22 толщ. 50 мм","м2",6.2]
[435,"Приготовление безусадочных, быстротвердеющих составов тиксотропного типа однокомпонентных: вручную","м3",3.1E-2]
[436,"Выравнивание поверхности шпатлевкой Ceresit CD 24 толщ. 5 мм","м2",6.2]
[null,"Участки колонн с оголённой арматурой 2 этаж"]
[{"$f":"A516+1","v":437},"Демонтаж непрочных слоев бетона","м3",0.03]
[{"$f":"A518+1","v":438},"Очистка поверхности щетками","м2",1.1000000000000001]
[{"$f":"A519+1","v":439},"Обеспыливание поверхности","м2",1.1000000000000001]
[440,"Приготовление безусадочных, быстротвердеющих составов тиксотропного типа однокомпонентных: вручную","м3",5.9999999999999995E-4]
[441,"Нанесение антикоррозионной смеси Ceresit CD 30 толщ. 1 мм","м2",0.6]
[442,"Приготовление безусадочных, быстротвердеющих составов тиксотропного типа однокомпонентных: вручную","м3",2.4E-2]
[443,"Выравнивание поверхности ремонтной смесью Ceresit CD 22 толщ. 80 мм","м2",0.3]
[444,"Приготовление безусадочных, быстротвердеющих составов тиксотропного типа однокомпонентных: вручную","м3",2.5000000000000001E-3]
[445,"Выравнивание поверхности шпатлевкой Ceresit CD 24 толщ. 5 мм","м2",0.5]
[null,"Участки диафрагм с оголённой арматурой 2 этаж"]
[{"$f":"A526+1","v":446},"Демонтаж непрочных слоев бетона","м3",0.33]
[{"$f":"A528+1","v":447},"Очистка поверхности щетками","м2",31.1]
[{"$f":"A529+1","v":448},"Обеспыливание поверхности","м2",31.1]
[449,"Приготовление безусадочных, быстротвердеющих составов тиксотропного типа однокомпонентных: вручную","м3",5.5999999999999999E-3]
[450,"Нанесение антикоррозионной смеси Ceresit CD 30 толщ. 1 мм","м2",5.6]
[451,"Приготовление безусадочных, быстротвердеющих составов тиксотропного типа однокомпонентных: вручную","м3",0.33]
[452,"Выравнивание поверхности ремонтной смесью Ceresit CD 22 толщ. 50 мм","м2",6.6]
[453,"Приготовление безусадочных, быстротвердеющих составов тиксотропного типа однокомпонентных: вручную","м3",3.3000000000000002E-2]
[454,"Выравнивание поверхности шпатлевкой Ceresit CD 24 толщ. 5 мм","м2",6.6]
[null,"Участки колонн с оголённой арматурой 3 этаж"]
[{"$f":"A536+1","v":455},"Демонтаж непрочных слоев бетона","м3",0.02]
[{"$f":"A538+1","v":456},"Очистка поверхности щетками","м2",0.6]
[{"$f":"A539+1","v":457},"Обеспыливание поверхности","м2",0.6]
[458,"Приготовление безусадочных, быстротвердеющих составов тиксотропного типа однокомпонентных: вручную","м3",2.9999999999999997E-4]
[459,"Нанесение антикоррозионной смеси Ceresit CD 30 толщ. 1 мм","м2",0.3]
[460,"Приготовление безусадочных, быстротвердеющих составов тиксотропного типа однокомпонентных: вручную","м3",1.6E-2]
[461,"Выравнивание поверхности ремонтной смесью Ceresit CD 22 толщ. 80 мм","м2",0.2]
[462,"Приготовление безусадочных, быстротвердеющих составов тиксотропного типа однокомпонентных: вручную","м3",1.5E-3]
[463,"Выравнивание поверхности шпатлевкой Ceresit CD 24 толщ. 5 мм","м2",0.3]
[null,"Участки диафрагм с оголённой арматурой 3 этаж"]
[{"$f":"A546+1","v":464},"Демонтаж непрочных слоев бетона","м3",0.31]
[{"$f":"A548+1","v":465},"Очистка поверхности щетками","м2",29]
[{"$f":"A549+1","v":466},"Обеспыливание поверхности","м2",29]
[467,"Приготовление безусадочных, быстротвердеющих составов тиксотропного типа однокомпонентных: вручную","м3",5.3E-3]
[468,"Нанесение антикоррозионной смеси Ceresit CD 30 толщ. 1 мм","м2",5.3]
[469,"Приготовление безусадочных, быстротвердеющих составов тиксотропного типа однокомпонентных: вручную","м3",0.30499999999999999]
[470,"Выравнивание поверхности ремонтной смесью Ceresit CD 22 толщ. 50 мм","м2",6.1]
[471,"Приготовление безусадочных, быстротвердеющих составов тиксотропного типа однокомпонентных: вручную","м3",3.0499999999999999E-2]
[472,"Выравнивание поверхности шпатлевкой Ceresit CD 24 толщ. 5 мм","м2",6.1]
[null,"Участки колонн с оголённой арматурой 4 этаж"]
[{"$f":"A556+1","v":473},"Демонтаж непрочных слоев бетона","м3",0.02]
[{"$f":"A558+1","v":474},"Очистка поверхности щетками","м2",0.6]
[{"$f":"A559+1","v":475},"Обеспыливание поверхности","м2",0.6]
[476,"Приготовление безусадочных, быстротвердеющих составов тиксотропного типа однокомпонентных: вручную","м3",2.9999999999999997E-4]
[477,"Нанесение антикоррозионной смеси Ceresit CD 30 толщ. 1 мм","м2",0.3]
[478,"Приготовление безусадочных, быстротвердеющих составов тиксотропного типа однокомпонентных: вручную","м3",1.6E-2]
[479,"Выравнивание поверхности ремонтной смесью Ceresit CD 22 толщ. 80 мм","м2",0.2]
[480,"Приготовление безусадочных, быстротвердеющих составов тиксотропного типа однокомпонентных: вручную","м3",1.5E-3]
[481,"Выравнивание поверхности шпатлевкой Ceresit CD 24 толщ. 5 мм","м2",0.3]
[null,"Участки диафрагм с оголённой арматурой 4 этаж"]
[{"$f":"A566+1","v":482},"Демонтаж непрочных слоев бетона","м3",0.41]
[{"$f":"A568+1","v":483},"Очистка поверхности щетками","м2",38.1]
[{"$f":"A569+1","v":484},"Обеспыливание поверхности","м2",38.1]
[485,"Приготовление безусадочных, быстротвердеющих составов тиксотропного типа однокомпонентных: вручную","м3",6.8999999999999999E-3]
[486,"Нанесение антикоррозионной смеси Ceresit CD 30 толщ. 1 мм","м2",6.9]
[487,"Приготовление безусадочных, быстротвердеющих составов тиксотропного типа однокомпонентных: вручную","м3",0.255]
[488,"Выравнивание поверхности ремонтной смесью Ceresit CD 22 толщ. 50 мм","м2",8.1]
[489,"Приготовление безусадочных, быстротвердеющих составов тиксотропного типа однокомпонентных: вручную","м3",4.0500000000000001E-2]
[490,"Выравнивание поверхности шпатлевкой Ceresit CD 24 толщ. 5 мм","м2",8.1]
[null,"Ремонт колонн выхода на кровлю"]
[null,"Участки колонн с оголённой арматурой (кровля)"]
[{"$f":"A576+1","v":491},"Демонтаж непрочных слоев бетона","м3",0.03]
[{"$f":"A579+1","v":492},"Очистка поверхности щетками","м2",1.1000000000000001]
[{"$f":"A580+1","v":493},"Обеспыливание поверхности","м2",1.1000000000000001]
[494,"Приготовление безусадочных, быстротвердеющих составов тиксотропного типа однокомпонентных: вручную","м3",5.9999999999999995E-4]
[495,"Нанесение антикоррозионной смеси Ceresit CD 30 толщ. 1 мм","м2",0.6]
[496,"Приготовление безусадочных, быстротвердеющих составов тиксотропного типа однокомпонентных: вручную","м3",2.4E-2]
[497,"Выравнивание поверхности ремонтной смесью Ceresit CD 22 толщ. 80 мм","м2",0.3]
[498,"Приготовление безусадочных, быстротвердеющих составов тиксотропного типа однокомпонентных: вручную","м3",2.5000000000000001E-3]
[499,"Выравнивание поверхности шпатлевкой Ceresit CD 24 толщ. 5 мм","м2",0.5]
[null,"Ремонт лестничной клетки в осях 1-3/В-Г"]
[null,"Участки л/к без оголённой арматуры 1 этаж"]
[{"$f":"A587+1","v":500},"Демонтаж непрочных слоев бетона","м3",0.02]
[{"$f":"A590+1","v":501},"Очистка поверхности щетками","м2",8.6999999999999993]
[{"$f":"A591+1","v":502},"Обеспыливание поверхности","м2",8.6999999999999993]
[503,"Приготовление безусадочных, быстротвердеющих составов тиксотропного типа однокомпонентных: вручную","м3",8.0000000000000004E-4]
[504,"Нанесение антикоррозионной смеси Ceresit CD 30 толщ. 1 мм","м2",0.8]
[505,"Приготовление безусадочных, быстротвердеющих составов тиксотропного типа однокомпонентных: вручную","м3",1.9E-2]
[506,"Выравнивание поверхности ремонтной смесью Ceresit CD 22 толщ. 10 мм","м2",1.9]
[507,"Приготовление безусадочных, быстротвердеющих составов тиксотропного типа однокомпонентных: вручную","м3",9.4999999999999998E-3]
[508,"Выравнивание поверхности шпатлевкой Ceresit CD 24 толщ. 5 мм","м2",1.9]
[null,"Участки л/к с оголённой арматурой 2 этаж"]
[{"$f":"A598+1","v":509},"Демонтаж непрочных слоев бетона","м3",0.01]
[{"$f":"A600+1","v":510},"Очистка поверхности щетками","м2",0.2]
[{"$f":"A601+1","v":511},"Обеспыливание поверхности","м2",0.2]
[512,"Приготовление безусадочных, быстротвердеющих составов тиксотропного типа однокомпонентных: вручную","м3",5.9999999999999995E-4]
[513,"Нанесение антикоррозионной смеси Ceresit CD 30 толщ. 1 мм","м2",0.6]
[514,"Приготовление безусадочных, быстротвердеющих составов тиксотропного типа однокомпонентных: вручную","м3",8.0000000000000002E-3]
[515,"Выравнивание поверхности ремонтной смесью Ceresit CD 22 толщ. 80 мм","м2",0.1]
[516,"Приготовление безусадочных, быстротвердеющих составов тиксотропного типа однокомпонентных: вручную","м3",1E-3]
[517,"Выравнивание поверхности шпатлевкой Ceresit CD 24 толщ. 5 мм","м2",0.2]
[null,"Участки л/к без оголённой арматуры 2 этаж"]
[{"$f":"A608+1","v":518},"Демонтаж непрочных слоев бетона","м3",0.03]
[{"$f":"A610+1","v":519},"Очистка поверхности щетками","м2",13.6]
[{"$f":"A611+1","v":520},"Обеспыливание поверхности","м2",13.6]
[521,"Приготовление безусадочных, быстротвердеющих составов тиксотропного типа однокомпонентных: вручную","м3",1.1999999999999999E-3]
[522,"Нанесение антикоррозионной смеси Ceresit CD 30 толщ. 1 мм","м2",1.2]
[523,"Приготовление безусадочных, быстротвердеющих составов тиксотропного типа однокомпонентных: вручную","м3",2.8000000000000001E-2]
[524,"Выравнивание поверхности ремонтной смесью Ceresit CD 22 толщ. 10 мм","м2",2.8]
[525,"Приготовление безусадочных, быстротвердеющих составов тиксотропного типа однокомпонентных: вручную","м3",1.4E-2]
[526,"Выравнивание поверхности шпатлевкой Ceresit CD 24 толщ. 5 мм","м2",2.8]
[null,"Участки л/к без оголённой арматуры 3 этаж"]
[{"$f":"A618+1","v":527},"Демонтаж непрочных слоев бетона","м3",0.03]
[{"$f":"A620+1","v":528},"Очистка поверхности щетками","м2",13.8]
[{"$f":"A621+1","v":529},"Обеспыливание поверхности","м2",13.8]
[530,"Приготовление безусадочных, быстротвердеющих составов тиксотропного типа однокомпонентных: вручную","м3",1.4E-3]
[531,"Нанесение антикоррозионной смеси Ceresit CD 30 толщ. 1 мм","м2",1.4]
[532,"Приготовление безусадочных, быстротвердеющих составов тиксотропного типа однокомпонентных: вручную","м3",0.03]
[533,"Выравнивание поверхности ремонтной смесью Ceresit CD 22 толщ. 10 мм","м2",3]
[534,"Приготовление безусадочных, быстротвердеющих составов тиксотропного типа однокомпонентных: вручную","м3",1.4999999999999999E-2]
[535,"Выравнивание поверхности шпатлевкой Ceresit CD 24 толщ. 5 мм","м2",3]
[null,"Участки л/к без оголённой арматуры 4 этаж"]
[{"$f":"A628+1","v":536},"Демонтаж непрочных слоев бетона","м3",0.03]
[{"$f":"A630+1","v":537},"Очистка поверхности щетками","м2",13.8]
[{"$f":"A631+1","v":538},"Обеспыливание поверхности","м2",13.8]
[539,"Приготовление безусадочных, быстротвердеющих составов тиксотропного типа однокомпонентных: вручную","м3",1.4E-3]
[540,"Нанесение антикоррозионной смеси Ceresit CD 30 толщ. 1 мм","м2",1.4]
[541,"Приготовление безусадочных, быстротвердеющих составов тиксотропного типа однокомпонентных: вручную","м3",0.03]
[542,"Выравнивание поверхности ремонтной смесью Ceresit CD 22 толщ. 10 мм","м2",3]
[543,"Приготовление безусадочных, быстротвердеющих составов тиксотропного типа однокомпонентных: вручную","м3",1.4999999999999999E-2]
[544,"Выравнивание поверхности шпатлевкой Ceresit CD 24 толщ. 5 мм","м2",3]
[null,"Участки л/к без оголённой арматуры выход на кровлю"]
[{"$f":"A638+1","v":545},"Демонтаж непрочных слоев бетона","м3",0.03]
[546,"Очистка поверхности щетками","м2",13.8]
[547,"Обеспыливание поверхности","м2",13.8]
[548,"Приготовление безусадочных, быстротвердеющих составов тиксотропного типа однокомпонентных: вручную","м3",1.4E-3]
[549,"Нанесение антикоррозионной смеси Ceresit CD 30 толщ. 1 мм","м2",1.4]
[550,"Приготовление безусадочных, быстротвердеющих составов тиксотропного типа однокомпонентных: вручную","м3",0.03]
[551,"Выравнивание поверхности ремонтной смесью Ceresit CD 22 толщ. 10 мм","м2",3]
[552,"Приготовление безусадочных, быстротвердеющих составов тиксотропного типа однокомпонентных: вручную","м3",1.4999999999999999E-2]
[553,"Выравнивание поверхности шпатлевкой Ceresit CD 24 толщ. 5 мм","м2",3]
[null,"Ремонт лестничной клетки в осях 9-10/А-В"]
[null,"Участки л/к без оголённой арматуры 1 этаж"]
[{"$f":"A648+1","v":554},"Демонтаж непрочных слоев бетона","м3",0.02]
[555,"Очистка поверхности щетками","м2",7.8]
[556,"Обеспыливание поверхности","м2",7.8]
[557,"Приготовление безусадочных, быстротвердеющих составов тиксотропного типа однокомпонентных: вручную","м3",8.0000000000000004E-4]
[558,"Нанесение антикоррозионной смеси Ceresit CD 30 толщ. 1 мм","м2",0.8]
[559,"Приготовление безусадочных, быстротвердеющих составов тиксотропного типа однокомпонентных: вручную","м3",1.7000000000000001E-2]
[560,"Выравнивание поверхности ремонтной смесью Ceresit CD 22 толщ. 10 мм","м2",1.7]
[561,"Приготовление безусадочных, быстротвердеющих составов тиксотропного типа однокомпонентных: вручную","м3",8.5000000000000006E-3]
[562,"Выравнивание поверхности шпатлевкой Ceresit CD 24 толщ. 5 мм","м2",1.7]
[null,"Участки л/к без оголённой арматуры 2 этаж"]
[{"$f":"A659+1","v":563},"Демонтаж непрочных слоев бетона","м3",0.04]
[564,"Очистка поверхности щетками","м2",15.6]
[565,"Обеспыливание поверхности","м2",15.6]
[566,"Приготовление безусадочных, быстротвердеющих составов тиксотропного типа однокомпонентных: вручную","м3",1.6000000000000001E-3]
[567,"Нанесение антикоррозионной смеси Ceresit CD 30 толщ. 1 мм","м2",1.6]
[568,"Приготовление безусадочных, быстротвердеющих составов тиксотропного типа однокомпонентных: вручную","м3",3.4000000000000002E-2]
[569,"Выравнивание поверхности ремонтной смесью Ceresit CD 22 толщ. 10 мм","м2",3.4]
[570,"Приготовление безусадочных, быстротвердеющих составов тиксотропного типа однокомпонентных: вручную","м3",1.7000000000000001E-2]
[571,"Выравнивание поверхности шпатлевкой Ceresit CD 24 толщ. 5 мм","м2",3.4]
[null,"Участки л/к без оголённой арматуры 3 этаж"]
[{"$f":"A669+1","v":572},"Демонтаж непрочных слоев бетона","м3",0.02]
[573,"Очистка поверхности щетками","м2",7.8]
[574,"Обеспыливание поверхности","м2",7.8]
[575,"Приготовление безусадочных, быстротвердеющих составов тиксотропного типа однокомпонентных: вручную","м3",8.0000000000000004E-4]
[576,"Нанесение антикоррозионной смеси Ceresit CD 30 толщ. 1 мм","м2",0.8]
[577,"Приготовление безусадочных, быстротвердеющих составов тиксотропного типа однокомпонентных: вручную","м3",1.7000000000000001E-2]
[578,"Выравнивание поверхности ремонтной смесью Ceresit CD 22 толщ. 10 мм","м2",1.7]
[579,"Приготовление безусадочных, быстротвердеющих составов тиксотропного типа однокомпонентных: вручную","м3",8.5000000000000006E-3]
[580,"Выравнивание поверхности шпатлевкой Ceresit CD 24 толщ. 5 мм","м2",1.7]
[null,"Ремонт узла опирания лестничной клетки"]
[{"$f":"A679+1","v":581},"Демонтаж кирпичной кладки","м3",0.01]
[582,"Сверление отверстия в стене Ø20 L=530","шт.",2]
[583,"Очистка поверхности щетками","м2",0.5]
[584,"Обеспыливание поверхности","м2",0.5]
[585,"Усиление конструктивных элементов: стен кирпичных стальными обоймами","кг",15.97]
[586,"Огрунтовка металлических поверхностей в 2 слоя","м2",0.4]
[587,"Устройство сетки металлической сварной 50х50х4 мм","м2",0.3]
[588,"Устройство бетонной подготовки из цементно-песчаного раствора М200","м3",0.03]
[null,"Ремонт лестничной клетки в осях 14-16/В-Г"]
[null,"Участки л/к без оголённой арматуры 1 этаж"]
[{"$f":"A688+1","v":589},"Демонтаж непрочных слоев бетона","м3",0.02]
[590,"Очистка поверхности щетками","м2",8.6999999999999993]
[591,"Обеспыливание поверхности","м2",8.6999999999999993]
[592,"Приготовление безусадочных, быстротвердеющих составов тиксотропного типа однокомпонентных: вручную","м3",8.0000000000000004E-4]
[593,"Нанесение антикоррозионной смеси Ceresit CD 30 толщ. 1 мм","м2",0.8]
[{"$f":"A695+1","v":594},"Приготовление безусадочных, быстротвердеющих составов тиксотропного типа однокомпонентных: вручную","м3",1.9E-2]
[595,"Выравнивание поверхности ремонтной смесью Ceresit CD 22 толщ. 10 мм","м2",1.9]
[596,"Приготовление безусадочных, быстротвердеющих составов тиксотропного типа однокомпонентных: вручную","м3",9.4999999999999998E-3]
[597,"Выравнивание поверхности шпатлевкой Ceresit CD 24 толщ. 5 мм","м2",1.9]
[null,"Участки л/к без оголённой арматуры 2 этаж"]
[{"$f":"A699+1","v":598},"Демонтаж непрочных слоев бетона","м3",0.03]
[599,"Очистка поверхности щетками","м2",13.8]
[600,"Обеспыливание поверхности","м2",13.8]
[601,"Приготовление безусадочных, быстротвердеющих составов тиксотропного типа однокомпонентных: вручную","м3",1.4E-3]
[602,"Нанесение антикоррозионной смеси Ceresit CD 30 толщ. 1 мм","м2",1.4]
[603,"Приготовление безусадочных, быстротвердеющих составов тиксотропного типа однокомпонентных: вручную","м3",0.03]
[604,"Выравнивание поверхности ремонтной смесью Ceresit CD 22 толщ. 10 мм","м2",3]
[605,"Приготовление безусадочных, быстротвердеющих составов тиксотропного типа однокомпонентных: вручную","м3",1.4999999999999999E-2]
[606,"Выравнивание поверхности шпатлевкой Ceresit CD 24 толщ. 5 мм","м2",3]
[null,"Участки л/к без оголённой арматуры 3 этаж"]
[{"$f":"A709+1","v":607},"Демонтаж непрочных слоев бетона","м3",0.03]
[608,"Очистка поверхности щетками","м2",13.8]
[609,"Обеспыливание поверхности","м2",13.8]
[610,"Приготовление безусадочных, быстротвердеющих составов тиксотропного типа однокомпонентных: вручную","м3",1.4E-3]
[611,"Нанесение антикоррозионной смеси Ceresit CD 30 толщ. 1 мм","м2",1.4]
[612,"Приготовление безусадочных, быстротвердеющих составов тиксотропного типа однокомпонентных: вручную","м3",0.03]
[613,"Выравнивание поверхности ремонтной смесью Ceresit CD 22 толщ. 10 мм","м2",3]
[614,"Приготовление безусадочных, быстротвердеющих составов тиксотропного типа однокомпонентных: вручную","м3",1.4999999999999999E-2]
[615,"Выравнивание поверхности шпатлевкой Ceresit CD 24 толщ. 5 мм","м2",3]
[null,"Участки л/к без оголённой арматуры 4 этаж"]
[{"$f":"A719+1","v":616},"Демонтаж непрочных слоев бетона","м3",0.02]
[617,"Очистка поверхности щетками","м2",6.9]
[618,"Обеспыливание поверхности","м2",6.9]
[619,"Приготовление безусадочных, быстротвердеющих составов тиксотропного типа однокомпонентных: вручную","м3",6.9999999999999999E-4]
[620,"Нанесение антикоррозионной смеси Ceresit CD 30 толщ. 1 мм","м2",0.7]
[621,"Приготовление безусадочных, быстротвердеющих составов тиксотропного типа однокомпонентных: вручную","м3",1.4999999999999999E-2]
[622,"Выравнивание поверхности ремонтной смесью Ceresit CD 22 толщ. 10 мм","м2",1.5]
[623,"Приготовление безусадочных, быстротвердеющих составов тиксотропного типа однокомпонентных: вручную","м3",7.4999999999999997E-3]
[624,"Выравнивание поверхности шпатлевкой Ceresit CD 24 толщ. 5 мм","м2",1.5]
[null,"Усиление отверстий"]
[null,"1 этаж"]
[null,"Усиление отверстия №1"]
[{"$f":"A729+1","v":625},"Демонтаж непрочных слоев бетона","м3",0.06]
[626,"Сверление отверстия в плите Ø20 L=220","шт.",4]
[627,"Очистка поверхности щетками","м2",1.7]
[628,"Обеспыливание поверхности","м2",1.7]
[629,"Приготовление безусадочных, быстротвердеющих составов тиксотропного типа однокомпонентных: вручную","м3",1.6999999999999999E-3]
[630,"Нанесение антикоррозионной смеси Ceresit CD 30 толщ. 1 мм","м2",1.7]
[631,"Приготовление безусадочных, быстротвердеющих составов тиксотропного типа однокомпонентных: вручную","м3",1.7000000000000001E-2]
[632,"Выравнивание поверхности ремонтной смесью Ceresit CD 22 толщ. 10 мм","м2",1.7]
[633,"Усиление конструктивных элементов: обрамление отверстий в перекрытии стальными обоймами","кг",70.03]
[634,"Огрунтовка металлических поверхностей в 2 слоя","м2",2.1]
[null,"Усиление отверстия №2.1"]
[{"$f":"A742+1","v":635},"Демонтаж непрочных слоев бетона","м3",0.1]
[636,"Сверление отверстия в плите Ø20 L=220","шт.",10]
[637,"Очистка поверхности щетками","м2",4.5]
[638,"Обеспыливание поверхности","м2",4.5]
[639,"Приготовление безусадочных, быстротвердеющих составов тиксотропного типа однокомпонентных: вручную","м3",4.4999999999999997E-3]
[640,"Нанесение антикоррозионной смеси Ceresit CD 30 толщ. 1 мм","м2",4.5]
[641,"Приготовление безусадочных, быстротвердеющих составов тиксотропного типа однокомпонентных: вручную","м3",4.4999999999999998E-2]
[642,"Выравнивание поверхности ремонтной смесью Ceresit CD 22 толщ. 10 мм","м2",4.5]
[643,"Усиление конструктивных элементов: обрамление отверстий в перекрытии стальными обоймами","кг",35.020000000000003]
[644,"Огрунтовка металлических поверхностей в 2 слоя","м2",5.5]
[null,"Усиление отверстия №2.2"]
[{"$f":"A753+1","v":645},"Демонтаж непрочных слоев бетона","м3",0.02]
[646,"Сверление отверстия в плите Ø20 L=220","шт.",2]
[647,"Очистка поверхности щетками","м2",0.9]
[648,"Обеспыливание поверхности","м2",0.9]
[649,"Приготовление безусадочных, быстротвердеющих составов тиксотропного типа однокомпонентных: вручную","м3",8.9999999999999998E-4]
[{"$f":"A759+1","v":650},"Нанесение антикоррозионной смеси Ceresit CD 30 толщ. 1 мм","м2",0.9]
[651,"Приготовление безусадочных, быстротвердеющих составов тиксотропного типа однокомпонентных: вручную","м3",8.9999999999999993E-3]
[652,"Выравнивание поверхности ремонтной смесью Ceresit CD 22 толщ. 10 мм","м2",0.9]
[653,"Усиление конструктивных элементов: обрамление отверстий в перекрытии стальными обоймами","кг",35.020000000000003]
[654,"Огрунтовка металлических поверхностей в 2 слоя","м2",1.1000000000000001]
[null,"Усиление отверстия №2.3"]
[{"$f":"A764+1","v":655},"Демонтаж непрочных слоев бетона","м3",0.02]
[656,"Сверление отверстия в плите Ø20 L=220","шт.",2]
[657,"Очистка поверхности щетками","м2",0.9]
[658,"Обеспыливание поверхности","м2",0.9]
[659,"Приготовление безусадочных, быстротвердеющих составов тиксотропного типа однокомпонентных: вручную","м3",8.9999999999999998E-4]
[660,"Нанесение антикоррозионной смеси Ceresit CD 30 толщ. 1 мм","м2",0.9]
[661,"Приготовление безусадочных, быстротвердеющих составов тиксотропного типа однокомпонентных: вручную","м3",8.9999999999999993E-3]
[662,"Выравнивание поверхности ремонтной смесью Ceresit CD 22 толщ. 10 мм","м2",0.9]
[663,"Усиление конструктивных элементов: обрамление отверстий в перекрытии стальными обоймами","кг",35.020000000000003]
[664,"Огрунтовка металлических поверхностей в 2 слоя","м2",1.1000000000000001]
[null,"Усиление отверстия №2.4"]
[{"$f":"A775+1","v":665},"Демонтаж непрочных слоев бетона","м3",0.02]
[666,"Сверление отверстия в плите Ø20 L=220","шт.",2]
[667,"Очистка поверхности щетками","м2",0.9]
[668,"Обеспыливание поверхности","м2",0.9]
[669,"Приготовление безусадочных, быстротвердеющих составов тиксотропного типа однокомпонентных: вручную","м3",8.9999999999999998E-4]
[670,"Нанесение антикоррозионной смеси Ceresit CD 30 толщ. 1 мм","м2",0.9]
[671,"Приготовление безусадочных, быстротвердеющих составов тиксотропного типа однокомпонентных: вручную","м3",8.9999999999999993E-3]
[672,"Выравнивание поверхности ремонтной смесью Ceresit CD 22 толщ. 10 мм","м2",0.9]
[673,"Усиление конструктивных элементов: обрамление отверстий в перекрытии стальными обоймами","кг",35.020000000000003]
[674,"Огрунтовка металлических поверхностей в 2 слоя","м2",1.1000000000000001]
[null,"Усиление отверстия №2.5"]
[{"$f":"A786+1","v":675},"Демонтаж непрочных слоев бетона","м3",0.04]
[676,"Сверление отверстия в плите Ø20 L=220","шт.",4]
[677,"Очистка поверхности щетками","м2",1.8]
[678,"Обеспыливание поверхности","м2",1.8]
[679,"Приготовление безусадочных, быстротвердеющих составов тиксотропного типа однокомпонентных: вручную","м3",1.8E-3]
[680,"Нанесение антикоррозионной смеси Ceresit CD 30 толщ. 1 мм","м2",1.8]
[681,"Приготовление безусадочных, быстротвердеющих составов тиксотропного типа однокомпонентных: вручную","м3",1.7999999999999999E-2]
[682,"Выравнивание поверхности ремонтной смесью Ceresit CD 22 толщ. 10 мм","м2",1.8]
[683,"Усиление конструктивных элементов: обрамление отверстий в перекрытии стальными обоймами","кг",35.020000000000003]
[684,"Огрунтовка металлических поверхностей в 2 слоя","м2",2.2000000000000002]
[null,"Усиление отверстия №3"]
[{"$f":"A797+1","v":685},"Демонтаж непрочных слоев бетона","м3",0.03]
[686,"Сверление отверстия в плите Ø20 L=220","шт.",2]
[687,"Очистка поверхности щетками","м2",1.1000000000000001]
[688,"Обеспыливание поверхности","м2",1.1000000000000001]
[689,"Приготовление безусадочных, быстротвердеющих составов тиксотропного типа однокомпонентных: вручную","м3",1.1000000000000001E-3]
[690,"Нанесение антикоррозионной смеси Ceresit CD 30 толщ. 1 мм","м2",1.1000000000000001]
[691,"Приготовление безусадочных, быстротвердеющих составов тиксотропного типа однокомпонентных: вручную","м3",1.0999999999999999E-2]
[692,"Выравнивание поверхности ремонтной смесью Ceresit CD 22 толщ. 10 мм","м2",1.1000000000000001]
[693,"Усиление конструктивных элементов: обрамление отверстий в перекрытии стальными обоймами","кг",42.22]
[694,"Огрунтовка металлических поверхностей в 2 слоя","м2",1.3]
[null,"2 этаж"]
[null,"Усиление отверстия №2.1"]
[{"$f":"A808+1","v":695},"Демонтаж непрочных слоев бетона","м3",0.04]
[696,"Сверление отверстия в плите Ø20 L=220","шт.",4]
[697,"Очистка поверхности щетками","м2",1.8]
[698,"Обеспыливание поверхности","м2",1.8]
[699,"Приготовление безусадочных, быстротвердеющих составов тиксотропного типа однокомпонентных: вручную","м3",1.8E-3]
[700,"Нанесение антикоррозионной смеси Ceresit CD 30 толщ. 1 мм","м2",1.8]
[701,"Приготовление безусадочных, быстротвердеющих составов тиксотропного типа однокомпонентных: вручную","м3",1.7999999999999999E-2]
[702,"Выравнивание поверхности ремонтной смесью Ceresit CD 22 толщ. 10 мм","м2",1.8]
[703,"Усиление конструктивных элементов: обрамление отверстий в перекрытии стальными обоймами","кг",35.020000000000003]
[704,"Огрунтовка металлических поверхностей в 2 слоя","м2",2.2000000000000002]
[null,"Усиление отверстия №2.4"]
[{"$f":"A820+1","v":705},"Демонтаж непрочных слоев бетона","м3",0.04]
[706,"Сверление отверстия в плите Ø20 L=220","шт.",4]
[{"$f":"A823+1","v":707},"Очистка поверхности щетками","м2",1.8]
[708,"Обеспыливание поверхности","м2",1.8]
[709,"Приготовление безусадочных, быстротвердеющих составов тиксотропного типа однокомпонентных: вручную","м3",1.8E-3]
[710,"Нанесение антикоррозионной смеси Ceresit CD 30 толщ. 1 мм","м2",1.8]
[711,"Приготовление безусадочных, быстротвердеющих составов тиксотропного типа однокомпонентных: вручную","м3",1.7999999999999999E-2]
[712,"Выравнивание поверхности ремонтной смесью Ceresit CD 22 толщ. 10 мм","м2",1.8]
[713,"Усиление конструктивных элементов: обрамление отверстий в перекрытии стальными обоймами","кг",35.020000000000003]
[714,"Огрунтовка металлических поверхностей в 2 слоя","м2",2.2000000000000002]
[null,"Усиление отверстия №2.5"]
[{"$f":"A831+1","v":715},"Демонтаж непрочных слоев бетона","м3",0.02]
[716,"Сверление отверстия в плите Ø20 L=220","шт.",2]
[717,"Очистка поверхности щетками","м2",0.9]
[718,"Обеспыливание поверхности","м2",0.9]
[719,"Приготовление безусадочных, быстротвердеющих составов тиксотропного типа однокомпонентных: вручную","м3",8.9999999999999998E-4]
[720,"Нанесение антикоррозионной смеси Ceresit CD 30 толщ. 1 мм","м2",0.9]
[721,"Приготовление безусадочных, быстротвердеющих составов тиксотропного типа однокомпонентных: вручную","м3",8.9999999999999993E-3]
[722,"Выравнивание поверхности ремонтной смесью Ceresit CD 22 толщ. 10 мм","м2",0.9]
[723,"Усиление конструктивных элементов: обрамление отверстий в перекрытии стальными обоймами","кг",35.020000000000003]
[724,"Огрунтовка металлических поверхностей в 2 слоя","м2",1.1000000000000001]
[null,"Усиление отверстия №4.1"]
[{"$f":"A842+1","v":725},"Демонтаж непрочных слоев бетона","м3",0.08]
[726,"Сверление отверстия в плите Ø20 L=220","шт.",6]
[727,"Очистка поверхности щетками","м2",2]
[728,"Обеспыливание поверхности","м2",2]
[729,"Приготовление безусадочных, быстротвердеющих составов тиксотропного типа однокомпонентных: вручную","м3",2E-3]
[730,"Нанесение антикоррозионной смеси Ceresit CD 30 толщ. 1 мм","м2",2]
[731,"Приготовление безусадочных, быстротвердеющих составов тиксотропного типа однокомпонентных: вручную","м3",0.02]
[732,"Выравнивание поверхности ремонтной смесью Ceresit CD 22 толщ. 10 мм","м2",2]
[733,"Усиление конструктивных элементов: обрамление отверстий в перекрытии стальными обоймами","кг",88.24]
[734,"Огрунтовка металлических поверхностей в 2 слоя","м2",2.5]
[null,"3 этаж"]
[null,"Усиление отверстия №2.3"]
[{"$f":"A853+1","v":735},"Демонтаж непрочных слоев бетона","м3",0.02]
[736,"Сверление отверстия в плите Ø20 L=220","шт.",2]
[737,"Очистка поверхности щетками","м2",0.9]
[738,"Обеспыливание поверхности","м2",0.9]
[739,"Приготовление безусадочных, быстротвердеющих составов тиксотропного типа однокомпонентных: вручную","м3",8.9999999999999998E-4]
[740,"Нанесение антикоррозионной смеси Ceresit CD 30 толщ. 1 мм","м2",0.9]
[741,"Приготовление безусадочных, быстротвердеющих составов тиксотропного типа однокомпонентных: вручную","м3",8.9999999999999993E-3]
[742,"Выравнивание поверхности ремонтной смесью Ceresit CD 22 толщ. 10 мм","м2",0.9]
[743,"Усиление конструктивных элементов: обрамление отверстий в перекрытии стальными обоймами","кг",35.020000000000003]
[744,"Огрунтовка металлических поверхностей в 2 слоя","м2",1.1000000000000001]
[null,"Усиление отверстия №2.6"]
[{"$f":"A865+1","v":745},"Демонтаж непрочных слоев бетона","м3",0.02]
[746,"Сверление отверстия в плите Ø20 L=220","шт.",2]
[747,"Очистка поверхности щетками","м2",0.9]
[748,"Обеспыливание поверхности","м2",0.9]
[749,"Приготовление безусадочных, быстротвердеющих составов тиксотропного типа однокомпонентных: вручную","м3",8.9999999999999998E-4]
[750,"Нанесение антикоррозионной смеси Ceresit CD 30 толщ. 1 мм","м2",0.9]
[751,"Приготовление безусадочных, быстротвердеющих составов тиксотропного типа однокомпонентных: вручную","м3",8.9999999999999993E-3]
[752,"Выравнивание поверхности ремонтной смесью Ceresit CD 22 толщ. 10 мм","м2",0.9]
[753,"Усиление конструктивных элементов: обрамление отверстий в перекрытии стальными обоймами","кг",35.020000000000003]
[754,"Огрунтовка металлических поверхностей в 2 слоя","м2",1.1000000000000001]
[null,"Усиление отверстия №4.2"]
[{"$f":"A876+1","v":755},"Демонтаж непрочных слоев бетона","м3",0.08]
[756,"Сверление отверстия в плите Ø20 L=220","шт.",5]
[757,"Очистка поверхности щетками","м2",2]
[758,"Обеспыливание поверхности","м2",2]
[759,"Приготовление безусадочных, быстротвердеющих составов тиксотропного типа однокомпонентных: вручную","м3",2E-3]
[760,"Нанесение антикоррозионной смеси Ceresit CD 30 толщ. 1 мм","м2",2]
[761,"Приготовление безусадочных, быстротвердеющих составов тиксотропного типа однокомпонентных: вручную","м3",0.02]
[762,"Выравнивание поверхности ремонтной смесью Ceresit CD 22 толщ. 10 мм","м2",2]
[763,"Усиление конструктивных элементов: обрамление отверстий в перекрытии стальными обоймами","кг",85.13]
[764,"Огрунтовка металлических поверхностей в 2 слоя","м2",2.5]
[null,"Усиление отверстия №5"]
[{"$f":"A887+1","v":765},"Демонтаж непрочных слоев бетона","м3",0.05]
[{"$f":"A889+1","v":766},"Сверление отверстия в плите Ø20 L=220","шт.",4]
[767,"Очистка поверхности щетками","м2",1.4]
[768,"Обеспыливание поверхности","м2",1.4]
[769,"Приготовление безусадочных, быстротвердеющих составов тиксотропного типа однокомпонентных: вручную","м3",1.4E-3]
[770,"Нанесение антикоррозионной смеси Ceresit CD 30 толщ. 1 мм","м2",1.4]
[771,"Приготовление безусадочных, быстротвердеющих составов тиксотропного типа однокомпонентных: вручную","м3",1.4E-2]
[772,"Выравнивание поверхности ремонтной смесью Ceresit CD 22 толщ. 10 мм","м2",1.4]
[773,"Усиление конструктивных элементов: обрамление отверстий в перекрытии стальными обоймами","кг",60.43]
[774,"Огрунтовка металлических поверхностей в 2 слоя","м2",1.9]
[null,"Усиление отверстия №6"]
[{"$f":"A898+1","v":775},"Демонтаж непрочных слоев бетона","м3",0.04]
[776,"Сверление отверстия в плите Ø20 L=220","шт.",4]
[777,"Очистка поверхности щетками","м2",1.3]
[778,"Обеспыливание поверхности","м2",1.3]
[779,"Приготовление безусадочных, быстротвердеющих составов тиксотропного типа однокомпонентных: вручную","м3",1.2999999999999999E-3]
[780,"Нанесение антикоррозионной смеси Ceresit CD 30 толщ. 1 мм","м2",1.3]
[781,"Приготовление безусадочных, быстротвердеющих составов тиксотропного типа однокомпонентных: вручную","м3",1.2999999999999999E-2]
[782,"Выравнивание поверхности ремонтной смесью Ceresit CD 22 толщ. 10 мм","м2",1.3]
[null,"4 этаж"]
[null,"Усиление отверстия №7"]
[{"$f":"A907+1","v":783},"Демонтаж непрочных слоев бетона","м3",0.06]
[784,"Сверление отверстия в плите Ø20 L=220","шт.",18]
[785,"Очистка поверхности щетками","м2",4.8]
[786,"Обеспыливание поверхности","м2",4.8]
[787,"Приготовление безусадочных, быстротвердеющих составов тиксотропного типа однокомпонентных: вручную","м3",4.7999999999999996E-3]
[788,"Нанесение антикоррозионной смеси Ceresit CD 30 толщ. 1 мм","м2",4.8]
[789,"Приготовление безусадочных, быстротвердеющих составов тиксотропного типа однокомпонентных: вручную","м3",4.8000000000000001E-2]
[790,"Выравнивание поверхности ремонтной смесью Ceresit CD 22 толщ. 10 мм","м2",4.8]
[791,"Усиление конструктивных элементов: обрамление отверстий в перекрытии стальными обоймами","кг",223.43]
[792,"Огрунтовка металлических поверхностей в 2 слоя","м2",6.4]
[null,"Вывоз мусора"]
[{"$f":"A919+1","v":793},"Погрузо-разгрузочные работы при автомобильных перевозках: Погрузка мусора строительного с погрузкой вручную","1 т груза",12.67]
[794,"Перевозка грузов I класса автомобилями-самосвалами грузоподъемностью 10 т работающих вне карьера на расстояние до 47 км","1 т груза",12.67]
[795,"Утилизация строительного мусора",{"$f":"C922","v":"1 т груза"},{"$f":"D922","v":12.67}]
[]
[]
[]
[null,"Составил:"]
[]
[null,"     Ведущий специалист ОпС АО \"Коломенский Завод\"                                                                        ",null,null,"Самойлов А.О."]
[null,"                                                      (должность)                                                                                                                                                                                    ",null,null,"(подпись)                              (ФИО)"]
[null,"\"25\" марта 2025 г. "]
[]
[null,"Проверил:"]
[null,"Начальник отдела по строительству АО \"Коломенский Завод\"  "]
[null,"                                                      (должность)                                                                                                                                               ",null,null,"Губанов П.В."]
[null,"\"25\" марта 2025 г. ",null,null,"(подпись)                               (ФИО)"]

{"sheet":"Лист1","index":1,"n_rows":936,"n_cols":6,"rows_kept":936,"cut":false,"hidden":false,"merged":[[8,0,9,5],[11,1,11,3]]}
[null,null,null,null,null,"«УТВЕРЖДАЮ»"]
[null,null,null,null,null,"Директор ДЭиБПД"]
[null,null,null,null,null,"АО «Коломенский Завод»"]
[null,null,null,null,null,"______________   Степанкевич В.С."]
[]
[]
[null,null,null,null,null,"от «___»   ________  2025_ г."]
[]
["Ведомость объемов работ \nОбъект: «Реконструкция М-14 Инв. 530000149 ( Устройство фасада. Усиление)»  \n"]
[]
["№","Вид работ","Ед. измер","Объем","Формула расчета","Примечание"]
[null,"Раздел АС \"Усиление основных конструкций АБК цеха М14\" на территории АО \"Коломенский завод\", расположенного по адресу:\nМосковская область, г. Коломна, ул. Партизан, 42 (066-04.24-М14-АС)"]
[1,"Усиление конструктивных элементов: стен кирпичных стальными обоймами","кг",481.64,null,"В том числе элементы обойм:\n- Сталь полосовая (100х8 мм), общий вес –  (45,97+16,08+15,83+26,75+25,62)*2=260,5 кг;\n- Сталь угловая равнополочная, марка стали: Ст3пс, шириной полок 100-100 мм, общий вес – 94,08*2=188,16 кг;\n- Шпилька резьбовая STARFIX М16х890 (Класс прочности 8.8), общий вес – 8,44*2=16,88 кг, 12 шт.;\n- Шпилька резьбовая STARFIX М16х820 (Класс прочности 8.8), общий вес – 7,77*2=15,54 кг, 12 шт.;\n- Гайка стальная оцинкованная сферическая для анкерного стержня, диаметр 16 мм, общий вес – 0,23*2= 0,46 кг, 12 шт.;\n- Шайбы оцинкованные, диаметр 16 мм, общий вес – 0,06*2=0,12 кг, 12 шт."]
[2,"Сверление отверстий в кирпичной стене Ø20 мм l=730 мм","шт.",24]
[3,"Очистка поверхности стен щетками","м2",18.62]
[4,"Обеспыливание поверхности стен","м2",18.62]
[5,"Обезжиривание поверхности стен","м2",18.62]
[6,"Огрунтовка металлических поверхностей в 2 слоя","м2",14.44]
[7,"Выравнивание поверхности стен цементно-песчаным раствором М50, толщиной 10 мм ","м3",0.19,null,"19м2"]
[8,"Зачеканка стен под уголками и полосами цементно-песчаным раствором М50, толщиной 10 мм","м3",0.08,null,"8м2"]
[9,"Зачеканка трещин между стеной и колонной цементно-песчаным раствором М200","м3",0.05,null,"5м2"]
[null,"Усиление стены УС-2"]
[10,"Усиление конструктивных элементов: стен кирпичных стальными обоймами","кг",212.14,null,"В том числе элементы обойм:\n- Сталь полосовая (100х8 мм), общий вес –  (42,96+23,36+21,85+48,23)=136,4 кг;\n- Сталь угловая равнополочная, марка стали: Ст3пс, шириной полок 100-100 мм, общий вес –62,72 кг;\n- Шпилька резьбовая STARFIX М16х620 (Класс прочности 8.8), общий вес – 5,88 кг, 6 шт.;\n- Шпилька резьбовая STARFIX М16х630 (Класс прочности 8.8), общий вес – 6,0 кг, 6 шт.;\n- Гайка стальная оцинкованная сферическая для анкерного стержня, диаметр 16 мм, общий вес – 0,90 кг, 24 шт.;\n- Шайбы оцинкованные, диаметр 16 мм, общий вес – 0,24 кг, 24 шт."]
[11,"Сверление отверстий в кирпичной стене Ø20 мм l=550 мм, l=530 мм","шт.",12]
[12,"Очистка поверхности стен щетками","м2",7.05]
[13,"Обеспыливание поверхности стен","м2",7.05]
[14,"Обезжиривание поверхности стен","м2",7.05]
[15,"Огрунтовка металлических поверхностей в 2 слоя","м2",6.39]
[16,"Частичный демонтаж кирпичной кладки","м3",0.31]
[17,"Выравнивание поверхности стен цементно-песчаным раствором М50, толщиной 10 мм","м3",7.0000000000000007E-2,{"$f":"0.07/0.01","v":7.0000000000000009},"7м2"]
[18,"Зачеканка стен под уголками и полосами цементно-песчаным раствором М50, толщиной 10 мм","м3",0.03,{"$f":"0.07/0.01","v":7.0000000000000009},{"$f":"F30","v":"7м2"}]
[19,"Зачеканка трещин между стеной и колонной цементно-песчаным раствором М200","м3",0.04]
[null,"Усиление стены УС-3"]
[20,"Усиление конструктивных элементов: стен кирпичных стальными обоймами","кг",183.49,null,"В том числе элементы обойм:\n- Сталь полосовая (100х8 мм), общий вес –  (105,5+64,31)=169,8 кг;\n- Шпилька резьбовая STARFIX М16х660 (Класс прочности 8.8), общий вес – 12,51 кг, 12 шт.;\n- Гайка стальная оцинкованная сферическая для анкерного стержня, диаметр 16 мм, общий вес – 0,90 кг, 24 шт.;\n- Шайбы оцинкованные, диаметр 16 мм, общий вес – 0,24 кг, 24 шт."]
[{"$f":"A34+1","v":21},"Сверление отверстий в кирпичной стене Ø20 мм l=570 мм","шт.",12]
[{"$f":"A35+1","v":22},"Очистка поверхности стен щетками","м2",7.45]
[23,"Обеспыливание поверхности стен","м2",7.45]
[24,"Обезжиривание поверхности стен","м2",7.45]
[25,"Огрунтовка металлических поверхностей в 2 слоя","м2",5.41]
[26,"Выравнивание поверхности стен цементно-песчаным раствором М50, толщиной 10 мм","м3",7.0000000000000007E-2]
[27,"Зачеканка стен под уголками и полосами цементно-песчаным раствором М50, толщиной 10 мм","м3",0.03]
[28,"Зачеканка трещин между стеной и колонной цементно-песчаным раствором М200","м3",0.05]
[null,"Усиление стены УС-4"]
[{"$f":"A42+1","v":29},"Усиление конструктивных элементов: стен кирпичных стальными обоймами","кг",899.04,null,"В том числе элементы обойм:\n- Сталь полосовая (100х8 мм), общий вес –  (16,2+10,55+32,91)*6=357,96 кг;\n- Сталь угловая равнополочная, марка стали: Ст3пс, шириной полок 100-100 мм, общий вес – 64,19*6=385,14 кг;\n- Шпилька резьбовая STARFIX М16х890 (Класс прочности 8.8), общий вес – 16,87*6=101,22 кг, 72 шт.;\n- Гайка стальная оцинкованная сферическая для анкерного стержня, диаметр 16 мм, общий вес – 0,45*6= 2,7 кг, 72 шт.;\n- Шайбы оцинкованные, диаметр 16 мм, общий вес – 0,12*6=0,72 кг, 72 шт;\n-  Сталь арматурная рифленая свариваемая, класс А500С, диаметр 12 мм, общий вес – 4,65*6=27,9 кг;\n-  Сталь арматурная рифленая свариваемая, класс А500С, диаметр 8 мм, общий вес – 3,87*6=23,22 кг"]
[{"$f":"A44+1","v":30},"Сверление отверстий в кирпичной стене Ø20 мм l=540 мм, l=270 мм","шт.",108]
[{"$f":"A45+1","v":31},"Очистка поверхности стен щетками","м2",34.49]
[32,"Обеспыливание поверхности стен","м2",34.49]
[33,"Обезжиривание поверхности стен","м2",34.49]
[34,"Огрунтовка металлических поверхностей в 2 слоя","м2",23.98]
[35,"Частичный демонтаж кирпичной кладки","м3",2.89]
[36,"Кладка перегородок из кирпича (КР-р-по250х120х65/1НФ/150/2.0/75)","м3",3.18]
[37,"Выравнивание поверхности стен цементно-песчаным раствором М50, толщиной 10 мм","м3",0.34]
[38,"Зачеканка стен под уголками и полосами цементно-песчаным раствором М50, толщиной 10 мм","м3",0.11]
[39,"Зачеканка трещин между стеной и колонной цементно-песчаным раствором М200","м3",0.08]
[null,"\t\nУсиление стены УС-5"]
[{"$f":"A54+1","v":40},"Усиление конструктивных элементов: стен кирпичных стальными обоймами","кг",214.68,null,"В том числе элементы обойм:\n- Сталь полосовая (100х8 мм), общий вес –  (43,71+23,36+24,12+48,23)=139,42 кг;\n- Сталь угловая равнополочная, марка стали: Ст3пс, шириной полок 100-100 мм, общий вес –62,72 кг;\n- Шпилька резьбовая STARFIX М16х620 (Класс прочности 8.8), общий вес –5,88 кг, 6 шт.;\n- Шпилька резьбовая STARFIX М16х580 (Класс прочности 8.8), общий вес –5,50 кг, 6 шт.;\n- Гайка стальная оцинкованная сферическая для анкерного стержня, диаметр 16 мм, общий вес – 0,90 кг, 24 шт.;\n- Шайбы оцинкованные, диаметр 16 мм, общий вес – 0,24 кг, 24 шт."]
[{"$f":"A56+1","v":41},"Сверление отверстий в кирпичной стене Ø20 мм l=530 мм, l=500 мм","шт.",12]
[{"$f":"A57+1","v":42},"Очистка поверхности стен щетками","м2",7.32]
[43,"Обеспыливание поверхности стен","м2",7.32]
[44,"Обезжиривание поверхности стен","м2",7.32]
[45,"Огрунтовка металлических поверхностей в 2 слоя","м2",6.48]
[46,"Выравнивание поверхности стен цементно-песчаным раствором М50, толщиной 10 мм","м3",7.0000000000000007E-2]
[47,"Зачеканка стен под уголками и полосами цементно-песчаным раствором М50, толщиной 10 мм","м3",0.03]
[48,"Зачеканка трещин между стеной и колонной цементно-песчаным раствором М200","м3",3.0000000000000001E-3]
[null,"Усиление стены УС-6"]
[{"$f":"A64+1","v":49},"Усиление конструктивных элементов: стен кирпичных стальными обоймами","кг",145.29]
[{"$f":"A66+1","v":50},"Сверление отверстий в кирпичной стене Ø20 мм l=850 мм","шт.",12]
[{"$f":"A67+1","v":51},"Очистка поверхности стен щетками","м2",3.16]
[52,"Обеспыливание поверхности стен","м2",3.16]
[53,"Обезжиривание поверхности стен","м2",3.16]
[54,"Огрунтовка металлических поверхностей в 2 слоя","м2",4]
[55,"Выравнивание поверхности стен цементно-песчаным раствором М50, толщиной 10 мм","м3",0.03]
[56,"Зачеканка стен под уголками и полосами цементно-песчаным раствором М50, толщиной 10 мм","м3",0.02]
[57,"Зачеканка трещин между стеной и колонной цементно-песчаным раствором М200","м3",1E-3]
[null,"Ремонт трещин 1 этажа"]
[null,"Усиление кирпичной кладки арматурными стержнями"]
[{"$f":"A74+1","v":58},"Устройство в кирпичных стенах борозд с использованием штробореза","м.п.",179.5]
[{"$f":"A77+1","v":59},"Усиление кирпичных стен арматурными стержнями  Ø8 А500С","кг",67.5]
[{"$f":"A78+1","v":60},"Заделка штроб в кирпичных стенах (шириной 30 мм, глубиной 30 мм)","м.п.",160.96]
[null,"Ремонт и инъектирование трещин"]
[{"$f":"A79+1","v":61},"Заделка штроб в кирпичных стенах (шириной 20 мм, глубиной 20 мм)","м.п.",18.55]
[{"$f":"A81+1","v":62},"Сверление отверстий в кирпичной стене Ø20 мм l=200 мм","шт.",770]
[{"$f":"A82+1","v":63},"Инъектирование трещин в кирпичных стенах","м2",0.37]
[null,"Защита металлических элементов"]
[{"$f":"A83+1","v":64},"Обеспыливание поверхности металлических элементов","м2",10.4]
[{"$f":"A85+1","v":65},"Очистка поверхности металлических элементов щетками","м2",10.4]
[{"$f":"A86+1","v":66},"Обезжиривание поверхности металлических элементов","м2",10.4]
[67,"Огрунтовка поверхности металлических элементов в 2 слоя","м2",10.4]
[null," Усиление примыкания колонн каркаса к кирпичным стенам 2-го этажа. Усиление стены УС-2.1"]
[{"$f":"A88+1","v":68},"Усиление конструктивных элементов: стен кирпичных стальными обоймами","кг",206.67,null,"В том числе элементы обойм:\n- Сталь полосовая (100х8 мм), общий вес –  (78,37+33,54+19,22)=131,13 кг;\n- Сталь угловая равнополочная, марка стали: Ст3пс, шириной полок 100-100 мм, общий вес –69,09 кг;\n- Шпилька резьбовая STARFIX М16х620 (Класс прочности 8.8), общий вес –5,88 кг, 6 шт.;\n- Гайка стальная оцинкованная сферическая для анкерного стержня, диаметр 16 мм, общий вес – 0,45 кг, 12 шт.;\n- Шайбы оцинкованные, диаметр 16 мм, общий вес – 0,12 кг, 12 шт."]
[{"$f":"A90+1","v":69},"Сверление отверстий в стене Ø20 мм l=530 мм","шт.",6]
[{"$f":"A91+1","v":70},"Очистка поверхности стен щетками","м2",7.43]
[71,"Обеспыливание поверхности стен","м2",7.43]
[72,"Обезжиривание поверхностей стен","м2",7.43]
[73,"Огрунтовка металлических поверхностей в 2 слоя","м2",4.18]
[74,"Частичный демонтаж кирпичной кладки","м3",0.09]
[75,"Выравнивание поверхности стен цементно-песчаным раствором М50, толщиной 10 мм","м3",7.0000000000000007E-2]
[76,"Зачеканка стен под уголками и полосами цементно-песчаным раствором М50, толщиной 10 мм","м3",0.03]
[77,"Устройство подливки цементно-песчаным раствором М200","м3",0.19]
[null,"Усиление стены УС-3.1"]
[{"$f":"A99+1","v":78},"Усиление конструктивных элементов: стен кирпичных стальными обоймами","кг",186.22,null,"В том числе элементы обойм:\n- Сталь полосовая (100х8 мм), общий вес –  (105,5+67,07)=172,57 кг;\n- Шпилька резьбовая STARFIX М16х660 (Класс прочности 8.8), общий вес –12,51 кг, 12 шт.;\n- Гайка стальная оцинкованная сферическая для анкерного стержня, диаметр 16 мм, общий вес – 0,90 кг, 24 шт.;\n- Шайбы оцинкованные, диаметр 16 мм, общий вес – 0,24 кг, 24 шт."]
[{"$f":"A101+1","v":79},"Сверление отверстий в стене Ø20 мм l=530 мм","шт.",12]
[{"$f":"A102+1","v":80},"Очистка поверхности стен щетками","м2",7.56]
[81,"Обеспыливание поверхности стен"]
[82,"Обезжиривание поверхностей стен","м2",7.56]
[83,"Огрунтовка металлических поверхностей в 2 слоя","м2",5.5]
[84,"Выравнивание поверхности стен цементно-песчаным раствором М50, толщиной 10 мм","м3",0.08]
[85,"Зачеканка стен под уголками и полосами цементно-песчаным раствором М50, толщиной 10 мм","м3",0.03]
[null,"Усиление стены УС-4.1/УС-4.3"]
[{"$f":"A108+1","v":86},"Усиление конструктивных элементов: стен кирпичных стальными обоймами","кг",1192.48,null,"В том числе элементы обойм:\n- Сталь полосовая (100х8 мм), общий вес –  (16,2+10,55+33,54)*8=482,32 кг;\n- Сталь угловая равнополочная, марка стали: Ст3пс, шириной полок 100-100 мм, общий вес – 65,42*8=523,36 кг;\n- Шпилька резьбовая STARFIX М16х890 (Класс прочности 8.8), общий вес – 16,87*8=134,96 кг, 96 шт.;\n- Гайка стальная оцинкованная сферическая для анкерного стержня, диаметр 16 мм, общий вес – 0,45*8= 3,6 кг, 96 шт.;\n- Шайбы оцинкованные, диаметр 16 мм, общий вес – 0,12*8=0,96 кг, 96 шт.;\n-  Сталь арматурная рифленая свариваемая, класс А500С, диаметр 12 мм, общий вес – 4,44*6=26,64 кг;\n-  Сталь арматурная рифленая свариваемая, класс А500С, диаметр 8 мм, общий вес – 3,44*6=20,64 кг"]
[{"$f":"A110+1","v":87},"Сверление отверстий в стене Ø20 мм l=530 мм, l=270 мм","шт.",128]
[{"$f":"A111+1","v":88},"Очистка поверхности стен щетками","м2",58.43]
[89,"Обеспыливание поверхности стен","м2",58.43]
[90,"Обезжиривание поверхностей стен","м2",58.43]
[91,"Огрунтовка металлических поверхностей в 2 слоя","м2",32.44]
[92,"Частичный демонтаж кирпичной кладки","м3",2.87]
[93,"Кладка перегородок из кирпича (КР-р-по250х120х65/1НФ/150/2.0/75)","м3",3.16]
[94,"Выравнивание поверхности стен цементно-песчаным раствором М50, толщиной 10 мм","м3",0.57999999999999996]
[95,"Зачеканка стен под уголками и полосами цементно-песчаным раствором М50, толщиной 10 мм","м3",0.14000000000000001]
[96,"Зачеканка трещин между стеной и колонной цементно-песчаным раствором М200","м3",0.1]
[null,"Примыкание колонны к стеновой панели"]
[{"$f":"A120+1","v":97},"Устройство уплотнителя (шнур Вилатерм 60) в примыкании колонны к стеновым панелям","м.п.",73]
[{"$f":"A122+1","v":98},"Заделка примыкания колонны к стеновым панелям цементно-песчаным раствором М200","м3",0.39]
[null," Усиление примыкания колонн каркаса к кирпичным стенам 3-го этажа"]
[null,"Усиление стены УС-2.1"]
[{"$f":"A123+1","v":99},"Усиление конструктивных элементов: стен кирпичных стальными обоймами","кг",206.67,null,"В том числе элементы обойм:\n- Сталь полосовая (100х8 мм), общий вес – (78,37+33,54+19,22)=131,13 кг;\n- Сталь угловая равнополочная, марка стали: Ст3пс, шириной полок 100-100 мм, общий вес – 69,09 кг;\n- Шпилька резьбовая STARFIX М16х620 (Класс прочности 8.8), общий вес –5,88 кг, 6 шт.;\n- Гайка стальная оцинкованная сферическая для анкерного стержня, диаметр 16 мм, общий вес – 0,45 кг, 12 шт.;\n- Шайбы оцинкованные, диаметр 16 мм, общий вес – 0,12 кг, 12 шт."]
[{"$f":"A126+1","v":100},"Сверление отверстий в стене Ø20 мм l=530 мм","шт.",6]
[{"$f":"A127+1","v":101},"Очистка поверхности стен щетками","м2",7.43]
[102,"Обеспыливание поверхности стен","м2",7.43]
[103,"Обезжиривание поверхностей стен","м2",7.43]
[104,"Огрунтовка металлических поверхностей в 2 слоя","м2",4.18]
[105,"Выравнивание поверхности стен цементно-песчаным раствором М50, толщиной 10 мм","м3",7.0000000000000007E-2]
[106,"Зачеканка стен под уголками и полосами цементно-песчаным раствором М50, толщиной 10 мм","м3",0.03]
[107,"Устройство подливки цементно-песчаным раствором М200","м3",0.19]
[null,"Усиление стены УС-3.1"]
[{"$f":"A134+1","v":108},"Усиление конструктивных элементов: стен кирпичных стальными обоймами","кг",186.22,null,"В том числе элементы обойм:\n- Сталь полосовая (100х8 мм), общий вес –  (105,5+67,07)=172,57 кг;\n- Шпилька резьбовая STARFIX М16х660 (Класс прочности 8.8), общий вес –12,51 кг, 12 шт.;\n- Гайка стальная оцинкованная сферическая для анкерного стержня, диаметр 16 мм, общий вес – 0,90 кг, 24 шт.;\n- Шайбы оцинкованные, диаметр 16 мм, общий вес – 0,24 кг, 24 шт."]
[{"$f":"A136+1","v":109},"Сверление отверстий в стене Ø20 мм l=530 мм","шт.",12]
[{"$f":"A137+1","v":110},"Очистка поверхности стен щетками","м2",7.56]
[111,"Обеспыливание поверхности стен","м2",7.56]
[112,"Обезжиривание поверхностей стен","м2",7.56]
[113,"Огрунтовка металлических поверхностей в 2 слоя","м2",5.5]
[114,"Выравнивание поверхности стен цементно-песчаным раствором М50, толщиной 10 мм","м3",0.08]
[115,"Зачеканка стен под уголками и полосами цементно-песчаным раствором М50, толщиной 10 мм","м3",0.03]
[null,"Усиление стены УС-4.1/УС-4.3"]
[{"$f":"A143+1","v":116},"Усиление конструктивных элементов: стен кирпичных стальными обоймами","кг",1192.48,null,"В том числе элементы обойм:\n- Сталь полосовая (100х8 мм), общий вес – (16,2+10,55+33,54)*8=482,32 кг;\n- Сталь угловая равнополочная, марка стали: Ст3пс, шириной полок 100-100 мм, общий вес – 65,42*8=521,6 кг;\n- Шпилька резьбовая STARFIX М16х890 (Класс прочности 8.8), общий вес – 16,87*8=134,96 кг, 96 шт.;\n- Гайка стальная оцинкованная сферическая для анкерного стержня, диаметр 16 мм, общий вес – 0,45*8= 3,6 кг, 96 шт.;\n- Шайбы оцинкованные, диаметр 16 мм, общий вес – 0,12*8=0,96 кг, 96 шт.;\n-  Сталь арматурная рифленая свариваемая, класс А500С, диаметр 12 мм, общий вес – 4,44*6=26,64 кг;\n-  Сталь арматурная рифленая свариваемая, класс А500С, диаметр 8 мм, общий вес – 3,44*6=20,64 кг"]
[{"$f":"A145+1","v":117},"Сверление отверстий в стене Ø20 мм l=530 мм, l=270 мм","шт.",128]
[{"$f":"A146+1","v":118},"Очистка поверхности стен щетками","м2",58.43]
[119,"Обеспыливание поверхности стен","м2",58.43]
[120,"Обезжиривание поверхностей стен","м2",58.43]
[121,"Огрунтовка металлических поверхностей в 2 слоя","м2",32.44]
[122,"Частичный демонтаж кирпичной кладки","м3",2.87]
[123,"Кладка перегородок из кирпича (КР-р-по250х120х65/1НФ/150/2.0/75)","м3",3.16]
[124,"Выравнивание поверхности стен цементно-песчаным раствором М50, толщиной 10 мм","м3",0.57999999999999996]
[125,"Зачеканка стен под уголками и полосами цементно-песчаным раствором М50, толщиной 10 мм","м3",0.14000000000000001]
[126,"Зачеканка трещин между стеной и колонной цементно-песчаным раствором М200","м3",0.1]
[null,"Примыкание колонны к стеновой панели"]
[{"$f":"A155+1","v":127},"Устройство уплотнителя в примыкании колонны к стеновым панелям","м.п.",73]
[{"$f":"A157+1","v":128},"Заделка примыкания колонны к стеновым панелям цементно-песчаным раствором М200","м3",0.39]
[null,"Усиление примыкания колонн каркаса к кирпичным стенам 4-го этажа"]
[null,"Усиление стены УС-2.2"]
[{"$f":"A158+1","v":129},"Усиление конструктивных элементов: стен кирпичных стальными обоймами","кг",498.5,null,"В том числе элементы обойм:\n- Сталь полосовая (100х8 мм), общий вес –  (91,44+43,33+22,42)*2=314,38;\n- Сталь угловая равнополочная, марка стали: Ст3пс, шириной полок 100-100 мм, общий вес – 84,53*2=169,06 кг;\n- Шпилька резьбовая STARFIX М16х620 (Класс прочности 8.8), общий вес –6,86*2= 13,72 кг, 14 шт.;\n- Гайка стальная оцинкованная сферическая для анкерного стержня, диаметр 16 мм, общий вес – 1,06 кг, 28 шт.;\n- Шайбы оцинкованные, диаметр 16 мм, общий вес – 0,28 кг, 28 шт."]
[{"$f":"A161+1","v":130},"Частичный демонтаж кирпичной кладки","м3",0.25]
[{"$f":"A162+1","v":131},"Сверление отверстий в стене Ø20 мм l=530 мм","шт.",12]
[132,"Очистка поверхности стен щетками","м2",18.55]
[133,"Обеспыливание поверхности стен","м2",18.55]
[134,"Обезжиривание поверхностей стен","м2",18.55]
[135,"Огрунтовка металлических поверхностей в 2 слоя","м2",10.01]
[136,"Выравнивание поверхности стен цементно-песчаным раствором М50, толщиной 10 мм","м3",0.19]
[137,"Зачеканка стен под уголками и полосами цементно-песчаным раствором М50, толщиной 10 мм","м3",7.0000000000000007E-2]
[138,"Устройство подливки цементно-песчаным раствором М200","м3",0.24]
[null,"Усиление стены УС-4.2/УС-4.4"]
[{"$f":"A170+1","v":139},"Усиление конструктивных элементов: стен кирпичных стальными обоймами","кг",1308.56,null,"В том числе элементы обойм:\n- Сталь полосовая (100х8 мм), общий вес –  (18,9+12,31+43,33)*7=521,78 кг;\n- Сталь угловая равнополочная, марка стали: Ст3пс, шириной полок 100-100 мм, общий вес – 84,53*7=591,71 кг;\n- Шпилька резьбовая STARFIX М16х890 (Класс прочности 8.8), общий вес – 19,69*7=137,83 кг, 98 шт.;\n- Гайка стальная оцинкованная сферическая для анкерного стержня, диаметр 16 мм, общий вес – 0,53*7= 3,71 кг, 98 шт.;\n- Шайбы оцинкованные, диаметр 16 мм, общий вес – 0,14*7=0,98 кг, 98 шт.;\n-  Сталь арматурная рифленая свариваемая, класс А500С, диаметр 12 мм, общий вес – 5,77*5=28,85 кг;\n-  Сталь арматурная рифленая свариваемая, класс А500С, диаметр 8 мм, общий вес – 4,74*5=23,7 кг"]
[{"$f":"A172+1","v":140},"Сверление отверстий в стене Ø20 мм l=530 мм, l=270 мм","шт.",128]
[{"$f":"A173+1","v":141},"Очистка поверхности стен щетками","м2",68.430000000000007]
[142,"Обеспыливание поверхности стен","м2",68.430000000000007]
[143,"Обезжиривание поверхностей стен","м2",68.430000000000007]
[144,"Огрунтовка металлических поверхностей в 2 слоя","м2",35.94]
[145,"Частичный демонтаж кирпичной кладки","м3",3.1]
[146,"Кладка перегородок из кирпича (КР-р-по250х120х65/1НФ/150/2.0/75)","м3",3.41]
[147,"Выравнивание поверхности стен цементно-песчаным раствором М50, толщиной 10 мм","м3",0.68]
[null,"Примыкание колонны к стеновой панели"]
[{"$f":"A180+1","v":148},"Устройство уплотнителя в примыкании колонны к стеновым панелям","м.п.",93.1]
[{"$f":"A182+1","v":149},"Заделка примыкания колонны к стеновым панелям цементно-песчаным раствором М200","м3",0.49]
[null,"Усиление примыкания колонн каркаса к кирпичным стенам кровли"]
[null,"Усиление стены УС-4"]
[{"$f":"A183+1","v":150},"Усиление конструктивных элементов: стен кирпичных стальными обоймами","кг",307.02,null,"В том числе элементы обойм:\n- Сталь полосовая (100х8 мм), общий вес –  (16,2+10,55+34,16)*2=121,82 кг;\n- Сталь угловая равнополочная, марка стали: Ст3пс, шириной полок 100-100 мм, общий вес – 66,64*2=133,28 кг;\n- Шпилька резьбовая STARFIX М16х890 (Класс прочности 8.8), общий вес – 16,87*2=33,74 кг, 24 шт.;\n- Гайка стальная оцинкованная сферическая для анкерного стержня, диаметр 16 мм, общий вес – 0,45*2= 0,90 кг, 24 шт.;\n- Шайбы оцинкованные, диаметр 16 мм, общий вес – 0,12*2=0,24 кг, 24 шт.;\n-  Сталь арматурная рифленая свариваемая, класс А500С, диаметр 12 мм, общий вес – 4,65*2=9,3 кг;\n-  Сталь арматурная рифленая свариваемая, класс А500С, диаметр 8 мм, общий вес – 3,87*2=7,74 кг"]
[{"$f":"A186+1","v":151},"Сверление отверстий в стене Ø20 мм l=540 мм, l=270 мм","шт.",60]
[{"$f":"A187+1","v":152},"Очистка поверхности стен щетками","м2",11.5]
[153,"Обеспыливание поверхности стен","м2",11.5]
[154,"Обезжиривание поверхностей стен","м2",11.5]
[155,"Огрунтовка металлических поверхностей в 2 слоя","м2",24.69]
[156,"Частичный демонтаж кирпичной кладки","м3",0.78]
[157,"Кладка перегородок из кирпича (КР-р-по250х120х65/1НФ/150/2.0/75)","м3",0.86]
[158,"Выравнивание поверхности стен цементно-песчаным раствором М50, толщиной 10 мм","м3",0.11]
[159,"Зачеканка стен под уголками и полосами цементно-песчаным раствором М50, толщиной 10 мм","м3",0.11]
[160,"Зачеканка трещин между стеной и колонной цементно-песчаным раствором М200","м3",0.11]
[null,"Устройство отмостки и крылец"]
[null,"Устройство отмостки"]
[{"$f":"A196+1","v":161},"Разработка грунта вручную, h=0,38 м","м3",30.4]
[{"$f":"A199+1","v":162},"Перевозка грузов I класса автомобилями-самосвалами грузоподъемностью 10 т работающих вне карьера на расстояние до 47 км","т",34.200000000000003]
[{"$f":"A200+1","v":163},"Погрузка при автомобильных перевозках мусора строительного с погрузкой вручную","т",34.200000000000003]
[164,"Обратная засыпка грунта вручную, h=0,38 м","м3",11.4]
[165,"Уплотнение грунта пневматическими трамбовками, группа грунтов: 1-2","м3",11.4]
[166,"Устройство щебеночного основания под фундамент из щебня М400 фр. 20-40","м3",2.8]
[167,"Установка бортовых камней бетонных БР 100.20.8","шт.",57]
[168,"Устройство гидроизоляции однокомпонентным высокомодульным полиуретановым герметиком","м2",0.42]
[169,"Устройство песчаного основания под отмостку","м3",11.35]
[170,"Устройство щебеночного основания под отмостку","м2",45.4]
[171,"Устройство асфальтобетонных покрытий из асфальтобетона песчаного, тип Д, марка III - 40 мм","м2",45.4]
[172,"Устройство асфальтобетонных покрытий из асфальтобетона крупнозернистого, марка I  - 40 мм ","м2",45.4]
[null,"Устройство основания крылец"]
[{"$f":"A210+1","v":173},"Разработка грунта вручную, h=0,35 м","м3",9.8000000000000007]
[{"$f":"A212+1","v":174},"Перевозка грузов I класса автомобилями-самосвалами грузоподъемностью 10 т работающих вне карьера на расстояние до 47 км","т",12.6]
[{"$f":"A213+1","v":175},"Погрузка при автомобильных перевозках мусора строительного с погрузкой вручную","т",12.6]
[176,"Утилизация строительного мусора",{"$f":"C214","v":"т"},{"$f":"D214","v":12.6}]
[177,"Обратная засыпка грунта вручную, h=0,35 м","м3",2.8]
[178,"Уплотнение грунта пневматическими трамбовками, группа грунтов: 1-2","м3",2.8]
[179,"Устройство изоляции экструзионным пенополистиролом 20х100 мм","м. п.",15]
[180,"Устройство песчаного основания под крыльцо","м3",5.94]
[181,"Устройство бетонного основания, армированного сеткой","м3",1.98]
[null,"Фасад"]
[null,"Ремонт вертикальных и горизонтальных стыков стеновых панелей"]
[{"$f":"A220+1","v":182},"Очистка поверхности стыков щетками","м2",4]
[{"$f":"A223+1","v":183},"Обеспыливание поверхности стыков","м2",4]
[{"$f":"A224+1","v":184},"Обезжиривание поверхностей стыков","м2",4]
[185,"Устройство полимерной самоклеящейся ленты","м. п.",79]
[186,"Заделка стыков монтажной пеной ТЕХНОНИКОЛЬ 65 MAXIMUM","м. п.",79]
[187,"Устройство уплотнителя (шнур Вилатерм 60)","м. п.",79]
[188,"Гидроизоляция стыков герметиком ТЕХНОНИКОЛЬ №45","м. п.",79]
[189,"Заделка стыков цементно-песчаным раствором М150","м3",0.16]
[null,"Защита металлических конструкций от коррозии"]
[{"$f":"A230+1","v":190},"Очистка металлических поверхностей щетками","м2",22.8]
[{"$f":"A232+1","v":191},"Обеспыливание металлических поверхностей","м2",22.8]
[{"$f":"A233+1","v":192},"Обезжиривание металлических поверхностей","м2",22.8]
[193,"Огрунтовка металлических поверхностей в 2 слоя","м2",22.8]
[null,"Восстановление кирпичной кладки Фасад 1-16, Фасад А-Д, Фасад Д-А"]
[{"$f":"A235+1","v":194},"Сверление отверстий в стене Ø10 мм l=250 мм","шт.",38]
[{"$f":"A237+1","v":195},"Армирование кладки стен арматурой Ø8 А240 l=250 мм","кг",3.76]
[{"$f":"A238+1","v":196},"Очистка поверхности стен щетками","м2",5.2]
[197,"Обеспыливание поверхности стен","м2",5.2]
[198,"Обезжиривание поверхностей стен","м2",5.2]
[199,"Устройство металлической сетки сварной 50х50х4 мм","м2",5.2]
[200,"Выравнивание кирпичных стен ремонтной смесью КСГ ПРО Барьер, толщиной 70 мм","м2",5.2]
[null,"Восстановление швов кирпичной кладки"]
[{"$f":"A243+1","v":201},"Очистка поверхности швов щетками","м2",2.7]
[{"$f":"A245+1","v":202},"Обеспыливание поверхности швов","м2",2.7]
[{"$f":"A246+1","v":203},"Расшивка швов кирпичной кладки","м. п.",84]
[null,"Восстановление кирпичной кладки Фасад 16-1"]
[{"$f":"A247+1","v":204},"Сверление отверстий в стене Ø10 мм l=250 мм","шт.",11]
[{"$f":"A249+1","v":205},"Армирование кладки стен и других конструкций","кг",1.08]
[{"$f":"A250+1","v":206},"Очистка поверхности стен щетками","м2",1.7]
[207,"Обеспыливание поверхности стен","м2",1.7]
[208,"Обезжиривание поверхностей стен","м2",1.7]
[209,"Устройство металлической сетки сварной 50х50х4 мм","м2",1.7]
[210,"Выравнивание кирпичных стен ремонтной смесью КСГ ПРО Барьер, толщиной 70 мм","м2",1.7]
[null,"Восстановление цементно-песчаного раствора кирпичной кладки Фасад 16-1"]
[{"$f":"A255+1","v":211},"Очистка поверхности стен щетками","м2",9.98]
[{"$f":"A257+1","v":212},"Обеспыливание поверхности стен","м2",9.98]
[{"$f":"A258+1","v":213},"Обезжиривание поверхностей стен","м2",9.98]
[214,"Восстановление цементно-песчаного раствора кирпичной кладки","м2",9.98]
[null,"Узел приварки закладной детали стеновой панели"]
[{"$f":"A260+1","v":215},"Приварка закладной детали","шт.",1]
[{"$f":"A262+1","v":216},"Очистка поверхности щетками","м2",0.1]
[{"$f":"A263+1","v":217},"Обеспыливание поверхности","м2",0.1]
[218,"Обезжиривание поверхностей","м2",0.1]
[219,"Огрунтовка металлических поверхностей в 2 слоя","м2",0.1]
[null,"Усиление отверстий в стенах"]
[null,"1 этаж"]
[null,"Усиление отверстия №1"]
[{"$f":"A266+1","v":220},"Усиление конструктивных элементов: стен кирпичных стальными обоймами","кг",161.28,null,"В том числе элементы обойм:\n- Сталь полосовая (100х8 мм), общий вес –  21,84*2=43,68 кг;\n- Сталь угловая равнополочная, марка стали: Ст3пс, шириной полок 100-100 мм, общий вес – 58,80*2=117,6 кг."]
[{"$f":"A270+1","v":221},"Очистка поверхности щетками","м2",3.52]
[{"$f":"A271+1","v":222},"Обеспыливание поверхности","м2",3.52]
[223,"Обезжиривание поверхностей","м2",3.52]
[224,"Огрунтовка металлических поверхностей в 2 слоя","м2",5.24]
[225,"Частичный демонтаж кирпичной кладки","м3",0.14000000000000001]
[226,"Выравнивание поверхности стен цементно-песчаным раствором М50, толщиной 10 мм","м3",0.04]
[227,"Зачеканка стен под уголками и полосами цементно-песчаным раствором М50, толщиной 10 мм","м3",0.02]
[null,"Усиление отверстия №2"]
[{"$f":"A277+1","v":228},"Усиление конструктивных элементов: стен кирпичных стальными обоймами","кг",90.48,null,"В том числе элементы обойм:\n- Сталь полосовая (100х8 мм), общий вес – 21,84 кг;\n- Сталь угловая равнополочная, марка стали: Ст3пс, шириной полок 100-100 мм, общий вес – 68,64 кг."]
[{"$f":"A279+1","v":229},"Очистка поверхности щетками","м2",2.1800000000000002]
[{"$f":"A280+1","v":230},"Обеспыливание поверхности","м2",2.1800000000000002]
[231,"Обезжиривание поверхностей","м2",2.1800000000000002]
[232,"Огрунтовка металлических поверхностей за один раз: грунтовкой АК-070 (2 раза)","м2",5.87]
[233,"Частичный демонтаж кирпичной кладки","м3",0.11]
[234,"Выравнивание поверхности стен цементно-песчаным раствором М50, толщиной 10 мм","м3",0.2]
[235,"Зачеканка стен под уголками и полосами цементно-песчаным раствором М50, толщиной 10 мм","м3",0.01]
[null,"2 этаж"]
[null,"Усиление отверстия №3"]
[{"$f":"A286+1","v":236},"Усиление конструктивных элементов: стен кирпичных стальными обоймами","кг",143.09,null,"В том числе элементы обойм:\n- Сталь полосовая (100х8 мм), общий вес –  40,19 кг;\n- Сталь угловая равнополочная, марка стали: Ст3пс, шириной полок 100-100 мм, общий вес – 34,30+68,60=102,9 кг."]
[{"$f":"A289+1","v":237},"Очистка поверхности щетками","м2",3.41]
[{"$f":"A290+1","v":238},"Обеспыливание поверхности","м2",3.41]
[239,"Обезжиривание поверхностей","м2",3.41]
[240,"Огрунтовка металлических поверхностей в 2 слоя","м2",2.4]
[241,"Частичный демонтаж кирпичной кладки","м3",0.23]
[242,"Выравнивание поверхности стен цементно-песчаным раствором М50, толщиной 10 мм","м3",0.03]
[243,"Зачеканка стен под уголками и полосами цементно-песчаным раствором М50, толщиной 10 мм","м3",0.02]
[null,"Ремонт (замена) лицевой кладки в осях 1/Б-В"]
[{"$f":"A296+1","v":244},"Частичный демонтаж кирпичной кладки","м3",0.9]
[{"$f":"A298+1","v":245},"Разработка грунта вручную, h=0,35 м","м3",0.65]
[{"$f":"A299+1","v":246},"Демонтаж монолитного участка (балка)","шт.",1]
[247,"Демонтаж бетонной подливки фундамента","м3",0.11]
[248,"Сверление отверстий в стене Ø10 мм l=200 мм;","шт.",45]
[249,"Сверление отверстий в балке и колоннах Ø10 мм l=60 мм","шт.",25]
[250,"Очистка поверхности щетками","м2",8.24]
[251,"Обеспыливание поверхности","м2",8.24]
[252,"Обезжиривание поверхностей","м2",8.24]
[253,"Укладка фундаментной балки 1БФ24","шт.",1]
[254,"Обратная засыпка грунта вручную, h=0,15 м","м3",0.4]
[255,"Перевозка грузов I класса автомобилями-самосвалами грузоподъемностью 10 т работающих вне карьера на расстояние до 47 км","т",0.45]
[256,"Погрузка при автомобильных перевозках мусора строительного с погрузкой вручную","т",0.45]
[257,"Утилизация строительного мусора",{"$f":"C310","v":"т"},{"$f":"D310","v":0.45}]
[258,"Устройство гидроизоляции фундаментов в 1 слой из рубероида РКП 350","м2",1.2]
[259,"Кладка стен кирпичных (КР-л-пу 250х120х65/1НФ/150/1,2/75)","м3",1]
[260,"Армирование кладки стен арматурой Ø8 А500С l=310 мм","кг",5.51]
[261,"Установка распорных анкеров М8х60","шт.",25]
[262,"Установка шурупов по кирпичу 7,5x92","шт.",25]
[263,"Установка гибких связей оцинкованных Bever MV 300/7","шт.",25]
[264,"Устройство изоляции из минеральной ваты p=34 кг/м³","м2",0.28999999999999998]
[265,"Устройство уплотнителя (шнур Вилатерм 30)","м.п.",2.4]
[null,"Отделочные работы фасада"]
[{"$f":"A319+1","v":266},"Установка и разборка наружных инвентарных лесов высотой до 16 м","м2",3064.16]
[{"$f":"A321+1","v":267},"Очистка поверхности фасадов","м2",220]
[{"$f":"A322+1","v":268},"Выравнивание поверхности цементной штукатуркой Церезит СТ 24 - 10 мм","м2",220]
[269,"Огрунтовка поверхности фасадов грунтовкой глубокого проникновения ТЕХНОНИКОЛЬ 020","м2",220]
[270,"Сверление отверстий в стене Ø10 мм l=120 мм, l=50 мм","шт.",2110]
[271,"Устройство утеплителя с помощью штукатурно-клеевой смеси ТЕХНОНИКОЛЬ 210","м2",232]
[272,"Выравнивание поверхности фасадов штукатурно-клеевой смесью в 2 слоя ТЕХНОНИКОЛЬ 210, армированной стеклосеткой и угловым ПВХ профилем","м2",232]
[273,"Огрунтовка поверхности фасадов грунтовкой универсальной ТЕХНОНИКОЛЬ 010","м2",232]
[274,"Выравнивание поверхности фасадов декоративной минеральной штукатуркой ТЕХНОНИКОЛЬ 301","м2",232]
[275,"Окрашивание фасадов краской фасадной силиконовой ТЕХНОНИКОЛЬ 901 в 2 слоя","м2",232]
[null,"Вывоз мусора"]
[{"$f":"A330+1","v":276},"Погрузо-разгрузочные работы при автомобильных перевозках: Погрузка мусора строительного с погрузкой вручную","т",27.321999999999999]
[{"$f":"A332+1","v":277},"Перевозка грузов I класса автомобилями-самосвалами грузоподъемностью 10 т работающих вне карьера на расстояние до 47 км","т",27.321999999999999]
[{"$f":"A333+1","v":278},"Утилизация строительного мусора",{"$f":"C333","v":"т"},27.321999999999999]
[null,"КЖ \"Усиление основных конструкций АБК цеха М14\" на территории АО \"Коломенский завод\", расположенного по адресу:\nМосковская область, г. Коломна, ул. Партизан, 42 (066-04.24-М14-КЖ)"]
[{"$f":"A334+1","v":279},"Демонтаж непрочных слоев бетона","м3",0.34]
[{"$f":"A336+1","v":280},"Очистка поверхности щетками","м2",31.7]
[{"$f":"A337+1","v":281},"Обеспыливание поверхности","м2",31.7]
[282,"Приготовление безусадочных, быстротвердеющих составов тиксотропного типа однокомпонентных: вручную","м3",5.7999999999999996E-3]
[283,"Нанесение антикоррозионной смеси Ceresit CD 30 толщ. 1 мм","м2",5.8]
[284,"Приготовление безусадочных, быстротвердеющих составов тиксотропного типа однокомпонентных: вручную","м3",0.67]
[285,"Выравнивание поверхности ремонтной смесью Ceresit CD 22 толщ. 50 мм","м2",6.7]
[286,"Приготовление безусадочных, быстротвердеющих составов тиксотропного типа однокомпонентных: вручную","м3",3.3500000000000002E-2]
[287,"Выравнивание поверхности шпатлевкой Ceresit CD 24 толщ. 5 мм","м2",6.7]
[null,"Участки без оголённой арматуры 1 этаж"]
[{"$f":"A344+1","v":288},"Демонтаж непрочных слоев бетона","м3",0.13]
[{"$f":"A346+1","v":289},"Очистка поверхности щетками","м2",58.2]
[{"$f":"A347+1","v":290},"Обеспыливание поверхности","м2",58.2]
[291,"Приготовление безусадочных, быстротвердеющих составов тиксотропного типа однокомпонентных: вручную","м3",5.3E-3]
[292,"Нанесение антикоррозионной смеси Ceresit CD 30 толщ. 1 мм","м2",5.3]
[293,"Приготовление безусадочных, быстротвердеющих составов тиксотропного типа однокомпонентных: вручную","м3",0.123]
[294,"Выравнивание поверхности ремонтной смесью Ceresit CD 22 толщ. 10 мм","м2",12.3]
[295,"Приготовление безусадочных, быстротвердеющих составов тиксотропного типа однокомпонентных: вручную","м3",6.1499999999999999E-2]
[296,"Выравнивание поверхности шпатлевкой Ceresit CD 24 толщ. 5 мм","м2",12.3]
[null,"Участки с оголённой арматурой 2 этаж"]
[{"$f":"A354+1","v":297},"Демонтаж непрочных слоев бетона","м3","0,08 м3"]
[{"$f":"A356+1","v":298},"Очистка поверхности щетками","м2",7]
[{"$f":"A357+1","v":299},"Обеспыливание поверхности","м2",7]
[300,"Приготовление безусадочных, быстротвердеющих составов тиксотропного типа однокомпонентных: вручную","м3",1.2999999999999999E-3]
[301,"Нанесение антикоррозионной смеси Ceresit CD 30 толщ. 1 мм","м2",1.3]
[302,"Приготовление безусадочных, быстротвердеющих составов тиксотропного типа однокомпонентных: вручную","м3",7.4999999999999997E-2]
[303,"Выравнивание поверхности ремонтной смесью Ceresit CD 22 толщ. 50 мм","м2",1.5]
[304,"Приготовление безусадочных, быстротвердеющих составов тиксотропного типа однокомпонентных: вручную","м3",7.4999999999999997E-3]
[305,"Выравнивание поверхности шпатлевкой Ceresit CD 24 толщ. 5 мм","м2",1.5]
[null,"Участки без оголённой арматуры 2 этаж"]
[{"$f":"A364+1","v":306},"Демонтаж непрочных слоев бетона","м3",0.14000000000000001]
[{"$f":"A366+1","v":307},"Очистка поверхности щетками","м2",64.900000000000006]
[{"$f":"A367+1","v":308},"Обеспыливание поверхности","м2",64.900000000000006]
[309,"Приготовление безусадочных, быстротвердеющих составов тиксотропного типа однокомпонентных: вручную","м3",5.8999999999999999E-3]
[310,"Нанесение антикоррозионной смеси Ceresit CD 30 толщ. 1 мм","м2",5.9]
[311,"Приготовление безусадочных, быстротвердеющих составов тиксотропного типа однокомпонентных: вручную","м3",0.13700000000000001]
[312,"Выравнивание поверхности ремонтной смесью Ceresit CD 22 толщ. 10 мм","м2",13.7]
[313,"Приготовление безусадочных, быстротвердеющих составов тиксотропного типа однокомпонентных: вручную","м3",6.8500000000000005E-2]
[314,"Выравнивание поверхности шпатлевкой Ceresit CD 24 толщ. 5 мм","м2",13.7]
[null,"Участки с оголённой арматурой 3 этаж"]
[{"$f":"A374+1","v":315},"Демонтаж непрочных слоев бетона","м3",0.11]
[{"$f":"A376+1","v":316},"Очистка поверхности щетками","м2",9.6]
[{"$f":"A377+1","v":317},"Обеспыливание поверхности","м2",9.6]
[318,"Приготовление безусадочных, быстротвердеющих составов тиксотропного типа однокомпонентных: вручную","м3",1.8E-3]
[319,"Нанесение антикоррозионной смеси Ceresit CD 30 толщ. 1 мм","м2",1.8]
[320,"Приготовление безусадочных, быстротвердеющих составов тиксотропного типа однокомпонентных: вручную","м3",0.105]
[321,"Выравнивание поверхности ремонтной смесью Ceresit CD 22 толщ. 50 мм","м2",2.1]
[322,"Приготовление безусадочных, быстротвердеющих составов тиксотропного типа однокомпонентных: вручную","м3",1.0500000000000001E-2]
[323,"Выравнивание поверхности шпатлевкой Ceresit CD 24 толщ. 5 мм","м2",2.1]
[null,"Участки без оголённой арматуры 3 этаж"]
[{"$f":"A384+1","v":324},"Демонтаж непрочных слоев бетона","м3",0.12]
[{"$f":"A386+1","v":325},"Очистка поверхности щетками","м2",56.6]
[{"$f":"A387+1","v":326},"Обеспыливание поверхности","м2",56.6]
[327,"Приготовление безусадочных, быстротвердеющих составов тиксотропного типа однокомпонентных: вручную","м3",5.1000000000000004E-3]
[328,"Нанесение антикоррозионной смеси Ceresit CD 30 толщ. 1 мм","м2",5.0999999999999996]
[329,"Приготовление безусадочных, быстротвердеющих составов тиксотропного типа однокомпонентных: вручную","м3",0.11899999999999999]
[330,"Выравнивание поверхности ремонтной смесью Ceresit CD 22 толщ. 10 мм","м2",11.9]
[331,"Приготовление безусадочных, быстротвердеющих составов тиксотропного типа однокомпонентных: вручную","м3",5.9499999999999997E-2]
[332,"Выравнивание поверхности шпатлевкой Ceresit CD 24 толщ. 5 мм","м2",11.9]
[null,"Участки с оголённой арматурой 4 этаж"]
[{"$f":"A394+1","v":333},"Демонтаж непрочных слоев бетона","м3",0.3]
[{"$f":"A396+1","v":334},"Очистка поверхности щетками","м2",28]
[{"$f":"A397+1","v":335},"Обеспыливание поверхности","м2",28]
[336,"Приготовление безусадочных, быстротвердеющих составов тиксотропного типа однокомпонентных: вручную","м3",5.1000000000000004E-3]
[337,"Нанесение антикоррозионной смеси Ceresit CD 30 толщ. 1 мм","м2",5.0999999999999996]
[338,"Приготовление безусадочных, быстротвердеющих составов тиксотропного типа однокомпонентных: вручную","м3",0.29499999999999998]
[339,"Выравнивание поверхности ремонтной смесью Ceresit CD 22 толщ. 50 мм","м2",5.9]
[340,"Приготовление безусадочных, быстротвердеющих составов тиксотропного типа однокомпонентных: вручную","м3",2.9499999999999998E-2]
[341,"Выравнивание поверхности шпатлевкой Ceresit CD 24 толщ. 5 мм","м2",5.9]
[null,"Участки без оголённой арматуры 4 этаж"]
[{"$f":"A404+1","v":342},"Демонтаж непрочных слоев бетона","м3",0.52]
[{"$f":"A406+1","v":343},"Очистка поверхности щетками","м2",243.1]
[{"$f":"A406+1","v":343},"Обеспыливание поверхности","м2",243.1]
[{"$f":"A408+1","v":344},"Приготовление безусадочных, быстротвердеющих составов тиксотропного типа однокомпонентных: вручную","м3",2.1899999999999999E-2]
[{"$f":"A408+1","v":344},"Нанесение антикоррозионной смеси Ceresit CD 30 толщ. 1 мм","м2",21.9]
[{"$f":"A410+1","v":345},"Приготовление безусадочных, быстротвердеющих составов тиксотропного типа однокомпонентных: вручную","м3",0.51100000000000001]
[{"$f":"A410+1","v":345},"Выравнивание поверхности ремонтной смесью Ceresit CD 22 толщ. 10 мм","м2",51.1]
[{"$f":"A412+1","v":346},"Приготовление безусадочных, быстротвердеющих составов тиксотропного типа однокомпонентных: вручную","м3",0.2555]
[{"$f":"A412+1","v":346},"Выравнивание поверхности шпатлевкой Ceresit CD 24 толщ. 5 мм","м2",51.1]
[null,"Ремонт ригелей, полок д/ж перекрытия"]
[null,"Участки с оголённой арматурой 1 этаж"]
[{"$f":"A414+1","v":347},"Демонтаж непрочных слоев бетона","м3",0.46]
[{"$f":"A417+1","v":348},"Очистка поверхности щетками","м2",23.8]
[{"$f":"A418+1","v":349},"Обеспыливание поверхности","м2",23.8]
[350,"Приготовление безусадочных, быстротвердеющих составов тиксотропного типа однокомпонентных: вручную","м3",3.5700000000000003E-2]
[351,"Нанесение антикоррозионной смеси Ceresit CD 30 толщ. 1 мм","м2",35.700000000000003]
[352,"Приготовление безусадочных, быстротвердеющих составов тиксотропного типа однокомпонентных: вручную","м3",0.46]
[353,"Выравнивание поверхности ремонтной смесью Ceresit CD 22 толщ. 100 мм","м2",4.5999999999999996]
[354,"Приготовление безусадочных, быстротвердеющих составов тиксотропного типа однокомпонентных: вручную","м3",4.5499999999999999E-2]
[355,"Выравнивание поверхности шпатлевкой Ceresit CD 24 толщ. 5 мм","м2",9.1]
[null,"Участки без оголённой арматуры 1 этаж"]
[{"$f":"A425+1","v":356},"Демонтаж непрочных слоев бетона","м3",7.0000000000000007E-2]
[{"$f":"A427+1","v":357},"Очистка поверхности щетками","м2",18]
[{"$f":"A428+1","v":358},"Обеспыливание поверхности","м2",18]
[359,"Приготовление безусадочных, быстротвердеющих составов тиксотропного типа однокомпонентных: вручную","м3",8.9999999999999993E-3]
[360,"Нанесение антикоррозионной смеси Ceresit CD 30 толщ. 1 мм","м2",9]
[361,"Приготовление безусадочных, быстротвердеющих составов тиксотропного типа однокомпонентных: вручную","м3",6.9000000000000006E-2]
[362,"Выравнивание поверхности ремонтной смесью Ceresit CD 22 толщ. 10 мм","м2",6.9]
[363,"Приготовление безусадочных, быстротвердеющих составов тиксотропного типа однокомпонентных: вручную","м3",3.4500000000000003E-2]
[364,"Выравнивание поверхности шпатлевкой Ceresit CD 24 толщ. 5 мм","м2",6.9]
[null,"Участки с оголённой арматурой 2 этаж"]
[{"$f":"A435+1","v":365},"Демонтаж непрочных слоев бетона","м3",7.0000000000000007E-2]
[{"$f":"A437+1","v":366},"Очистка поверхности щетками","м2",3.2]
[{"$f":"A438+1","v":367},"Обеспыливание поверхности","м2",3.2]
[368,"Приготовление безусадочных, быстротвердеющих составов тиксотропного типа однокомпонентных: вручную","м3",4.7999999999999996E-3]
[369,"Нанесение антикоррозионной смеси Ceresit CD 30 толщ. 1 мм","м2",4.8]
[370,"Приготовление безусадочных, быстротвердеющих составов тиксотропного типа однокомпонентных: вручную","м3",7.0000000000000007E-2]
[371,"Выравнивание поверхности ремонтной смесью Ceresit CD 22 толщ. 100 мм","м2",0.7]
[372,"Приготовление безусадочных, быстротвердеющих составов тиксотропного типа однокомпонентных: вручную","м3",6.4999999999999997E-3]
[373,"Выравнивание поверхности шпатлевкой Ceresit CD 24 толщ. 5 мм","м2",1.3]
[null,"Участки без оголённой арматуры 2 этаж"]
[{"$f":"A445+1","v":374},"Демонтаж непрочных слоев бетона","м3",0.18]
[{"$f":"A447+1","v":375},"Очистка поверхности щетками","м2",46]
[{"$f":"A448+1","v":376},"Обеспыливание поверхности","м2",46]
[377,"Приготовление безусадочных, быстротвердеющих составов тиксотропного типа однокомпонентных: вручную","м3",2.3E-2]
[378,"Нанесение антикоррозионной смеси Ceresit CD 30 толщ. 1 мм","м2",23]
[379,"Приготовление безусадочных, быстротвердеющих составов тиксотропного типа однокомпонентных: вручную","м3",0.17499999999999999]
[380,"Выравнивание поверхности ремонтной смесью Ceresit CD 22 толщ. 10 мм","м2",17.5]
[381,"Приготовление безусадочных, быстротвердеющих составов тиксотропного типа однокомпонентных: вручную","м3",8.7499999999999994E-2]
[382,"Выравнивание поверхности шпатлевкой Ceresit CD 24 толщ. 5 мм","м2",17.5]
[null,"Участки с оголённой арматурой 3 этаж"]
[{"$f":"A455+1","v":383},"Демонтаж непрочных слоев бетона","м3",0.12]
[{"$f":"A457+1","v":384},"Очистка поверхности щетками","м2",5.8]
[{"$f":"A458+1","v":385},"Обеспыливание поверхности","м2",5.8]
[386,"Приготовление безусадочных, быстротвердеющих составов тиксотропного типа однокомпонентных: вручную","м3",8.6999999999999994E-3]
[387,"Нанесение антикоррозионной смеси Ceresit CD 30 толщ. 1 мм","м2",8.6999999999999993]
[388,"Приготовление безусадочных, быстротвердеющих составов тиксотропного типа однокомпонентных: вручную","м3",0.12]
[389,"Выравнивание поверхности ремонтной смесью Ceresit CD 22 толщ. 100 мм","м2",1.2]
[390,"Приготовление безусадочных, быстротвердеющих составов тиксотропного типа однокомпонентных: вручную","м3",1.15E-2]
[391,"Выравнивание поверхности шпатлевкой Ceresit CD 24 толщ. 5 мм","м2",2.2999999999999998]
[null,"Участки без оголённой арматуры 3 этаж"]
[{"$f":"A465+1","v":392},"Демонтаж непрочных слоев бетона","м3",0.05]
[{"$f":"A467+1","v":393},"Очистка поверхности щетками","м2",12]
[{"$f":"A468+1","v":394},"Обеспыливание поверхности","м2",12]
[395,"Приготовление безусадочных, быстротвердеющих составов тиксотропного типа однокомпонентных: вручную","м3",6.0000000000000001E-3]
[396,"Нанесение антикоррозионной смеси Ceresit CD 30 толщ. 1 мм","м2",6]
[397,"Приготовление безусадочных, быстротвердеющих составов тиксотропного типа однокомпонентных: вручную","м3",4.5999999999999999E-2]
[398,"Выравнивание поверхности ремонтной смесью Ceresit CD 22 толщ. 10 мм","м2",4.5999999999999996]
[399,"Приготовление безусадочных, быстротвердеющих составов тиксотропного типа однокомпонентных: вручную","м3",2.3E-2]
[400,"Выравнивание поверхности шпатлевкой Ceresit CD 24 толщ. 5 мм","м2",4.5999999999999996]
[null,"Участки с оголённой арматурой 4 этаж"]
[{"$f":"A475+1","v":401},"Демонтаж непрочных слоев бетона","м3",0.25]
[{"$f":"A477+1","v":402},"Очистка поверхности щетками","м2",13]
[{"$f":"A478+1","v":403},"Обеспыливание поверхности","м2",13]
[404,"Приготовление безусадочных, быстротвердеющих составов тиксотропного типа однокомпонентных: вручную","м3",1.95E-2]
[405,"Нанесение антикоррозионной смеси Ceresit CD 30 толщ. 1 мм","м2",19.5]
[406,"Приготовление безусадочных, быстротвердеющих составов тиксотропного типа однокомпонентных: вручную","м3",0.25]
[407,"Выравнивание поверхности ремонтной смесью Ceresit CD 22 толщ. 100 мм","м2",2.5]
[408,"Приготовление безусадочных, быстротвердеющих составов тиксотропного типа однокомпонентных: вручную","м3",2.5000000000000001E-2]
[409,"Выравнивание поверхности шпатлевкой Ceresit CD 24 толщ. 5 мм","м2",5]
[null,"Участки без оголённой арматуры 4 этаж"]
[{"$f":"A485+1","v":410},"Демонтаж непрочных слоев бетона","м3",0.22]
[{"$f":"A487+1","v":411},"Очистка поверхности щетками","м2",56.4]
[{"$f":"A488+1","v":412},"Обеспыливание поверхности","м2",56.4]
[413,"Приготовление безусадочных, быстротвердеющих составов тиксотропного типа однокомпонентных: вручную","м3",2.8199999999999999E-2]
[414,"Нанесение антикоррозионной смеси Ceresit CD 30 толщ. 1 мм","м2",28.2]
[415,"Приготовление безусадочных, быстротвердеющих составов тиксотропного типа однокомпонентных: вручную","м3",0.215]
[416,"Выравнивание поверхности ремонтной смесью Ceresit CD 22 толщ. 10 мм","м2",21.5]
[417,"Приготовление безусадочных, быстротвердеющих составов тиксотропного типа однокомпонентных: вручную","м3",0.1075]
[418,"Выравнивание поверхности шпатлевкой Ceresit CD 24 толщ. 5 мм","м2",21.5]
[null,"Ремонт колонн, д/ж"]
[null,"Участки колонн с оголённой арматурой 1 этаж"]
[{"$f":"A495+1","v":419},"Демонтаж непрочных слоев бетона","м3",0.06]
[{"$f":"A498+1","v":420},"Очистка поверхности щетками","м2",3.4]
[{"$f":"A499+1","v":421},"Обеспыливание поверхности","м2",3.4]
[422,"Приготовление безусадочных, быстротвердеющих составов тиксотропного типа однокомпонентных: вручную","м3",1.6999999999999999E-3]
[423,"Нанесение антикоррозионной смеси Ceresit CD 30 толщ. 1 мм","м2",1.7]
[424,"Приготовление безусадочных, быстротвердеющих составов тиксотропного типа однокомпонентных: вручную","м3",5.6000000000000001E-2]
[425,"Выравнивание поверхности ремонтной смесью Ceresit CD 22 толщ. 80 мм","м2",0.7]
[426,"Приготовление безусадочных, быстротвердеющих составов тиксотропного типа однокомпонентных: вручную","м3",7.0000000000000001E-3]
[427,"Выравнивание поверхности шпатлевкой Ceresit CD 24 толщ. 5 мм","м2",1.4]
[null,"Участки диафрагм с оголённой арматурой 1 этаж"]
[{"$f":"A506+1","v":428},"Демонтаж непрочных слоев бетона","м3",0.31]
[{"$f":"A508+1","v":429},"Очистка поверхности щетками","м2",29.4]
[{"$f":"A509+1","v":430},"Обеспыливание поверхности","м2",29.4]
[431,"Приготовление безусадочных, быстротвердеющих составов тиксотропного типа однокомпонентных: вручную","м3",5.3E-3]
[432,"Нанесение антикоррозионной смеси Ceresit CD 30 толщ. 1 мм","м2",5.3]
[433,"Приготовление безусадочных, быстротвердеющих составов тиксотропного типа однокомпонентных: вручную","м3",0.31]
[434,"Выравнивание поверхности ремонтной смесью Ceresit CD 22 толщ. 50 мм","м2",6.2]
[435,"Приготовление безусадочных, быстротвердеющих составов тиксотропного типа однокомпонентных: вручную","м3",3.1E-2]
[436,"Выравнивание поверхности шпатлевкой Ceresit CD 24 толщ. 5 мм","м2",6.2]
[null,"Участки колонн с оголённой арматурой 2 этаж"]
[{"$f":"A516+1","v":437},"Демонтаж непрочных слоев бетона","м3",0.03]
[{"$f":"A518+1","v":438},"Очистка поверхности щетками","м2",1.1000000000000001]
[{"$f":"A519+1","v":439},"Обеспыливание поверхности","м2",1.1000000000000001]
[440,"Приготовление безусадочных, быстротвердеющих составов тиксотропного типа однокомпонентных: вручную","м3",5.9999999999999995E-4]
[441,"Нанесение антикоррозионной смеси Ceresit CD 30 толщ. 1 мм","м2",0.6]
[442,"Приготовление безусадочных, быстротвердеющих составов тиксотропного типа однокомпонентных: вручную","м3",2.4E-2]
[443,"Выравнивание поверхности ремонтной смесью Ceresit CD 22 толщ. 80 мм","м2",0.3]
[444,"Приготовление безусадочных, быстротвердеющих составов тиксотропного типа однокомпонентных: вручную","м3",2.5000000000000001E-3]
[445,"Выравнивание поверхности шпатлевкой Ceresit CD 24 толщ. 5 мм","м2",0.5]
[null,"Участки диафрагм с оголённой арматурой 2 этаж"]
[{"$f":"A526+1","v":446},"Демонтаж непрочных слоев бетона","м3",0.33]
[{"$f":"A528+1","v":447},"Очистка поверхности щетками","м2",31.1]
[{"$f":"A529+1","v":448},"Обеспыливание поверхности","м2",31.1]
[449,"Приготовление безусадочных, быстротвердеющих составов тиксотропного типа однокомпонентных: вручную","м3",5.5999999999999999E-3]
[450,"Нанесение антикоррозионной смеси Ceresit CD 30 толщ. 1 мм","м2",5.6]
[451,"Приготовление безусадочных, быстротвердеющих составов тиксотропного типа однокомпонентных: вручную","м3",0.33]
[452,"Выравнивание поверхности ремонтной смесью Ceresit CD 22 толщ. 50 мм","м2",6.6]
[453,"Приготовление безусадочных, быстротвердеющих составов тиксотропного типа однокомпонентных: вручную","м3",3.3000000000000002E-2]
[454,"Выравнивание поверхности шпатлевкой Ceresit CD 24 толщ. 5 мм","м2",6.6]
[null,"Участки колонн с оголённой арматурой 3 этаж"]
[{"$f":"A536+1","v":455},"Демонтаж непрочных слоев бетона","м3",0.02]
[{"$f":"A538+1","v":456},"Очистка поверхности щетками","м2",0.6]
[{"$f":"A539+1","v":457},"Обеспыливание поверхности","м2",0.6]
[458,"Приготовление безусадочных, быстротвердеющих составов тиксотропного типа однокомпонентных: вручную","м3",2.9999999999999997E-4]
[459,"Нанесение антикоррозионной смеси Ceresit CD 30 толщ. 1 мм","м2",0.3]
[460,"Приготовление безусадочных, быстротвердеющих составов тиксотропного типа однокомпонентных: вручную","м3",1.6E-2]
[461,"Выравнивание поверхности ремонтной смесью Ceresit CD 22 толщ. 80 мм","м2",0.2]
[462,"Приготовление безусадочных, быстротвердеющих составов тиксотропного типа однокомпонентных: вручную","м3",1.5E-3]
[463,"Выравнивание поверхности шпатлевкой Ceresit CD 24 толщ. 5 мм","м2",0.3]
[null,"Участки диафрагм с оголённой арматурой 3 этаж"]
[{"$f":"A546+1","v":464},"Демонтаж непрочных слоев бетона","м3",0.31]
[{"$f":"A548+1","v":465},"Очистка поверхности щетками","м2",29]
[{"$f":"A549+1","v":466},"Обеспыливание поверхности","м2",29]
[467,"Приготовление безусадочных, быстротвердеющих составов тиксотропного типа однокомпонентных: вручную","м3",5.3E-3]
[468,"Нанесение антикоррозионной смеси Ceresit CD 30 толщ. 1 мм","м2",5.3]
[469,"Приготовление безусадочных, быстротвердеющих составов тиксотропного типа однокомпонентных: вручную","м3",0.30499999999999999]
[470,"Выравнивание поверхности ремонтной смесью Ceresit CD 22 толщ. 50 мм","м2",6.1]
[471,"Приготовление безусадочных, быстротвердеющих составов тиксотропного типа однокомпонентных: вручную","м3",3.0499999999999999E-2]
[472,"Выравнивание поверхности шпатлевкой Ceresit CD 24 толщ. 5 мм","м2",6.1]
[null,"Участки колонн с оголённой арматурой 4 этаж"]
[{"$f":"A556+1","v":473},"Демонтаж непрочных слоев бетона","м3",0.02]
[{"$f":"A558+1","v":474},"Очистка поверхности щетками","м2",0.6]
[{"$f":"A559+1","v":475},"Обеспыливание поверхности","м2",0.6]
[476,"Приготовление безусадочных, быстротвердеющих составов тиксотропного типа однокомпонентных: вручную","м3",2.9999999999999997E-4]
[477,"Нанесение антикоррозионной смеси Ceresit CD 30 толщ. 1 мм","м2",0.3]
[478,"Приготовление безусадочных, быстротвердеющих составов тиксотропного типа однокомпонентных: вручную","м3",1.6E-2]
[479,"Выравнивание поверхности ремонтной смесью Ceresit CD 22 толщ. 80 мм","м2",0.2]
[480,"Приготовление безусадочных, быстротвердеющих составов тиксотропного типа однокомпонентных: вручную","м3",1.5E-3]
[481,"Выравнивание поверхности шпатлевкой Ceresit CD 24 толщ. 5 мм","м2",0.3]
[null,"Участки диафрагм с оголённой арматурой 4 этаж"]
[{"$f":"A566+1","v":482},"Демонтаж непрочных слоев бетона","м3",0.41]
[{"$f":"A568+1","v":483},"Очистка поверхности щетками","м2",38.1]
[{"$f":"A569+1","v":484},"Обеспыливание поверхности","м2",38.1]
[485,"Приготовление безусадочных, быстротвердеющих составов тиксотропного типа однокомпонентных: вручную","м3",6.8999999999999999E-3]
[486,"Нанесение антикоррозионной смеси Ceresit CD 30 толщ. 1 мм","м2",6.9]
[487,"Приготовление безусадочных, быстротвердеющих составов тиксотропного типа однокомпонентных: вручную","м3",0.255]
[488,"Выравнивание поверхности ремонтной смесью Ceresit CD 22 толщ. 50 мм","м2",8.1]
[489,"Приготовление безусадочных, быстротвердеющих составов тиксотропного типа однокомпонентных: вручную","м3",4.0500000000000001E-2]
[490,"Выравнивание поверхности шпатлевкой Ceresit CD 24 толщ. 5 мм","м2",8.1]
[null,"Ремонт колонн выхода на кровлю"]
[null,"Участки колонн с оголённой арматурой (кровля)"]
[{"$f":"A576+1","v":491},"Демонтаж непрочных слоев бетона","м3",0.03]
[{"$f":"A579+1","v":492},"Очистка поверхности щетками","м2",1.1000000000000001]
[{"$f":"A580+1","v":493},"Обеспыливание поверхности","м2",1.1000000000000001]
[494,"Приготовление безусадочных, быстротвердеющих составов тиксотропного типа однокомпонентных: вручную","м3",5.9999999999999995E-4]
[495,"Нанесение антикоррозионной смеси Ceresit CD 30 толщ. 1 мм","м2",0.6]
[496,"Приготовление безусадочных, быстротвердеющих составов тиксотропного типа однокомпонентных: вручную","м3",2.4E-2]
[497,"Выравнивание поверхности ремонтной смесью Ceresit CD 22 толщ. 80 мм","м2",0.3]
[498,"Приготовление безусадочных, быстротвердеющих составов тиксотропного типа однокомпонентных: вручную","м3",2.5000000000000001E-3]
[499,"Выравнивание поверхности шпатлевкой Ceresit CD 24 толщ. 5 мм","м2",0.5]
[null,"Ремонт лестничной клетки в осях 1-3/В-Г"]
[null,"Участки л/к без оголённой арматуры 1 этаж"]
[{"$f":"A587+1","v":500},"Демонтаж непрочных слоев бетона","м3",0.02]
[{"$f":"A590+1","v":501},"Очистка поверхности щетками","м2",8.6999999999999993]
[{"$f":"A591+1","v":502},"Обеспыливание поверхности","м2",8.6999999999999993]
[503,"Приготовление безусадочных, быстротвердеющих составов тиксотропного типа однокомпонентных: вручную","м3",8.0000000000000004E-4]
[504,"Нанесение антикоррозионной смеси Ceresit CD 30 толщ. 1 мм","м2",0.8]
[505,"Приготовление безусадочных, быстротвердеющих составов тиксотропного типа однокомпонентных: вручную","м3",1.9E-2]
[506,"Выравнивание поверхности ремонтной смесью Ceresit CD 22 толщ. 10 мм","м2",1.9]
[507,"Приготовление безусадочных, быстротвердеющих составов тиксотропного типа однокомпонентных: вручную","м3",9.4999999999999998E-3]
[508,"Выравнивание поверхности шпатлевкой Ceresit CD 24 толщ. 5 мм","м2",1.9]
[null,"Участки л/к с оголённой арматурой 2 этаж"]
[{"$f":"A598+1","v":509},"Демонтаж непрочных слоев бетона","м3",0.01]
[{"$f":"A600+1","v":510},"Очистка поверхности щетками","м2",0.2]
[{"$f":"A601+1","v":511},"Обеспыливание поверхности","м2",0.2]
[512,"Приготовление безусадочных, быстротвердеющих составов тиксотропного типа однокомпонентных: вручную","м3",5.9999999999999995E-4]
[513,"Нанесение антикоррозионной смеси Ceresit CD 30 толщ. 1 мм","м2",0.6]
[514,"Приготовление безусадочных, быстротвердеющих составов тиксотропного типа однокомпонентных: вручную","м3",8.0000000000000002E-3]
[515,"Выравнивание поверхности ремонтной смесью Ceresit CD 22 толщ. 80 мм","м2",0.1]
[516,"Приготовление безусадочных, быстротвердеющих составов тиксотропного типа однокомпонентных: вручную","м3",1E-3]
[517,"Выравнивание поверхности шпатлевкой Ceresit CD 24 толщ. 5 мм","м2",0.2]
[null,"Участки л/к без оголённой арматуры 2 этаж"]
[{"$f":"A608+1","v":518},"Демонтаж непрочных слоев бетона","м3",0.03]
[{"$f":"A610+1","v":519},"Очистка поверхности щетками","м2",13.6]
[{"$f":"A611+1","v":520},"Обеспыливание поверхности","м2",13.6]
[521,"Приготовление безусадочных, быстротвердеющих составов тиксотропного типа однокомпонентных: вручную","м3",1.1999999999999999E-3]
[522,"Нанесение антикоррозионной смеси Ceresit CD 30 толщ. 1 мм","м2",1.2]
[523,"Приготовление безусадочных, быстротвердеющих составов тиксотропного типа однокомпонентных: вручную","м3",2.8000000000000001E-2]
[524,"Выравнивание поверхности ремонтной смесью Ceresit CD 22 толщ. 10 мм","м2",2.8]
[525,"Приготовление безусадочных, быстротвердеющих составов тиксотропного типа однокомпонентных: вручную","м3",1.4E-2]
[526,"Выравнивание поверхности шпатлевкой Ceresit CD 24 толщ. 5 мм","м2",2.8]
[null,"Участки л/к без оголённой арматуры 3 этаж"]
[{"$f":"A618+1","v":527},"Демонтаж непрочных слоев бетона","м3",0.03]
[{"$f":"A620+1","v":528},"Очистка поверхности щетками","м2",13.8]
[{"$f":"A621+1","v":529},"Обеспыливание поверхности","м2",13.8]
[530,"Приготовление безусадочных, быстротвердеющих составов тиксотропного типа однокомпонентных: вручную","м3",1.4E-3]
[531,"Нанесение антикоррозионной смеси Ceresit CD 30 толщ. 1 мм","м2",1.4]
[532,"Приготовление безусадочных, быстротвердеющих составов тиксотропного типа однокомпонентных: вручную","м3",0.03]
[533,"Выравнивание поверхности ремонтной смесью Ceresit CD 22 толщ. 10 мм","м2",3]
[534,"Приготовление безусадочных, быстротвердеющих составов тиксотропного типа однокомпонентных: вручную","м3",1.4999999999999999E-2]
[535,"Выравнивание поверхности шпатлевкой Ceresit CD 24 толщ. 5 мм","м2",3]
[null,"Участки л/к без оголённой арматуры 4 этаж"]
[{"$f":"A628+1","v":536},"Демонтаж непрочных слоев бетона","м3",0.03]
[{"$f":"A630+1","v":537},"Очистка поверхности щетками","м2",13.8]
[{"$f":"A631+1","v":538},"Обеспыливание поверхности","м2",13.8]
[539,"Приготовление безусадочных, быстротвердеющих составов тиксотропного типа однокомпонентных: вручную","м3",1.4E-3]
[540,"Нанесение антикоррозионной смеси Ceresit CD 30 толщ. 1 мм","м2",1.4]
[541,"Приготовление безусадочных, быстротвердеющих составов тиксотропного типа однокомпонентных: вручную","м3",0.03]
[542,"Выравнивание поверхности ремонтной смесью Ceresit CD 22 толщ. 10 мм","м2",3]
[543,"Приготовление безусадочных, быстротвердеющих составов тиксотропного типа однокомпонентных: вручную","м3",1.4999999999999999E-2]
[544,"Выравнивание поверхности шпатлевкой Ceresit CD 24 толщ. 5 мм","м2",3]
[null,"Участки л/к без оголённой арматуры выход на кровлю"]
[{"$f":"A638+1","v":545},"Демонтаж непрочных слоев бетона","м3",0.03]
[546,"Очистка поверхности щетками","м2",13.8]
[547,"Обеспыливание поверхности","м2",13.8]
[548,"Приготовление безусадочных, быстротвердеющих составов тиксотропного типа однокомпонентных: вручную","м3",1.4E-3]
[549,"Нанесение антикоррозионной смеси Ceresit CD 30 толщ. 1 мм","м2",1.4]
[550,"Приготовление безусадочных, быстротвердеющих составов тиксотропного типа однокомпонентных: вручную","м3",0.03]
[551,"Выравнивание поверхности ремонтной смесью Ceresit CD 22 толщ. 10 мм","м2",3]
[552,"Приготовление безусадочных, быстротвердеющих составов тиксотропного типа однокомпонентных: вручную","м3",1.4999999999999999E-2]
[553,"Выравнивание поверхности шпатлевкой Ceresit CD 24 толщ. 5 мм","м2",3]
[null,"Ремонт лестничной клетки в осях 9-10/А-В"]
[null,"Участки л/к без оголённой арматуры 1 этаж"]
[{"$f":"A648+1","v":554},"Демонтаж непрочных слоев бетона","м3",0.02]
[555,"Очистка поверхности щетками","м2",7.8]
[556,"Обеспыливание поверхности","м2",7.8]
[557,"Приготовление безусадочных, быстротвердеющих составов тиксотропного типа однокомпонентных: вручную","м3",8.0000000000000004E-4]
[558,"Нанесение антикоррозионной смеси Ceresit CD 30 толщ. 1 мм","м2",0.8]
[559,"Приготовление безусадочных, быстротвердеющих составов тиксотропного типа однокомпонентных: вручную","м3",1.7000000000000001E-2]
[560,"Выравнивание поверхности ремонтной смесью Ceresit CD 22 толщ. 10 мм","м2",1.7]
[561,"Приготовление безусадочных, быстротвердеющих составов тиксотропного типа однокомпонентных: вручную","м3",8.5000000000000006E-3]
[562,"Выравнивание поверхности шпатлевкой Ceresit CD 24 толщ. 5 мм","м2",1.7]
[null,"Участки л/к без оголённой арматуры 2 этаж"]
[{"$f":"A659+1","v":563},"Демонтаж непрочных слоев бетона","м3",0.04]
[564,"Очистка поверхности щетками","м2",15.6]
[565,"Обеспыливание поверхности","м2",15.6]
[566,"Приготовление безусадочных, быстротвердеющих составов тиксотропного типа однокомпонентных: вручную","м3",1.6000000000000001E-3]
[567,"Нанесение антикоррозионной смеси Ceresit CD 30 толщ. 1 мм","м2",1.6]
[568,"Приготовление безусадочных, быстротвердеющих составов тиксотропного типа однокомпонентных: вручную","м3",3.4000000000000002E-2]
[569,"Выравнивание поверхности ремонтной смесью Ceresit CD 22 толщ. 10 мм","м2",3.4]
[570,"Приготовление безусадочных, быстротвердеющих составов тиксотропного типа однокомпонентных: вручную","м3",1.7000000000000001E-2]
[571,"Выравнивание поверхности шпатлевкой Ceresit CD 24 толщ. 5 мм","м2",3.4]
[null,"Участки л/к без оголённой арматуры 3 этаж"]
[{"$f":"A669+1","v":572},"Демонтаж непрочных слоев бетона","м3",0.02]
[573,"Очистка поверхности щетками","м2",7.8]
[574,"Обеспыливание поверхности","м2",7.8]
[575,"Приготовление безусадочных, быстротвердеющих составов тиксотропного типа однокомпонентных: вручную","м3",8.0000000000000004E-4]
[576,"Нанесение антикоррозионной смеси Ceresit CD 30 толщ. 1 мм","м2",0.8]
[577,"Приготовление безусадочных, быстротвердеющих составов тиксотропного типа однокомпонентных: вручную","м3",1.7000000000000001E-2]
[578,"Выравнивание поверхности ремонтной смесью Ceresit CD 22 толщ. 10 мм","м2",1.7]
[579,"Приготовление безусадочных, быстротвердеющих составов тиксотропного типа однокомпонентных: вручную","м3",8.5000000000000006E-3]
[580,"Выравнивание поверхности шпатлевкой Ceresit CD 24 толщ. 5 мм","м2",1.7]
[null,"Ремонт узла опирания лестничной клетки"]
[{"$f":"A679+1","v":581},"Демонтаж кирпичной кладки","м3",0.01]
[582,"Сверление отверстия в стене Ø20 L=530","шт.",2]
[583,"Очистка поверхности щетками","м2",0.5]
[584,"Обеспыливание поверхности","м2",0.5]
[585,"Усиление конструктивных элементов: стен кирпичных стальными обоймами","кг",15.97]
[586,"Огрунтовка металлических поверхностей в 2 слоя","м2",0.4]
[587,"Устройство сетки металлической сварной 50х50х4 мм","м2",0.3]
[588,"Устройство бетонной подготовки из цементно-песчаного раствора М200","м3",0.03]
[null,"Ремонт лестничной клетки в осях 14-16/В-Г"]
[null,"Участки л/к без оголённой арматуры 1 этаж"]
[{"$f":"A688+1","v":589},"Демонтаж непрочных слоев бетона","м3",0.02]
[590,"Очистка поверхности щетками","м2",8.6999999999999993]
[591,"Обеспыливание поверхности","м2",8.6999999999999993]
[592,"Приготовление безусадочных, быстротвердеющих составов тиксотропного типа однокомпонентных: вручную","м3",8.0000000000000004E-4]
[593,"Нанесение антикоррозионной смеси Ceresit CD 30 толщ. 1 мм","м2",0.8]
[{"$f":"A695+1","v":594},"Приготовление безусадочных, быстротвердеющих составов тиксотропного типа однокомпонентных: вручную","м3",1.9E-2]
[595,"Выравнивание поверхности ремонтной смесью Ceresit CD 22 толщ. 10 мм","м2",1.9]
[596,"Приготовление безусадочных, быстротвердеющих составов тиксотропного типа однокомпонентных: вручную","м3",9.4999999999999998E-3]
[597,"Выравнивание поверхности шпатлевкой Ceresit CD 24 толщ. 5 мм","м2",1.9]
[null,"Участки л/к без оголённой арматуры 2 этаж"]
[{"$f":"A699+1","v":598},"Демонтаж непрочных слоев бетона","м3",0.03]
[599,"Очистка поверхности щетками","м2",13.8]
[600,"Обеспыливание поверхности","м2",13.8]
[601,"Приготовление безусадочных, быстротвердеющих составов тиксотропного типа однокомпонентных: вручную","м3",1.4E-3]
[602,"Нанесение антикоррозионной смеси Ceresit CD 30 толщ. 1 мм","м2",1.4]
[603,"Приготовление безусадочных, быстротвердеющих составов тиксотропного типа однокомпонентных: вручную","м3",0.03]
[604,"Выравнивание поверхности ремонтной смесью Ceresit CD 22 толщ. 10 мм","м2",3]
[605,"Приготовление безусадочных, быстротвердеющих составов тиксотропного типа однокомпонентных: вручную","м3",1.4999999999999999E-2]
[606,"Выравнивание поверхности шпатлевкой Ceresit CD 24 толщ. 5 мм","м2",3]
[null,"Участки л/к без оголённой арматуры 3 этаж"]
[{"$f":"A709+1","v":607},"Демонтаж непрочных слоев бетона","м3",0.03]
[608,"Очистка поверхности щетками","м2",13.8]
[609,"Обеспыливание поверхности","м2",13.8]
[610,"Приготовление безусадочных, быстротвердеющих составов тиксотропного типа однокомпонентных: вручную","м3",1.4E-3]
[611,"Нанесение антикоррозионной смеси Ceresit CD 30 толщ. 1 мм","м2",1.4]
[612,"Приготовление безусадочных, быстротвердеющих составов тиксотропного типа однокомпонентных: вручную","м3",0.03]
[613,"Выравнивание поверхности ремонтной смесью Ceresit CD 22 толщ. 10 мм","м2",3]
[614,"Приготовление безусадочных, быстротвердеющих составов тиксотропного типа однокомпонентных: вручную","м3",1.4999999999999999E-2]
[615,"Выравнивание поверхности шпатлевкой Ceresit CD 24 толщ. 5 мм","м2",3]
[null,"Участки л/к без оголённой арматуры 4 этаж"]
[{"$f":"A719+1","v":616},"Демонтаж непрочных слоев бетона","м3",0.02]
[617,"Очистка поверхности щетками","м2",6.9]
[618,"Обеспыливание поверхности","м2",6.9]
[619,"Приготовление безусадочных, быстротвердеющих составов тиксотропного типа однокомпонентных: вручную","м3",6.9999999999999999E-4]
[620,"Нанесение антикоррозионной смеси Ceresit CD 30 толщ. 1 мм","м2",0.7]
[621,"Приготовление безусадочных, быстротвердеющих составов тиксотропного типа однокомпонентных: вручную","м3",1.4999999999999999E-2]
[622,"Выравнивание поверхности ремонтной смесью Ceresit CD 22 толщ. 10 мм","м2",1.5]
[623,"Приготовление безусадочных, быстротвердеющих составов тиксотропного типа однокомпонентных: вручную","м3",7.4999999999999997E-3]
[624,"Выравнивание поверхности шпатлевкой Ceresit CD 24 толщ. 5 мм","м2",1.5]
[null,"Усиление отверстий"]
[null,"1 этаж"]
[null,"Усиление отверстия №1"]
[{"$f":"A729+1","v":625},"Демонтаж непрочных слоев бетона","м3",0.06]
[626,"Сверление отверстия в плите Ø20 L=220","шт.",4]
[627,"Очистка поверхности щетками","м2",1.7]
[628,"Обеспыливание поверхности","м2",1.7]
[629,"Приготовление безусадочных, быстротвердеющих составов тиксотропного типа однокомпонентных: вручную","м3",1.6999999999999999E-3]
[630,"Нанесение антикоррозионной смеси Ceresit CD 30 толщ. 1 мм","м2",1.7]
[631,"Приготовление безусадочных, быстротвердеющих составов тиксотропного типа однокомпонентных: вручную","м3",1.7000000000000001E-2]
[632,"Выравнивание поверхности ремонтной смесью Ceresit CD 22 толщ. 10 мм","м2",1.7]
[633,"Усиление конструктивных элементов: обрамление отверстий в перекрытии стальными обоймами","кг",70.03]
[634,"Огрунтовка металлических поверхностей в 2 слоя","м2",2.1]
[null,"Усиление отверстия №2.1"]
[{"$f":"A742+1","v":635},"Демонтаж непрочных слоев бетона","м3",0.1]
[636,"Сверление отверстия в плите Ø20 L=220","шт.",10]
[637,"Очистка поверхности щетками","м2",4.5]
[638,"Обеспыливание поверхности","м2",4.5]
[639,"Приготовление безусадочных, быстротвердеющих составов тиксотропного типа однокомпонентных: вручную","м3",4.4999999999999997E-3]
[640,"Нанесение антикоррозионной смеси Ceresit CD 30 толщ. 1 мм","м2",4.5]
[641,"Приготовление безусадочных, быстротвердеющих составов тиксотропного типа однокомпонентных: вручную","м3",4.4999999999999998E-2]
[642,"Выравнивание поверхности ремонтной смесью Ceresit CD 22 толщ. 10 мм","м2",4.5]
[643,"Усиление конструктивных элементов: обрамление отверстий в перекрытии стальными обоймами","кг",35.020000000000003]
[644,"Огрунтовка металлических поверхностей в 2 слоя","м2",5.5]
[null,"Усиление отверстия №2.2"]
[{"$f":"A753+1","v":645},"Демонтаж непрочных слоев бетона","м3",0.02]
[646,"Сверление отверстия в плите Ø20 L=220","шт.",2]
[647,"Очистка поверхности щетками","м2",0.9]
[648,"Обеспыливание поверхности","м2",0.9]
[649,"Приготовление безусадочных, быстротвердеющих составов тиксотропного типа однокомпонентных: вручную","м3",8.9999999999999998E-4]
[{"$f":"A759+1","v":650},"Нанесение антикоррозионной смеси Ceresit CD 30 толщ. 1 мм","м2",0.9]
[651,"Приготовление безусадочных, быстротвердеющих составов тиксотропного типа однокомпонентных: вручную","м3",8.9999999999999993E-3]
[652,"Выравнивание поверхности ремонтной смесью Ceresit CD 22 толщ. 10 мм","м2",0.9]
[653,"Усиление конструктивных элементов: обрамление отверстий в перекрытии стальными обоймами","кг",35.020000000000003]
[654,"Огрунтовка металлических поверхностей в 2 слоя","м2",1.1000000000000001]
[null,"Усиление отверстия №2.3"]
[{"$f":"A764+1","v":655},"Демонтаж непрочных слоев бетона","м3",0.02]
[656,"Сверление отверстия в плите Ø20 L=220","шт.",2]
[657,"Очистка поверхности щетками","м2",0.9]
[658,"Обеспыливание поверхности","м2",0.9]
[659,"Приготовление безусадочных, быстротвердеющих составов тиксотропного типа однокомпонентных: вручную","м3",8.9999999999999998E-4]
[660,"Нанесение антикоррозионной смеси Ceresit CD 30 толщ. 1 мм","м2",0.9]
[661,"Приготовление безусадочных, быстротвердеющих составов тиксотропного типа однокомпонентных: вручную","м3",8.9999999999999993E-3]
[662,"Выравнивание поверхности ремонтной смесью Ceresit CD 22 толщ. 10 мм","м2",0.9]
[663,"Усиление конструктивных элементов: обрамление отверстий в перекрытии стальными обоймами","кг",35.020000000000003]
[664,"Огрунтовка металлических поверхностей в 2 слоя","м2",1.1000000000000001]
[null,"Усиление отверстия №2.4"]
[{"$f":"A775+1","v":665},"Демонтаж непрочных слоев бетона","м3",0.02]
[666,"Сверление отверстия в плите Ø20 L=220","шт.",2]
[667,"Очистка поверхности щетками","м2",0.9]
[668,"Обеспыливание поверхности","м2",0.9]
[669,"Приготовление безусадочных, быстротвердеющих составов тиксотропного типа однокомпонентных: вручную","м3",8.9999999999999998E-4]
[670,"Нанесение антикоррозионной смеси Ceresit CD 30 толщ. 1 мм","м2",0.9]
[671,"Приготовление безусадочных, быстротвердеющих составов тиксотропного типа однокомпонентных: вручную","м3",8.9999999999999993E-3]
[672,"Выравнивание поверхности ремонтной смесью Ceresit CD 22 толщ. 10 мм","м2",0.9]
[673,"Усиление конструктивных элементов: обрамление отверстий в перекрытии стальными обоймами","кг",35.020000000000003]
[674,"Огрунтовка металлических поверхностей в 2 слоя","м2",1.1000000000000001]
[null,"Усиление отверстия №2.5"]
[{"$f":"A786+1","v":675},"Демонтаж непрочных слоев бетона","м3",0.04]
[676,"Сверление отверстия в плите Ø20 L=220","шт.",4]
[677,"Очистка поверхности щетками","м2",1.8]
[678,"Обеспыливание поверхности","м2",1.8]
[679,"Приготовление безусадочных, быстротвердеющих составов тиксотропного типа однокомпонентных: вручную","м3",1.8E-3]
[680,"Нанесение антикоррозионной смеси Ceresit CD 30 толщ. 1 мм","м2",1.8]
[681,"Приготовление безусадочных, быстротвердеющих составов тиксотропного типа однокомпонентных: вручную","м3",1.7999999999999999E-2]
[682,"Выравнивание поверхности ремонтной смесью Ceresit CD 22 толщ. 10 мм","м2",1.8]
[683,"Усиление конструктивных элементов: обрамление отверстий в перекрытии стальными обоймами","кг",35.020000000000003]
[684,"Огрунтовка металлических поверхностей в 2 слоя","м2",2.2000000000000002]
[null,"Усиление отверстия №3"]
[{"$f":"A797+1","v":685},"Демонтаж непрочных слоев бетона","м3",0.03]
[686,"Сверление отверстия в плите Ø20 L=220","шт.",2]
[687,"Очистка поверхности щетками","м2",1.1000000000000001]
[688,"Обеспыливание поверхности","м2",1.1000000000000001]
[689,"Приготовление безусадочных, быстротвердеющих составов тиксотропного типа однокомпонентных: вручную","м3",1.1000000000000001E-3]
[690,"Нанесение антикоррозионной смеси Ceresit CD 30 толщ. 1 мм","м2",1.1000000000000001]
[691,"Приготовление безусадочных, быстротвердеющих составов тиксотропного типа однокомпонентных: вручную","м3",1.0999999999999999E-2]
[692,"Выравнивание поверхности ремонтной смесью Ceresit CD 22 толщ. 10 мм","м2",1.1000000000000001]
[693,"Усиление конструктивных элементов: обрамление отверстий в перекрытии стальными обоймами","кг",42.22]
[694,"Огрунтовка металлических поверхностей в 2 слоя","м2",1.3]
[null,"2 этаж"]
[null,"Усиление отверстия №2.1"]
[{"$f":"A808+1","v":695},"Демонтаж непрочных слоев бетона","м3",0.04]
[696,"Сверление отверстия в плите Ø20 L=220","шт.",4]
[697,"Очистка поверхности щетками","м2",1.8]
[698,"Обеспыливание поверхности","м2",1.8]
[699,"Приготовление безусадочных, быстротвердеющих составов тиксотропного типа однокомпонентных: вручную","м3",1.8E-3]
[700,"Нанесение антикоррозионной смеси Ceresit CD 30 толщ. 1 мм","м2",1.8]
[701,"Приготовление безусадочных, быстротвердеющих составов тиксотропного типа однокомпонентных: вручную","м3",1.7999999999999999E-2]
[702,"Выравнивание поверхности ремонтной смесью Ceresit CD 22 толщ. 10 мм","м2",1.8]
[703,"Усиление конструктивных элементов: обрамление отверстий в перекрытии стальными обоймами","кг",35.020000000000003]
[704,"Огрунтовка металлических поверхностей в 2 слоя","м2",2.2000000000000002]
[null,"Усиление отверстия №2.4"]
[{"$f":"A820+1","v":705},"Демонтаж непрочных слоев бетона","м3",0.04]
[706,"Сверление отверстия в плите Ø20 L=220","шт.",4]
[{"$f":"A823+1","v":707},"Очистка поверхности щетками","м2",1.8]
[708,"Обеспыливание поверхности","м2",1.8]
[709,"Приготовление безусадочных, быстротвердеющих составов тиксотропного типа однокомпонентных: вручную","м3",1.8E-3]
[710,"Нанесение антикоррозионной смеси Ceresit CD 30 толщ. 1 мм","м2",1.8]
[711,"Приготовление безусадочных, быстротвердеющих составов тиксотропного типа однокомпонентных: вручную","м3",1.7999999999999999E-2]
[712,"Выравнивание поверхности ремонтной смесью Ceresit CD 22 толщ. 10 мм","м2",1.8]
[713,"Усиление конструктивных элементов: обрамление отверстий в перекрытии стальными обоймами","кг",35.020000000000003]
[714,"Огрунтовка металлических поверхностей в 2 слоя","м2",2.2000000000000002]
[null,"Усиление отверстия №2.5"]
[{"$f":"A831+1","v":715},"Демонтаж непрочных слоев бетона","м3",0.02]
[716,"Сверление отверстия в плите Ø20 L=220","шт.",2]
[717,"Очистка поверхности щетками","м2",0.9]
[718,"Обеспыливание поверхности","м2",0.9]
[719,"Приготовление безусадочных, быстротвердеющих составов тиксотропного типа однокомпонентных: вручную","м3",8.9999999999999998E-4]
[720,"Нанесение антикоррозионной смеси Ceresit CD 30 толщ. 1 мм","м2",0.9]
[721,"Приготовление безусадочных, быстротвердеющих составов тиксотропного типа однокомпонентных: вручную","м3",8.9999999999999993E-3]
[722,"Выравнивание поверхности ремонтной смесью Ceresit CD 22 толщ. 10 мм","м2",0.9]
[723,"Усиление конструктивных элементов: обрамление отверстий в перекрытии стальными обоймами","кг",35.020000000000003]
[724,"Огрунтовка металлических поверхностей в 2 слоя","м2",1.1000000000000001]
[null,"Усиление отверстия №4.1"]
[{"$f":"A842+1","v":725},"Демонтаж непрочных слоев бетона","м3",0.08]
[726,"Сверление отверстия в плите Ø20 L=220","шт.",6]
[727,"Очистка поверхности щетками","м2",2]
[728,"Обеспыливание поверхности","м2",2]
[729,"Приготовление безусадочных, быстротвердеющих составов тиксотропного типа однокомпонентных: вручную","м3",2E-3]
[730,"Нанесение антикоррозионной смеси Ceresit CD 30 толщ. 1 мм","м2",2]
[731,"Приготовление безусадочных, быстротвердеющих составов тиксотропного типа однокомпонентных: вручную","м3",0.02]
[732,"Выравнивание поверхности ремонтной смесью Ceresit CD 22 толщ. 10 мм","м2",2]
[733,"Усиление конструктивных элементов: обрамление отверстий в перекрытии стальными обоймами","кг",88.24]
[734,"Огрунтовка металлических поверхностей в 2 слоя","м2",2.5]
[null,"3 этаж"]
[null,"Усиление отверстия №2.3"]
[{"$f":"A853+1","v":735},"Демонтаж непрочных слоев бетона","м3",0.02]
[736,"Сверление отверстия в плите Ø20 L=220","шт.",2]
[737,"Очистка поверхности щетками","м2",0.9]
[738,"Обеспыливание поверхности","м2",0.9]
[739,"Приготовление безусадочных, быстротвердеющих составов тиксотропного типа однокомпонентных: вручную","м3",8.9999999999999998E-4]
[740,"Нанесение антикоррозионной смеси Ceresit CD 30 толщ. 1 мм","м2",0.9]
[741,"Приготовление безусадочных, быстротвердеющих составов тиксотропного типа однокомпонентных: вручную","м3",8.9999999999999993E-3]
[742,"Выравнивание поверхности ремонтной смесью Ceresit CD 22 толщ. 10 мм","м2",0.9]
[743,"Усиление конструктивных элементов: обрамление отверстий в перекрытии стальными обоймами","кг",35.020000000000003]
[744,"Огрунтовка металлических поверхностей в 2 слоя","м2",1.1000000000000001]
[null,"Усиление отверстия №2.6"]
[{"$f":"A865+1","v":745},"Демонтаж непрочных слоев бетона","м3",0.02]
[746,"Сверление отверстия в плите Ø20 L=220","шт.",2]
[747,"Очистка поверхности щетками","м2",0.9]
[748,"Обеспыливание поверхности","м2",0.9]
[749,"Приготовление безусадочных, быстротвердеющих составов тиксотропного типа однокомпонентных: вручную","м3",8.9999999999999998E-4]
[750,"Нанесение антикоррозионной смеси Ceresit CD 30 толщ. 1 мм","м2",0.9]
[751,"Приготовление безусадочных, быстротвердеющих составов тиксотропного типа однокомпонентных: вручную","м3",8.9999999999999993E-3]
[752,"Выравнивание поверхности ремонтной смесью Ceresit CD 22 толщ. 10 мм","м2",0.9]
[753,"Усиление конструктивных элементов: обрамление отверстий в перекрытии стальными обоймами","кг",35.020000000000003]
[754,"Огрунтовка металлических поверхностей в 2 слоя","м2",1.1000000000000001]
[null,"Усиление отверстия №4.2"]
[{"$f":"A876+1","v":755},"Демонтаж непрочных слоев бетона","м3",0.08]
[756,"Сверление отверстия в плите Ø20 L=220","шт.",5]
[757,"Очистка поверхности щетками","м2",2]
[758,"Обеспыливание поверхности","м2",2]
[759,"Приготовление безусадочных, быстротвердеющих составов тиксотропного типа однокомпонентных: вручную","м3",2E-3]
[760,"Нанесение антикоррозионной смеси Ceresit CD 30 толщ. 1 мм","м2",2]
[761,"Приготовление безусадочных, быстротвердеющих составов тиксотропного типа однокомпонентных: вручную","м3",0.02]
[762,"Выравнивание поверхности ремонтной смесью Ceresit CD 22 толщ. 10 мм","м2",2]
[763,"Усиление конструктивных элементов: обрамление отверстий в перекрытии стальными обоймами","кг",85.13]
[764,"Огрунтовка металлических поверхностей в 2 слоя","м2",2.5]
[null,"Усиление отверстия №5"]
[{"$f":"A887+1","v":765},"Демонтаж непрочных слоев бетона","м3",0.05]
[{"$f":"A889+1","v":766},"Сверление отверстия в плите Ø20 L=220","шт.",4]
[767,"Очистка поверхности щетками","м2",1.4]
[768,"Обеспыливание поверхности","м2",1.4]
[769,"Приготовление безусадочных, быстротвердеющих составов тиксотропного типа однокомпонентных: вручную","м3",1.4E-3]
[770,"Нанесение антикоррозионной смеси Ceresit CD 30 толщ. 1 мм","м2",1.4]
[771,"Приготовление безусадочных, быстротвердеющих составов тиксотропного типа однокомпонентных: вручную","м3",1.4E-2]
[772,"Выравнивание поверхности ремонтной смесью Ceresit CD 22 толщ. 10 мм","м2",1.4]
[773,"Усиление конструктивных элементов: обрамление отверстий в перекрытии стальными обоймами","кг",60.43]
[774,"Огрунтовка металлических поверхностей в 2 слоя","м2",1.9]
[null,"Усиление отверстия №6"]
[{"$f":"A898+1","v":775},"Демонтаж непрочных слоев бетона","м3",0.04]
[776,"Сверление отверстия в плите Ø20 L=220","шт.",4]
[777,"Очистка поверхности щетками","м2",1.3]
[778,"Обеспыливание поверхности","м2",1.3]
[779,"Приготовление безусадочных, быстротвердеющих составов тиксотропного типа однокомпонентных: вручную","м3",1.2999999999999999E-3]
[780,"Нанесение антикоррозионной смеси Ceresit CD 30 толщ. 1 мм","м2",1.3]
[781,"Приготовление безусадочных, быстротвердеющих составов тиксотропного типа однокомпонентных: вручную","м3",1.2999999999999999E-2]
[782,"Выравнивание поверхности ремонтной смесью Ceresit CD 22 толщ. 10 мм","м2",1.3]
[null,"4 этаж"]
[null,"Усиление отверстия №7"]
[{"$f":"A907+1","v":783},"Демонтаж непрочных слоев бетона","м3",0.06]
[784,"Сверление отверстия в плите Ø20 L=220","шт.",18]
[785,"Очистка поверхности щетками","м2",4.8]
[786,"Обеспыливание поверхности","м2",4.8]
[787,"Приготовление безусадочных, быстротвердеющих составов тиксотропного типа однокомпонентных: вручную","м3",4.7999999999999996E-3]
[788,"Нанесение антикоррозионной смеси Ceresit CD 30 толщ. 1 мм","м2",4.8]
[789,"Приготовление безусадочных, быстротвердеющих составов тиксотропного типа однокомпонентных: вручную","м3",4.8000000000000001E-2]
[790,"Выравнивание поверхности ремонтной смесью Ceresit CD 22 толщ. 10 мм","м2",4.8]
[791,"Усиление конструктивных элементов: обрамление отверстий в перекрытии стальными обоймами","кг",223.43]
[792,"Огрунтовка металлических поверхностей в 2 слоя","м2",6.4]
[null,"Вывоз мусора"]
[{"$f":"A919+1","v":793},"Погрузо-разгрузочные работы при автомобильных перевозках: Погрузка мусора строительного с погрузкой вручную","1 т груза",12.67]
[794,"Перевозка грузов I класса автомобилями-самосвалами грузоподъемностью 10 т работающих вне карьера на расстояние до 47 км","1 т груза",12.67]
[795,"Утилизация строительного мусора",{"$f":"C922","v":"1 т груза"},{"$f":"D922","v":12.67}]
[]
[]
[]
[null,"Составил:"]
[]
[null,"     Ведущий специалист ОпС АО \"Коломенский Завод\"                                                                        ",null,null,"Самойлов А.О."]
[null,"                                                      (должность)                                                                                                                                                                                    ",null,null,"(подпись)                              (ФИО)"]
[null,"\"25\" марта 2025 г. "]
[]
[null,"Проверил:"]
[null,"Начальник отдела по строительству АО \"Коломенский Завод\"  "]
[null,"                                                      (должность)                                                                                                                                               ",null,null,"Губанов П.В."]
[null,"\"25\" марта 2025 г. ",null,null,"(подпись)                               (ФИО)"]

{"sheet":"Лист2","index":2,"n_rows":26,"n_cols":17,"rows_kept":26,"cut":false,"hidden":false,"merged":[]}
[]
[]
[]
[]
[]
[null,8.4749999999999996,{"$f":"(0.45*4)","v":1.8},{"$f":"C6/0.2","v":9},{"$f":"(D6*B6)*2","v":152.54999999999998}]
[null,8.8000000000000007,{"$f":"24-(0.45*4)","v":22.2},{"$f":"C7/0.2","v":110.99999999999999},{"$f":"(D7*B7)*2","v":1953.6},null,{"$f":"E7+E6","v":2106.15}]
[null,null,null,null,null,null,{"$f":"E9+E10","v":2052.1187499999996}]
[null,5.5750000000000002,{"$f":"0.325","v":0.32500000000000001},{"$f":"C9/0.2","v":1.625},{"$f":"(D9*B9)*2","v":18.118750000000002}]
[null,24,{"$f":"8.475","v":8.4749999999999996},{"$f":"C10/0.2","v":42.374999999999993},{"$f":"(D10*B10)*2","v":2033.9999999999995},null,0.88800000000000001,{"$f":"((E6+E7+E9+E10)*G10)*0.001","v":3.6925426499999996}]
[]
[]
[]
[null,null,null,null,null,null,null,{"$f":"0.25*0.125*0.025","v":7.8125000000000004E-4},null,null,null,null,null,null,{"$f":"3.14*0.84","v":2.6375999999999999}]
[]
[null,null,null,null,null,null,null,null,{"$f":"H14*61","v":4.7656250000000004E-2},null,null,null,null,null,{"$f":"0.125*4","v":0.5}]
[null,null,null,null,null,null,null,null,null,{"$f":"I16*3","v":0.14296875000000001}]
[null,null,null,null,1,0.2,{"$f":"E18/F18","v":5},null,null,null,{"$f":"J17*2","v":0.28593750000000001},null,null,null,{"$f":"O14*O16","v":1.3188},null,{"$f":"O18*2","v":2.6375999999999999}]
[null,null,null,null,1,0.2,{"$f":"E19/F19","v":5},{"$f":"(G18+G19)*G10","v":8.8800000000000008}]
[]
[]
[]
[]
[]
[null,{"$f":"382060/19103","v":20}]
[null,{"$f":"477575/19103","v":25}]